Workbook

Sheet Sverigeranking
B1: Svenska Hästskokastarförbundets Sverigeranking | X1: Antal kastare som deltagit i samtliga tävlingar senaste 12 månaderna: | Y1: =COUNTIF(F5:F199,15) -> 6
B3: SLUTSTÄLLNING 2017/2018 | I3: =IF(SUM(I5:I400)>100,1,"") -> 1 | J3: 1 | K3: 1 | L3: 1 | M3: 1 | N3: 1 | O3: 1 | Q3: 1 | R3: 1 | S3: 1 | T3: 1 | U3: 1 | V3: 1 | X3: 1 | Y3: 1 | Z3: 1 | AA3: 1
A4: Plac. | B4: Kastare | C4: Klubb | D4: Rankingpoäng | F4: Antal tävlingar | G4: Snitt per serie | I4: Växjö Open | J4: Björkenäs Open | K4: Utomhus-SM Dag 1 | L4: Utomhus-SM Dag 2 | M4: Utomhus Smålandsmästaren | N4: Carlskrona Cup | O4: Gotland Open | Q4: Dynapac Open | R4: Blekinge-DM Ute | S4: Åseda Open | T4: Höstskon Nybro | U4: Novemberkampen | V4: Inomhus-SM | X4: Inomhus Smålandsmästaren | Y4: Blekinge DM inne | Z4: Värendspokalen | AA4: Tingsryds Open | AB4: Antal arrangerade tävlingar | AC4: Ej medräknat resultat | AD4: Ej medräknat resultat | BH4: 1 | BI4: 2 | BJ4: 3 | BK4: 4 | BL4: 5 | BM4: 6 | BN4: 7 | BO4: 8 | BP4: 9 | BQ4: 10 | BR4: 11 | BS4: 12 | BT4: 13 | BU4: 14 | BV4: 15 | BW4: 16 | BX4: ej medräknad | BZ4: missade tävlingar
A5: =IF(BE5>1,AF5&" ("&AE5&")",AF5&" ("&AG5&")") -> 1 (1) | B5: Sandor Bodi | C5: Växjö | D5: =SUM(BH5:BT5) -> 5365 | F5: =COUNT(I5:AA5) -> 14 | G5: =SUM((CB5)/(F5*2)) -> 203.75 | I5: 433 | J5: 375 | K5: 350 | L5: 353 | M5: 421 | N5: 376 | Q5: 436 | S5: 382 | T5: 340 | U5: 470 | V5: 472 | X5: 461 | Z5: 367 | AA5: 469 | AB5: =SUM($I$3:$AA$3) -> 17 | AC5: =BX5 -> 340 | AD5: =BY5 -> - | AE5: 1 | AF5: 1 | AG5: =IF(F5>1,ROW(1:1),"-") -> 1 | AH5: 1 | AK5: =COUNT($I$3,I5,H5) -> 2 | AL5: =COUNT($J$3,J5,I5) -> 3 | AM5: =COUNT($K$3,K5,J5) -> 3 | AN5: =COUNT($L$3,L5,K5) -> 3 | AO5: =COUNT($M$3,M5,L5) -> 3 | AP5: =COUNT($N$3,N5,M5) -> 3 | AQ5: =COUNT($O$3,O5,N5) -> 2 | AR5: =COUNT($P$3,P5,O5) -> 0 | AS5: =COUNT($Q$3,Q5,P5) -> 2 | AT5: =COUNT($R$3,R5,Q5) -> 2 | AU5: =COUNT($S$3,S5,R5) -> 2 | AV5: =COUNT($T$3,T5,S5) -> 3 | AW5: =COUNT($U$3,U5,T5) -> 3 | AX5: =COUNT($V$3,V5,U5) -> 3 | AY5: =COUNT($W$3,W5,V5) -> 1 | AZ5: =COUNT($X$3,X5,W5) -> 2 | BA5: =COUNT($Y$3,Y5,X5) -> 2 | BB5: =COUNT($Z$3,Z5,Y5) -> 2 | BC5: =COUNT($AA$3,AA5,Z5) -> 3 | BE5: =IF(H5="x",1,2) -> 2 | BH5: =IF($F5>0,LARGE($I5:$AA5,1),"") -> 472 | BI5: =IF($F5>1,LARGE($I5:$AA5,2),"") -> 470 | BJ5: =IF($F5>2,LARGE($I5:$AA5,3),"") -> 469 | BK5: =IF($F5>3,LARGE($I5:$AA5,4),"") -> 461 | BL5: =IF($F5>4,LARGE($I5:$AA5,5),"") -> 436 | BM5: =IF($F5>5,LARGE($I5:$AA5,6),"") -> 433 | BN5: =IF($F5>6,LARGE($I5:$AA5,7),"") -> 421 | BO5: =IF($F5>7,LARGE($I5:$AA5,8),"") -> 382 | BP5: =IF($F5>8,LARGE($I5:$AA5,9),"") -> 376 | BQ5: =IF($F5>9,LARGE($I5:$AA5,10),"") -> 375 | BR5: =IF($F5>10,LARGE($I5:$AA5,11),"") -> 367 | BS5: =IF($F5>11,LARGE($I5:$AA5,12),"") -> 353 | BT5: =IF($F5>12,LARGE($I5:$AA5,13),"") -> 350 | BU5: =IF($F5>13,LARGE($I5:$AA5,14),"") -> 340 | BV5: =IF($F5>14,LARGE($I5:$AA5,15),"") ->  | BW5: =IF($F5>15,LARGE($I5:$AA5,16),"") ->  | BX5: =IF($F5>13,LARGE($I5:$AA5,14),"-") -> 340 | BY5: =IF($F5>14,LARGE($I5:$AA5,15),"-") -> - | BZ5: =SUM(AB5-F5)-3 -> 0 | CB5: =SUM(BH5:BW5) -> 5705 | EM5: 1 | EO5: =IF(BE5>=1,AF5,"") -> 1 | EP5: =IF(BE5>1,"("&AE5&")","("&AG5&")") -> (1)
A6: 2 (2) | B6: Kent Sundahl | C6: Carlskrona | D6: 5069 | F6: 13 | G6: 194.9615385 | I6: 316 | J6: 298 | K6: 389 | L6: 466 | N6: 345 | Q6: 411 | S6: 481 | T6: 475 | U6: 405 | V6: 298 | Y6: 420 | Z6: 402 | AA6: 363 | AB6: 17 | AC6: - | AD6: - | AE6: 2 | AF6: =IF(D6<D5,AH6,AF5) -> 2 | AG6: 2 | AH6: 2 | AK6: =COUNT($I$3,I6,H6) -> 2 | AL6: =COUNT($J$3,J6,I6) -> 3 | AM6: =COUNT($K$3,K6,J6) -> 3 | AN6: =COUNT($L$3,L6,K6) -> 3 | AO6: =COUNT($M$3,M6,L6) -> 2 | AP6: =COUNT($N$3,N6,M6) -> 2 | AQ6: =COUNT($O$3,O6,N6) -> 2 | AR6: =COUNT($P$3,P6,O6) -> 0 | AS6: =COUNT($Q$3,Q6,P6) -> 2 | AT6: =COUNT($R$3,R6,Q6) -> 2 | AU6: =COUNT($S$3,S6,R6) -> 2 | AV6: =COUNT($T$3,T6,S6) -> 3 | AW6: =COUNT($U$3,U6,T6) -> 3 | AX6: =COUNT($V$3,V6,U6) -> 3 | AY6: =COUNT($W$3,W6,V6) -> 1 | AZ6: =COUNT($X$3,X6,W6) -> 1 | BA6: =COUNT($Y$3,Y6,X6) -> 2 | BB6: =COUNT($Z$3,Z6,Y6) -> 3 | BC6: =COUNT($AA$3,AA6,Z6) -> 3 | BE6: 2 | BH6: =IF($F6>0,LARGE($I6:$AA6,1),"") -> 481 | BI6: =IF($F6>1,LARGE($I6:$AA6,2),"") -> 475 | BJ6: =IF($F6>2,LARGE($I6:$AA6,3),"") -> 466 | BK6: =IF($F6>3,LARGE($I6:$AA6,4),"") -> 420 | BL6: =IF($F6>4,LARGE($I6:$AA6,5),"") -> 411 | BM6: =IF($F6>5,LARGE($I6:$AA6,6),"") -> 405 | BN6: =IF($F6>6,LARGE($I6:$AA6,7),"") -> 402 | BO6: =IF($F6>7,LARGE($I6:$AA6,8),"") -> 389 | BP6: =IF($F6>8,LARGE($I6:$AA6,9),"") -> 363 | BQ6: =IF($F6>9,LARGE($I6:$AA6,10),"") -> 345 | BR6: =IF($F6>10,LARGE($I6:$AA6,11),"") -> 316 | BS6: =IF($F6>11,LARGE($I6:$AA6,12),"") -> 298 | BT6: =IF($F6>12,LARGE($I6:$AA6,13),"") -> 298 | BU6: =IF($F6>13,LARGE($I6:$AA6,14),"") ->  | BV6: =IF($F6>14,LARGE($I6:$AA6,15),"") ->  | BW6: =IF($F6>15,LARGE($I6:$AA6,16),"") ->  | BX6: =IF($F6>13,LARGE($I6:$AA6,14),"-") -> - | BY6: =IF($F6>14,LARGE($I6:$AA6,15),"-") -> - | BZ6: 1 | CB6: 5069 | EM6: 2 | EO6: 2 | EP6: (2)
A7: 3 (3) | B7: Leo Andersson | C7: Carlskrona | D7: 4356 | F7: 14 | G7: 163.2857143 | I7: 281 | J7: 286 | K7: 318 | L7: 347 | N7: 332 | Q7: 370 | R7: 408 | S7: 339 | T7: 370 | U7: 268 | V7: 349 | Y7: 216 | Z7: 359 | AA7: 329 | AB7: 17 | AC7: 216 | AD7: - | AE7: 3 | AF7: =IF(D7<D6,AH7,AF6) -> 3 | AG7: 3 | AH7: 3 | AK7: 2 | AL7: 3 | AM7: 3 | AN7: 3 | AO7: 2 | AP7: 2 | AQ7: 2 | AR7: 0 | AS7: 2 | AT7: 3 | AU7: 3 | AV7: 3 | AW7: 3 | AX7: 3 | AY7: 1 | AZ7: 1 | BA7: 2 | BB7: 3 | BC7: 3 | BE7: 2 | BH7: =IF($F7>0,LARGE($I7:$AA7,1),"") -> 408 | BI7: =IF($F7>1,LARGE($I7:$AA7,2),"") -> 370 | BJ7: =IF($F7>2,LARGE($I7:$AA7,3),"") -> 370 | BK7: =IF($F7>3,LARGE($I7:$AA7,4),"") -> 359 | BL7: =IF($F7>4,LARGE($I7:$AA7,5),"") -> 349 | BM7: =IF($F7>5,LARGE($I7:$AA7,6),"") -> 347 | BN7: =IF($F7>6,LARGE($I7:$AA7,7),"") -> 339 | BO7: =IF($F7>7,LARGE($I7:$AA7,8),"") -> 332 | BP7: =IF($F7>8,LARGE($I7:$AA7,9),"") -> 329 | BQ7: =IF($F7>9,LARGE($I7:$AA7,10),"") -> 318 | BR7: =IF($F7>10,LARGE($I7:$AA7,11),"") -> 286 | BS7: =IF($F7>11,LARGE($I7:$AA7,12),"") -> 281 | BT7: =IF($F7>12,LARGE($I7:$AA7,13),"") -> 268 | BU7: 216 | BX7: 216 | BY7: - | BZ7: 0 | CB7: 4572 | EM7: 3 | EO7: 3 | EP7: (3)
A8: 4 (4) | B8: Matz Karlsson | C8: Korpen Åseda | D8: 4224 | F8: 14 | G8: 158.5357143 | I8: 272 | J8: 279 | K8: 332 | L8: 266 | M8: 299 | N8: 301 | Q8: 215 | S8: 335 | T8: 368 | U8: 272 | V8: 389 | X8: 373 | Z8: 415 | AA8: 323 | AB8: 17 | AC8: 215 | AD8: - | AE8: 4 | AF8: 4 | AG8: 4 | AH8: 4 | AK8: =COUNT($I$3,I8,H8) -> 2 | AL8: =COUNT($J$3,J8,I8) -> 3 | AM8: =COUNT($K$3,K8,J8) -> 3 | AN8: =COUNT($L$3,L8,K8) -> 3 | AO8: =COUNT($M$3,M8,L8) -> 3 | AP8: =COUNT($N$3,N8,M8) -> 3 | AQ8: =COUNT($O$3,O8,N8) -> 2 | AR8: =COUNT($P$3,P8,O8) -> 0 | AS8: =COUNT($Q$3,Q8,P8) -> 2 | AT8: =COUNT($R$3,R8,Q8) -> 2 | AU8: =COUNT($S$3,S8,R8) -> 2 | AV8: =COUNT($T$3,T8,S8) -> 3 | AW8: =COUNT($U$3,U8,T8) -> 3 | AX8: =COUNT($V$3,V8,U8) -> 3 | AY8: =COUNT($W$3,W8,V8) -> 1 | AZ8: =COUNT($X$3,X8,W8) -> 2 | BA8: =COUNT($Y$3,Y8,X8) -> 2 | BB8: =COUNT($Z$3,Z8,Y8) -> 2 | BC8: =COUNT($AA$3,AA8,Z8) -> 3 | BE8: 2 | BH8: =IF($F8>0,LARGE($I8:$AA8,1),"") -> 415 | BI8: =IF($F8>1,LARGE($I8:$AA8,2),"") -> 389 | BJ8: =IF($F8>2,LARGE($I8:$AA8,3),"") -> 373 | BK8: =IF($F8>3,LARGE($I8:$AA8,4),"") -> 368 | BL8: =IF($F8>4,LARGE($I8:$AA8,5),"") -> 335 | BM8: =IF($F8>5,LARGE($I8:$AA8,6),"") -> 332 | BN8: =IF($F8>6,LARGE($I8:$AA8,7),"") -> 323 | BO8: =IF($F8>7,LARGE($I8:$AA8,8),"") -> 301 | BP8: =IF($F8>8,LARGE($I8:$AA8,9),"") -> 299 | BQ8: =IF($F8>9,LARGE($I8:$AA8,10),"") -> 279 | BR8: =IF($F8>10,LARGE($I8:$AA8,11),"") -> 272 | BS8: =IF($F8>11,LARGE($I8:$AA8,12),"") -> 272 | BT8: =IF($F8>12,LARGE($I8:$AA8,13),"") -> 266 | BU8: =IF($F8>13,LARGE($I8:$AA8,14),"") -> 215 | BV8: =IF($F8>14,LARGE($I8:$AA8,15),"") ->  | BX8: 215 | BY8: - | BZ8: 0 | CB8: 4439 | EM8: 4 | EO8: 4 | EP8: (4)
A9: 5 (4) | B9: Gert Karlsson | C9: Korpen Åseda | D9: 4215 | F9: 15 | G9: 156.5 | I9: 270 | J9: 360 | K9: 293 | L9: 381 | M9: 262 | N9: 297 | O9: 282 | Q9: 380 | S9: 313 | T9: 218 | U9: 293 | V9: 298 | X9: 308 | Z9: 369 | AA9: 371 | AB9: 17 | AC9: 262 | AD9: 218 | AE9: 4 | AF9: 5 | AG9: 5 | AH9: 5 | AK9: =COUNT($I$3,I9,H9) -> 2 | AL9: =COUNT($J$3,J9,I9) -> 3 | AM9: =COUNT($K$3,K9,J9) -> 3 | AN9: =COUNT($L$3,L9,K9) -> 3 | AO9: =COUNT($M$3,M9,L9) -> 3 | AP9: =COUNT($N$3,N9,M9) -> 3 | AQ9: =COUNT($O$3,O9,N9) -> 3 | AR9: =COUNT($P$3,P9,O9) -> 1 | AS9: =COUNT($Q$3,Q9,P9) -> 2 | AT9: =COUNT($R$3,R9,Q9) -> 2 | AU9: =COUNT($S$3,S9,R9) -> 2 | AV9: =COUNT($T$3,T9,S9) -> 3 | AW9: =COUNT($U$3,U9,T9) -> 3 | AX9: =COUNT($V$3,V9,U9) -> 3 | AY9: =COUNT($W$3,W9,V9) -> 1 | AZ9: =COUNT($X$3,X9,W9) -> 2 | BA9: =COUNT($Y$3,Y9,X9) -> 2 | BB9: =COUNT($Z$3,Z9,Y9) -> 2 | BC9: =COUNT($AA$3,AA9,Z9) -> 3 | BE9: 2 | BH9: =IF($F9>0,LARGE($I9:$AA9,1),"") -> 381 | BI9: =IF($F9>1,LARGE($I9:$AA9,2),"") -> 380 | BJ9: =IF($F9>2,LARGE($I9:$AA9,3),"") -> 371 | BK9: =IF($F9>3,LARGE($I9:$AA9,4),"") -> 369 | BL9: =IF($F9>4,LARGE($I9:$AA9,5),"") -> 360 | BM9: =IF($F9>5,LARGE($I9:$AA9,6),"") -> 313 | BN9: =IF($F9>6,LARGE($I9:$AA9,7),"") -> 308 | BO9: =IF($F9>7,LARGE($I9:$AA9,8),"") -> 298 | BP9: =IF($F9>8,LARGE($I9:$AA9,9),"") -> 297 | BQ9: =IF($F9>9,LARGE($I9:$AA9,10),"") -> 293 | BR9: =IF($F9>10,LARGE($I9:$AA9,11),"") -> 293 | BS9: =IF($F9>11,LARGE($I9:$AA9,12),"") -> 282 | BT9: =IF($F9>12,LARGE($I9:$AA9,13),"") -> 270 | BU9: =IF($F9>13,LARGE($I9:$AA9,14),"") -> 262 | BV9: =IF($F9>14,LARGE($I9:$AA9,15),"") -> 218 | BX9: 262 | BY9: 218 | BZ9: -1 | CB9: 4695 | EM9: 5 | EO9: 5 | EP9: (4)
A10: 6 (4) | B10: Olle Ottosson | C10: Dynapac | D10: 4140 | F10: 14 | G10: 155.8571429 | I10: 337 | J10: 300 | K10: 283 | L10: 270 | N10: 356 | Q10: 339 | R10: 294 | S10: 351 | T10: 271 | U10: 256 | V10: 337 | Y10: 365 | Z10: 381 | AA10: 224 | AB10: 17 | AC10: 224 | AD10: - | AE10: 4 | AF10: 6 | AG10: 6 | AH10: 6 | AK10: =COUNT($I$3,I10,H10) -> 2 | AL10: =COUNT($J$3,J10,I10) -> 3 | AM10: =COUNT($K$3,K10,J10) -> 3 | AN10: =COUNT($L$3,L10,K10) -> 3 | AO10: =COUNT($M$3,M10,L10) -> 2 | AP10: =COUNT($N$3,N10,M10) -> 2 | AQ10: =COUNT($O$3,O10,N10) -> 2 | AR10: =COUNT($P$3,P10,O10) -> 0 | AS10: =COUNT($Q$3,Q10,P10) -> 2 | AT10: =COUNT($R$3,R10,Q10) -> 3 | AU10: =COUNT($S$3,S10,R10) -> 3 | AV10: =COUNT($T$3,T10,S10) -> 3 | AW10: =COUNT($U$3,U10,T10) -> 3 | AX10: =COUNT($V$3,V10,U10) -> 3 | AY10: =COUNT($W$3,W10,V10) -> 1 | AZ10: =COUNT($X$3,X10,W10) -> 1 | BA10: =COUNT($Y$3,Y10,X10) -> 2 | BB10: =COUNT($Z$3,Z10,Y10) -> 3 | BC10: =COUNT($AA$3,AA10,Z10) -> 3 | BE10: 2 | BH10: =IF($F10>0,LARGE($I10:$AA10,1),"") -> 381 | BI10: =IF($F10>1,LARGE($I10:$AA10,2),"") -> 365 | BJ10: =IF($F10>2,LARGE($I10:$AA10,3),"") -> 356 | BK10: =IF($F10>3,LARGE($I10:$AA10,4),"") -> 351 | BL10: =IF($F10>4,LARGE($I10:$AA10,5),"") -> 339 | BM10: =IF($F10>5,LARGE($I10:$AA10,6),"") -> 337 | BN10: =IF($F10>6,LARGE($I10:$AA10,7),"") -> 337 | BO10: =IF($F10>7,LARGE($I10:$AA10,8),"") -> 300 | BP10: =IF($F10>8,LARGE($I10:$AA10,9),"") -> 294 | BQ10: =IF($F10>9,LARGE($I10:$AA10,10),"") -> 283 | BR10: =IF($F10>10,LARGE($I10:$AA10,11),"") -> 271 | BS10: =IF($F10>11,LARGE($I10:$AA10,12),"") -> 270 | BT10: =IF($F10>12,LARGE($I10:$AA10,13),"") -> 256 | BU10: =IF($F10>13,LARGE($I10:$AA10,14),"") -> 224 | BV10: =IF($F10>14,LARGE($I10:$AA10,15),"") ->  | BX10: 224 | BY10: - | BZ10: 0 | CB10: 4364 | EM10: 6 | EO10: 6 | EP10: (4)
A11: 7 (7) | B11: Gebriela Kostantinos | C11: Korpen Åseda | D11: 4139 | F11: 14 | G11: 155.1785714 | I11: 206 | J11: 270 | K11: 232 | L11: 339 | M11: 281 | N11: 337 | Q11: 386 | S11: 292 | T11: 227 | U11: 327 | V11: 288 | X11: 368 | Z11: 376 | AA11: 416 | AB11: 17 | AC11: 206 | AD11: - | AE11: 7 | AF11: 7 | AG11: 7 | AH11: 7 | AK11: 2 | AL11: 3 | AM11: 3 | AN11: 3 | AO11: 3 | AP11: 3 | AQ11: 2 | AR11: 0 | AS11: 2 | AT11: 2 | AU11: 2 | AV11: 3 | AW11: 3 | AX11: 3 | AY11: 1 | AZ11: 2 | BA11: 2 | BB11: 2 | BC11: 3 | BE11: 2 | BH11: 416 | BI11: 386 | BJ11: 376 | BK11: 368 | BL11: 339 | BM11: 337 | BN11: 327 | BO11: 292 | BP11: 288 | BQ11: 281 | BR11: 270 | BS11: 232 | BT11: 227 | BU11: 206 | BX11: 206 | BY11: - | BZ11: 0 | CB11: 4345 | EM11: 7 | EO11: 7 | EP11: (7)
A12: 8 (7) | B12: Ingvar Eriksson | C12: Carlskrona | D12: 4105 | F12: 15 | G12: 153.2333333 | I12: 262 | J12: 347 | K12: 315 | L12: 274 | N12: 275 | O12: 250 | Q12: 384 | R12: 376 | S12: 324 | T12: 322 | U12: 297 | V12: 242 | Y12: 332 | Z12: 278 | AA12: 319 | AB12: 17 | AC12: 250 | AD12: 242 | AE12: 7 | AF12: 8 | AG12: 8 | AH12: 8 | AK12: 2 | AL12: 3 | AM12: 3 | AN12: 3 | AO12: 2 | AP12: 2 | AQ12: 3 | AR12: 1 | AS12: 2 | AT12: 3 | AU12: 3 | AV12: 3 | AW12: 3 | AX12: 3 | AY12: 1 | AZ12: 1 | BA12: 2 | BB12: 3 | BC12: 3 | BE12: 2 | BH12: 384 | BI12: 376 | BJ12: 347 | BK12: 332 | BL12: 324 | BM12: 322 | BN12: 319 | BO12: 315 | BP12: 297 | BQ12: 278 | BR12: 275 | BS12: 274 | BT12: 262 | BU12: 250 | BV12: 242 | BX12: 250 | BY12: 242 | BZ12: -1 | CB12: 4597 | EM12: 8 | EO12: 8 | EP12: (7)
A13: 9 (9) | B13: Mattias Gneupel | C13: Sibbamåla | D13: 3755 | F13: 13 | G13: 144.4230769 | I13: 227 | J13: 255 | K13: 379 | L13: 263 | N13: 302 | O13: 214 | Q13: 392 | R13: 358 | T13: 260 | U13: 352 | V13: 289 | Y13: 194 | Z13: 270 | AB13: 17 | AC13: - | AD13: - | AE13: 9 | AF13: 9 | AG13: 9 | AH13: 9 | AK13: 2 | AL13: 3 | AM13: 3 | AN13: 3 | AO13: 2 | AP13: 2 | AQ13: 3 | AR13: 1 | AS13: 2 | AT13: 3 | AU13: 2 | AV13: 2 | AW13: 3 | AX13: 3 | AY13: 1 | AZ13: 1 | BA13: 2 | BB13: 3 | BC13: 2 | BE13: 2 | BH13: 392 | BI13: 379 | BJ13: 358 | BK13: 352 | BL13: 302 | BM13: 289 | BN13: 270 | BO13: 263 | BP13: 260 | BQ13: 255 | BR13: 227 | BS13: 214 | BT13: 194 | BX13: - | BY13: - | BZ13: 1 | CB13: 3755 | EM13: 9 | EO13: 9 | EP13: (9)
A14: =IF(BE14>1,AF14&" ("&AE14&")",AF14&" ("&AG14&")") -> 10 (12) | B14: Peter Olsson | C14: Dynapac | D14: 3691 | F14: 15 | G14: 136.6666667 | I14: 270 | J14: 329 | K14: 256 | L14: 204 | N14: 236 | O14: 272 | Q14: 258 | R14: 205 | S14: 313 | T14: 217 | U14: 268 | V14: 313 | Y14: 292 | Z14: 280 | AA14: 387 | AB14: 17 | AC14: 205 | AD14: 204 | AE14: 12 | AF14: 10 | AG14: 10 | AH14: 10 | AK14: 2 | AL14: 3 | AM14: 3 | AN14: 3 | AO14: 2 | AP14: 2 | AQ14: 3 | AR14: 1 | AS14: 2 | AT14: 3 | AU14: 3 | AV14: 3 | AW14: 3 | AX14: 3 | AY14: 1 | AZ14: 1 | BA14: 2 | BB14: 3 | BC14: 3 | BE14: 2 | BH14: 387 | BI14: 329 | BJ14: 313 | BK14: 313 | BL14: 292 | BM14: 280 | BN14: 272 | BO14: 270 | BP14: 268 | BQ14: 258 | BR14: 256 | BS14: 236 | BT14: 217 | BU14: 205 | BV14: 204 | BX14: 205 | BY14: 204 | BZ14: -1 | CB14: 4100 | EM14: 10 | EO14: 10 | EP14: (12)
A15: 11 (10) | B15: Anders Johansson | C15: Dynapac | D15: 3678 | F15: 15 | G15: 134.4 | I15: 327 | J15: 322 | K15: 188 | L15: 319 | N15: 300 | O15: 228 | Q15: 239 | R15: 353 | S15: 224 | T15: 225 | U15: 304 | V15: 238 | Y15: 166 | Z15: 311 | AA15: 288 | AB15: 17 | AC15: 188 | AD15: 166 | AE15: 10 | AF15: 11 | AG15: 11 | AH15: 11 | AK15: 2 | AL15: 3 | AM15: 3 | AN15: 3 | AO15: 2 | AP15: 2 | AQ15: 3 | AR15: 1 | AS15: 2 | AT15: 3 | AU15: 3 | AV15: 3 | AW15: 3 | AX15: 3 | AY15: 1 | AZ15: 1 | BA15: 2 | BB15: 3 | BC15: 3 | BE15: 2 | BH15: 353 | BI15: 327 | BJ15: 322 | BK15: 319 | BL15: 311 | BM15: 304 | BN15: 300 | BO15: 288 | BP15: 239 | BQ15: 238 | BR15: 228 | BS15: 225 | BT15: 224 | BU15: 188 | BV15: 166 | BX15: 188 | BY15: 166 | BZ15: -1 | CB15: 4032 | EM15: 11 | EO15: 11 | EP15: (10)
A16: 12 (11) | B16: Roy Dahlén | C16: Dynapac | D16: 3656 | F16: 15 | G16: 133.1333333 | I16: 190 | J16: 201 | K16: 204 | L16: 280 | N16: 263 | O16: 244 | Q16: 384 | R16: 305 | S16: 316 | T16: 274 | U16: 222 | V16: 276 | Y16: 362 | Z16: 148 | AA16: 325 | AB16: 17 | AC16: 190 | AD16: 148 | AE16: 11 | AF16: 12 | AG16: 12 | AH16: 12 | AK16: 2 | AL16: 3 | AM16: 3 | AN16: 3 | AO16: 2 | AP16: 2 | AQ16: 3 | AR16: 1 | AS16: 2 | AT16: 3 | AU16: 3 | AV16: 3 | AW16: 3 | AX16: 3 | AY16: 1 | AZ16: 1 | BA16: 2 | BB16: 3 | BC16: 3 | BE16: 2 | BH16: 384 | BI16: 362 | BJ16: 325 | BK16: 316 | BL16: 305 | BM16: 280 | BN16: 276 | BO16: 274 | BP16: 263 | BQ16: 244 | BR16: 222 | BS16: 204 | BT16: 201 | BU16: 190 | BV16: 148 | BX16: 190 | BY16: 148 | BZ16: -1 | CB16: 3994 | EM16: 12 | EO16: 12 | EP16: (11)
A17: 13 (12) | B17: Lasse Brincner | C17: Värends Hsk | D17: 3567 | F17: 14 | G17: 134.6071429 | I17: 233 | J17: 315 | K17: 295 | L17: 202 | M17: 254 | N17: 294 | O17: 288 | S17: 284 | T17: 276 | U17: 230 | V17: 330 | X17: 248 | Z17: 279 | AA17: 241 | AB17: 17 | AC17: 202 | AD17: - | AE17: 12 | AF17: 13 | AG17: 13 | AH17: 13 | AK17: 2 | AL17: 3 | AM17: 3 | AN17: 3 | AO17: 3 | AP17: 3 | AQ17: 3 | AR17: 1 | AS17: 1 | AT17: 1 | AU17: 2 | AV17: 3 | AW17: 3 | AX17: 3 | AY17: 1 | AZ17: 2 | BA17: 2 | BB17: 2 | BC17: 3 | BE17: 2 | BH17: 330 | BI17: 315 | BJ17: 295 | BK17: 294 | BL17: 288 | BM17: 284 | BN17: 279 | BO17: 276 | BP17: 254 | BQ17: 248 | BR17: 241 | BS17: 233 | BT17: 230 | BU17: 202 | BX17: 202 | BY17: - | BZ17: 0 | CB17: 3769 | EM17: 13 | EO17: 13 | EP17: (12)
A18: 14 (14) | B18: Magnus Israelsson | C18: Sibbamåla | D18: 3494 | F18: 12 | G18: 145.5833333 | I18: 241 | J18: 362 | K18: 298 | L18: 291 | O18: 228 | Q18: 333 | R18: 279 | T18: 253 | U18: 318 | V18: 332 | Y18: 299 | Z18: 260 | AB18: 17 | AC18: - | AD18: - | AE18: 14 | AF18: 14 | AG18: 14 | AH18: 14 | AK18: 2 | AL18: 3 | AM18: 3 | AN18: 3 | AO18: 2 | AP18: 1 | AQ18: 2 | AR18: 1 | AS18: 2 | AT18: 3 | AU18: 2 | AV18: 2 | AW18: 3 | AX18: 3 | AY18: 1 | AZ18: 1 | BA18: 2 | BB18: 3 | BC18: 2 | BE18: 2 | BH18: 362 | BI18: 333 | BJ18: 332 | BK18: 318 | BL18: 299 | BM18: 298 | BN18: 291 | BO18: 279 | BP18: 260 | BQ18: 253 | BR18: 241 | BS18: 228 | BX18: - | BY18: - | BZ18: 2 | CB18: 3494 | EM18: 14 | EO18: 14 | EP18: (14)
A19: 15 (15) | B19: Joel Sundahl | C19: Carlskrona | D19: 3386 | F19: 12 | G19: 141.0833333 | I19: 236 | J19: 282 | K19: 140 | L19: 294 | N19: 284 | Q19: 237 | S19: 407 | U19: 191 | V19: 300 | Y19: 215 | Z19: 339 | AA19: 461 | AB19: 17 | AC19: - | AD19: - | AE19: 15 | AF19: 15 | AG19: 15 | AH19: 15 | AK19: 2 | AL19: 3 | AM19: 3 | AN19: 3 | AO19: 2 | AP19: 2 | AQ19: 2 | AR19: 0 | AS19: 2 | AT19: 2 | AU19: 2 | AV19: 2 | AW19: 2 | AX19: 3 | AY19: 1 | AZ19: 1 | BA19: 2 | BB19: 3 | BC19: 3 | BE19: 2 | BH19: 461 | BI19: 407 | BJ19: 339 | BK19: 300 | BL19: 294 | BM19: 284 | BN19: 282 | BO19: 237 | BP19: 236 | BQ19: 215 | BR19: 191 | BS19: 140 | BX19: - | BY19: - | BZ19: 2 | CB19: 3386 | EM19: 15 | EO19: 15 | EP19: (15)
A20: 16 (17) | B20: Stefan Tollstam | C20: Dynapac | D20: 3219 | F20: 15 | G20: 119.4666667 | I20: 242 | J20: 240 | K20: 236 | L20: 226 | N20: 196 | O20: 185 | Q20: 287 | R20: 222 | S20: 311 | T20: 226 | U20: 226 | V20: 180 | Y20: 232 | Z20: 350 | AA20: 225 | AB20: 17 | AC20: 185 | AD20: 180 | AE20: 17 | AF20: 16 | AG20: 16 | AH20: 16 | AK20: 2 | AL20: 3 | AM20: 3 | AN20: 3 | AO20: 2 | AP20: 2 | AQ20: 3 | AR20: 1 | AS20: 2 | AT20: 3 | AU20: 3 | AV20: 3 | AW20: 3 | AX20: 3 | AY20: 1 | AZ20: 1 | BA20: 2 | BB20: 3 | BC20: 3 | BE20: 2 | BH20: 350 | BI20: 311 | BJ20: 287 | BK20: 242 | BL20: 240 | BM20: 236 | BN20: 232 | BO20: 226 | BP20: 226 | BQ20: 226 | BR20: 225 | BS20: 222 | BT20: 196 | BU20: 185 | BV20: 180 | BX20: 185 | BY20: 180 | BZ20: -1 | CB20: 3584 | EM20: 16 | EO20: 16 | EP20: (17)
A21: 17 (22) | B21: Christer Blomgren | C21: Lanternan | D21: 3136 | F21: 13 | G21: 120.6153846 | I21: 195 | J21: 248 | K21: 222 | L21: 263 | N21: 314 | R21: 194 | S21: 269 | T21: 152 | U21: 295 | V21: 251 | Y21: 258 | Z21: 196 | AA21: 279 | AB21: 17 | AC21: - | AD21: - | AE21: 22 | AF21: 17 | AG21: 17 | AH21: 17 | AK21: 2 | AL21: 3 | AM21: 3 | AN21: 3 | AO21: 2 | AP21: 2 | AQ21: 2 | AR21: 0 | AS21: 1 | AT21: 2 | AU21: 3 | AV21: 3 | AW21: 3 | AX21: 3 | AY21: 1 | AZ21: 1 | BA21: 2 | BB21: 3 | BC21: 3 | BE21: 2 | BH21: 314 | BI21: 295 | BJ21: 279 | BK21: 269 | BL21: 263 | BM21: 258 | BN21: 251 | BO21: 248 | BP21: 222 | BQ21: 196 | BR21: 195 | BS21: 194 | BT21: 152 | BX21: - | BY21: - | BZ21: 1 | CB21: 3136 | EM21: 17 | EO21: 17 | EP21: (22)
A22: 18 (15) | B22: Göran Mårtensson | C22: Jämjö Hsk | D22: 3109 | F22: 12 | G22: 129.5416667 | I22: 231 | J22: 242 | K22: 229 | L22: 292 | N22: 223 | Q22: 203 | R22: 346 | T22: 220 | V22: 339 | Y22: 288 | Z22: 349 | AA22: 147 | AB22: 17 | AC22: - | AD22: - | AE22: 15 | AF22: 18 | AG22: 18 | AH22: 18 | AK22: 2 | AL22: 3 | AM22: 3 | AN22: 3 | AO22: 2 | AP22: 2 | AQ22: 2 | AR22: 0 | AS22: 2 | AT22: 3 | AU22: 2 | AV22: 2 | AW22: 2 | AX22: 2 | AY22: 1 | AZ22: 1 | BA22: 2 | BB22: 3 | BC22: 3 | BE22: 2 | BH22: 349 | BI22: 346 | BJ22: 339 | BK22: 292 | BL22: 288 | BM22: 242 | BN22: 231 | BO22: 229 | BP22: 223 | BQ22: 220 | BR22: 203 | BS22: 147 | BX22: - | BY22: - | BZ22: 2 | CB22: 3109 | EM22: 18 | EO22: 18 | EP22: (15)
A23: 19 (20) | B23: Maire Johansson | C23: Växjö | D23: 3014 | F23: 14 | G23: 113.2857143 | I23: 242 | J23: 175 | K23: 255 | L23: 181 | M23: 249 | N23: 245 | Q23: 158 | S23: 228 | T23: 185 | U23: 246 | V23: 250 | X23: 238 | Z23: 211 | AA23: 309 | AB23: 17 | AC23: 158 | AD23: - | AE23: 20 | AF23: 19 | AG23: 19 | AH23: 19 | AK23: 2 | AL23: 3 | AM23: 3 | AN23: 3 | AO23: 3 | AP23: 3 | AQ23: 2 | AR23: 0 | AS23: 2 | AT23: 2 | AU23: 2 | AV23: 3 | AW23: 3 | AX23: 3 | AY23: 1 | AZ23: 2 | BA23: 2 | BB23: 2 | BC23: 3 | BE23: 2 | BH23: 309 | BI23: 255 | BJ23: 250 | BK23: 249 | BL23: 246 | BM23: 245 | BN23: 242 | BO23: 238 | BP23: 228 | BQ23: 211 | BR23: 185 | BS23: 181 | BT23: 175 | BU23: 158 | BX23: 158 | BY23: - | BZ23: 0 | CB23: 3172 | EM23: 19 | EO23: 19 | EP23: (20)
A24: 20 (17) | B24: Bo Petersson | C24: Korpen Nybro | D24: 3001 | F24: 11 | G24: 136.4090909 | I24: 262 | K24: 295 | L24: 250 | M24: 361 | N24: 330 | Q24: 292 | S24: 318 | T24: 195 | U24: 208 | V24: 225 | Z24: 265 | AB24: 17 | AC24: - | AD24: - | AE24: 17 | AF24: 20 | AG24: 20 | AH24: 20 | AK24: 2 | AL24: 2 | AM24: 2 | AN24: 3 | AO24: 3 | AP24: 3 | AQ24: 2 | AR24: 0 | AS24: 2 | AT24: 2 | AU24: 2 | AV24: 3 | AW24: 3 | AX24: 3 | AY24: 1 | AZ24: 1 | BA24: 1 | BB24: 2 | BC24: 2 | BE24: 2 | BH24: 361 | BI24: 330 | BJ24: 318 | BK24: 295 | BL24: 292 | BM24: 265 | BN24: 262 | BO24: 250 | BP24: 225 | BQ24: 208 | BR24: 195 | BX24: - | BY24: - | BZ24: 3 | CB24: 3001 | EM24: 20 | EO24: 20 | EP24: (17)
A25: 21 (19) | B25: Tomas Lindahl | C25: Korpen Åseda | D25: 2935 | F25: 14 | G25: 109.8928571 | I25: 196 | J25: 229 | K25: 170 | L25: 255 | M25: 233 | N25: 188 | O25: 280 | Q25: 225 | S25: 248 | T25: 246 | U25: 247 | X25: 243 | Z25: 142 | AA25: 175 | AB25: 17 | AC25: 142 | AD25: - | AE25: 19 | AF25: 21 | AG25: 21 | AH25: 21 | AK25: 2 | AL25: 3 | AM25: 3 | AN25: 3 | AO25: 3 | AP25: 3 | AQ25: 3 | AR25: 1 | AS25: 2 | AT25: 2 | AU25: 2 | AV25: 3 | AW25: 3 | AX25: 2 | AY25: 0 | AZ25: 2 | BA25: 2 | BB25: 2 | BC25: 3 | BE25: 2 | BH25: 280 | BI25: 255 | BJ25: 248 | BK25: 247 | BL25: 246 | BM25: 243 | BN25: 233 | BO25: 229 | BP25: 225 | BQ25: 196 | BR25: 188 | BS25: 175 | BT25: 170 | BU25: 142 | BX25: 142 | BY25: - | BZ25: 0 | CB25: 3077 | EM25: 21 | EO25: 21 | EP25: (19)
A26: 22 (27) | B26: Ronny Lundberg | C26: Lanternan | D26: 2926 | F26: 13 | G26: 112.5384615 | J26: 191 | K26: 237 | L26: 198 | N26: 319 | O26: 168 | Q26: 205 | R26: 251 | S26: 273 | T26: 178 | U26: 207 | Y26: 291 | Z26: 230 | AA26: 178 | AB26: 17 | AC26: - | AD26: - | AE26: 27 | AF26: 22 | AG26: 22 | AH26: 22 | AK26: 1 | AL26: 2 | AM26: 3 | AN26: 3 | AO26: 2 | AP26: 2 | AQ26: 3 | AR26: 1 | AS26: 2 | AT26: 3 | AU26: 3 | AV26: 3 | AW26: 3 | AX26: 2 | AY26: 0 | AZ26: 1 | BA26: 2 | BB26: 3 | BC26: 3 | BE26: 2 | BH26: 319 | BI26: 291 | BJ26: 273 | BK26: 251 | BL26: 237 | BM26: 230 | BN26: 207 | BO26: 205 | BP26: 198 | BQ26: 191 | BR26: 178 | BS26: 178 | BT26: 168 | BX26: - | BY26: - | BZ26: 1 | CB26: 2926 | EM26: 22 | EO26: 22 | EP26: (27)
A27: 23 (22) | B27: Bernt Olsson | C27: Jämjö Hsk | D27: 2913 | F27: 13 | G27: 112.0384615 | I27: 169 | J27: 236 | K27: 319 | L27: 244 | N27: 198 | Q27: 218 | R27: 271 | T27: 162 | U27: 211 | V27: 197 | Y27: 243 | Z27: 260 | AA27: 185 | AB27: 17 | AC27: - | AD27: - | AE27: 22 | AF27: 23 | AG27: 23 | AH27: 23 | AK27: 2 | AL27: 3 | AM27: 3 | AN27: 3 | AO27: 2 | AP27: 2 | AQ27: 2 | AR27: 0 | AS27: 2 | AT27: 3 | AU27: 2 | AV27: 2 | AW27: 3 | AX27: 3 | AY27: 1 | AZ27: 1 | BA27: 2 | BB27: 3 | BC27: 3 | BE27: 2 | BH27: 319 | BI27: 271 | BJ27: 260 | BK27: 244 | BL27: 243 | BM27: 236 | BN27: 218 | BO27: 211 | BP27: 198 | BQ27: 197 | BR27: 185 | BS27: 169 | BT27: 162 | BX27: - | BY27: - | BZ27: 1 | CB27: 2913 | EM27: 23 | EO27: 23 | EP27: (22)
A28: 24 (20) | B28: Berndt Pettersson | C28: Lanternan | D28: 2910 | F28: 14 | G28: 110.2142857 | I28: 227 | J28: 206 | K28: 176 | L28: 205 | N28: 217 | O28: 190 | Q28: 251 | R28: 270 | S28: 226 | T28: 200 | U28: 236 | V28: 315 | Z28: 186 | AA28: 181 | AB28: 17 | AC28: 176 | AD28: - | AE28: 20 | AF28: 24 | AG28: 24 | AH28: 24 | AK28: 2 | AL28: 3 | AM28: 3 | AN28: 3 | AO28: 2 | AP28: 2 | AQ28: 3 | AR28: 1 | AS28: 2 | AT28: 3 | AU28: 3 | AV28: 3 | AW28: 3 | AX28: 3 | AY28: 1 | AZ28: 1 | BA28: 1 | BB28: 2 | BC28: 3 | BE28: 2 | BH28: 315 | BI28: 270 | BJ28: 251 | BK28: 236 | BL28: 227 | BM28: 226 | BN28: 217 | BO28: 206 | BP28: 205 | BQ28: 200 | BR28: 190 | BS28: 186 | BT28: 181 | BU28: 176 | BX28: 176 | BY28: - | BZ28: 0 | CB28: 3086 | EM28: 24 | EO28: 24 | EP28: (20)
A29: 25 (24) | B29: Ewa Malmqvist | C29: Jämjö Hsk | D29: 2875 | F29: 13 | G29: 110.5769231 | I29: 130 | J29: 304 | K29: 219 | L29: 208 | N29: 145 | Q29: 237 | R29: 233 | T29: 164 | U29: 206 | V29: 261 | Y29: 254 | Z29: 218 | AA29: 296 | AB29: 17 | AC29: - | AD29: - | AE29: 24 | AF29: 25 | AG29: 25 | AH29: 25 | AK29: 2 | AL29: 3 | AM29: 3 | AN29: 3 | AO29: 2 | AP29: 2 | AQ29: 2 | AR29: 0 | AS29: 2 | AT29: 3 | AU29: 2 | AV29: 2 | AW29: 3 | AX29: 3 | AY29: 1 | AZ29: 1 | BA29: 2 | BB29: 3 | BC29: 3 | BE29: 2 | BH29: 304 | BI29: 296 | BJ29: 261 | BK29: 254 | BL29: 237 | BM29: 233 | BN29: 219 | BO29: 218 | BP29: 208 | BQ29: 206 | BR29: 164 | BS29: 145 | BT29: 130 | BX29: - | BY29: - | BZ29: 1 | CB29: 2875 | EM29: 25 | EO29: 25 | EP29: (24)
A30: 26 (32) | B30: Marcus Karlsson | C30: Jämjö Hsk | D30: 2836 | F30: 12 | G30: 118.1666667 | J30: 191 | K30: 186 | L30: 261 | N30: 277 | Q30: 209 | R30: 274 | S30: 287 | T30: 255 | U30: 258 | V30: 236 | Y30: 220 | AA30: 182 | AB30: 17 | AC30: - | AD30: - | AE30: 32 | AF30: 26 | AG30: 26 | AH30: 26 | AK30: 1 | AL30: 2 | AM30: 3 | AN30: 3 | AO30: 2 | AP30: 2 | AQ30: 2 | AR30: 0 | AS30: 2 | AT30: 3 | AU30: 3 | AV30: 3 | AW30: 3 | AX30: 3 | AY30: 1 | AZ30: 1 | BA30: 2 | BB30: 2 | BC30: 2 | BE30: 2 | BH30: 287 | BI30: 277 | BJ30: 274 | BK30: 261 | BL30: 258 | BM30: 255 | BN30: 236 | BO30: 220 | BP30: 209 | BQ30: 191 | BR30: 186 | BS30: 182 | BX30: - | BY30: - | BZ30: 2 | CB30: 2836 | EM30: 26 | EO30: 26 | EP30: (32)
A31: 27 (26) | B31: Lukas Bern | C31: Dynapac | D31: 2820 | F31: 12 | G31: 117.5 | I31: 173 | J31: 236 | K31: 204 | L31: 318 | N31: 195 | Q31: 253 | R31: 239 | T31: 238 | U31: 161 | V31: 259 | Y31: 282 | Z31: 262 | AB31: 17 | AC31: - | AD31: - | AE31: 26 | AF31: 27 | AG31: 27 | AH31: 27 | AK31: 2 | AL31: 3 | AM31: 3 | AN31: 3 | AO31: 2 | AP31: 2 | AQ31: 2 | AR31: 0 | AS31: 2 | AT31: 3 | AU31: 2 | AV31: 2 | AW31: 3 | AX31: 3 | AY31: 1 | AZ31: 1 | BA31: 2 | BB31: 3 | BC31: 2 | BE31: 2 | BH31: 318 | BI31: 282 | BJ31: 262 | BK31: 259 | BL31: 253 | BM31: 239 | BN31: 238 | BO31: 236 | BP31: 204 | BQ31: 195 | BR31: 173 | BS31: 161 | BX31: - | BY31: - | BZ31: 2 | CB31: 2820 | EM31: 27 | EO31: 27 | EP31: (26)
A32: 28 (27) | B32: Maj-Britt Jarl | C32: Växjö | D32: 2816 | F32: 13 | G32: 108.3076923 | I32: 200 | J32: 152 | K32: 201 | L32: 260 | M32: 240 | N32: 217 | Q32: 189 | S32: 208 | T32: 190 | V32: 272 | X32: 272 | Z32: 193 | AA32: 222 | AB32: 17 | AC32: - | AD32: - | AE32: 27 | AF32: 28 | AG32: 28 | AH32: 28 | AK32: 2 | AL32: 3 | AM32: 3 | AN32: 3 | AO32: 3 | AP32: 3 | AQ32: 2 | AR32: 0 | AS32: 2 | AT32: 2 | AU32: 2 | AV32: 3 | AW32: 2 | AX32: 2 | AY32: 1 | AZ32: 2 | BA32: 2 | BB32: 2 | BC32: 3 | BE32: 2 | BH32: 272 | BI32: 272 | BJ32: 260 | BK32: 240 | BL32: 222 | BM32: 217 | BN32: 208 | BO32: 201 | BP32: 200 | BQ32: 193 | BR32: 190 | BS32: 189 | BT32: 152 | BX32: - | BY32: - | BZ32: 1 | CB32: 2816 | EM32: 28 | EO32: 28 | EP32: (27)
A33: 29 (24) | B33: Göran Olofsson | C33: Korpen Nybro | D33: 2798 | F33: 13 | G33: 107.6153846 | I33: 189 | J33: 207 | K33: 183 | L33: 280 | M33: 236 | N33: 217 | S33: 268 | T33: 236 | U33: 247 | V33: 193 | X33: 162 | Z33: 189 | AA33: 191 | AB33: 17 | AC33: - | AD33: - | AE33: 24 | AF33: 29 | AG33: 29 | AH33: 29 | AK33: 2 | AL33: 3 | AM33: 3 | AN33: 3 | AO33: 3 | AP33: 3 | AQ33: 2 | AR33: 0 | AS33: 1 | AT33: 1 | AU33: 2 | AV33: 3 | AW33: 3 | AX33: 3 | AY33: 1 | AZ33: 2 | BA33: 2 | BB33: 2 | BC33: 3 | BE33: 2 | BH33: 280 | BI33: 268 | BJ33: 247 | BK33: 236 | BL33: 236 | BM33: 217 | BN33: 207 | BO33: 193 | BP33: 191 | BQ33: 189 | BR33: 189 | BS33: 183 | BT33: 162 | BX33: - | BY33: - | BZ33: 1 | CB33: 2798 | EM33: 29 | EO33: 29 | EP33: (24)
A34: 30 (36) | B34: Dan Madayang | C34: Korpen Åseda | D34: 2750 | F34: 9 | G34: 152.7777778 | N34: 427 | Q34: 235 | S34: 279 | T34: 300 | U34: 290 | V34: 328 | X34: 310 | Z34: 308 | AA34: 273 | AB34: 17 | AC34: - | AD34: - | AE34: 36 | AF34: 30 | AG34: 30 | AH34: 30 | AK34: 1 | AL34: 1 | AM34: 1 | AN34: 1 | AO34: 1 | AP34: 2 | AQ34: 2 | AR34: 0 | AS34: 2 | AT34: 2 | AU34: 2 | AV34: 3 | AW34: 3 | AX34: 3 | AY34: 1 | AZ34: 2 | BA34: 2 | BB34: 2 | BC34: 3 | BE34: 2 | BH34: 427 | BI34: 328 | BJ34: 310 | BK34: 308 | BL34: 300 | BM34: 290 | BN34: 279 | BO34: 273 | BP34: 235 | BX34: - | BY34: - | BZ34: 5 | CB34: 2750 | EM34: 30 | EO34: 30 | EP34: (36)
A35: 31 (29) | B35: Carina Gneupel | C35: Sibbamåla | D35: 2737 | F35: 11 | G35: 124.4090909 | I35: 210 | J35: 254 | K35: 276 | L35: 271 | Q35: 185 | R35: 288 | T35: 210 | U35: 184 | V35: 241 | Y35: 368 | Z35: 250 | AB35: 17 | AC35: - | AD35: - | AE35: 29 | AF35: 31 | AG35: 31 | AH35: 31 | AK35: 2 | AL35: 3 | AM35: 3 | AN35: 3 | AO35: 2 | AP35: 1 | AQ35: 1 | AR35: 0 | AS35: 2 | AT35: 3 | AU35: 2 | AV35: 2 | AW35: 3 | AX35: 3 | AY35: 1 | AZ35: 1 | BA35: 2 | BB35: 3 | BC35: 2 | BE35: 2 | BH35: 368 | BI35: 288 | BJ35: 276 | BK35: 271 | BL35: 254 | BM35: 250 | BN35: 241 | BO35: 210 | BP35: 210 | BQ35: 185 | BR35: 184 | BX35: - | BY35: - | BZ35: 3 | CB35: 2737 | EM35: 31 | EO35: 31 | EP35: (29)
A36: 32 (36) | B36: Dan Hallstan | C36: Växjö | D36: 2707 | F36: 14 | G36: 101.0714286 | I36: 180 | J36: 209 | K36: 166 | L36: 123 | M36: 276 | N36: 224 | O36: 232 | Q36: 159 | S36: 208 | T36: 167 | V36: 166 | X36: 212 | Z36: 241 | AA36: 267 | AB36: 17 | AC36: 123 | AD36: - | AE36: 36 | AF36: 32 | AG36: 32 | AH36: 32 | AK36: 2 | AL36: 3 | AM36: 3 | AN36: 3 | AO36: 3 | AP36: 3 | AQ36: 3 | AR36: 1 | AS36: 2 | AT36: 2 | AU36: 2 | AV36: 3 | AW36: 2 | AX36: 2 | AY36: 1 | AZ36: 2 | BA36: 2 | BB36: 2 | BC36: 3 | BE36: 2 | BH36: 276 | BI36: 267 | BJ36: 241 | BK36: 232 | BL36: 224 | BM36: 212 | BN36: 209 | BO36: 208 | BP36: 180 | BQ36: 167 | BR36: 166 | BS36: 166 | BT36: 159 | BU36: 123 | BX36: 123 | BY36: - | BZ36: 0 | CB36: 2830 | EM36: 32 | EO36: 32 | EP36: (36)
A37: 33 (30) | B37: Tobias Gneupel | C37: Sibbamåla | D37: 2692 | F37: 7 | G37: 192.2857143 | K37: 377 | L37: 321 | N37: 458 | O37: 358 | R37: 459 | U37: 350 | V37: 369 | AB37: 17 | AC37: - | AD37: - | AE37: 30 | AF37: 33 | AG37: =IF(F37>1,ROW(33:33),"-") -> 33 | AH37: 33 | AK37: 1 | AL37: 1 | AM37: 2 | AN37: 3 | AO37: 2 | AP37: 2 | AQ37: 3 | AR37: 1 | AS37: 1 | AT37: 2 | AU37: 2 | AV37: 1 | AW37: 2 | AX37: 3 | AY37: 1 | AZ37: 1 | BA37: 1 | BB37: 1 | BC37: 1 | BE37: 2 | BH37: 459 | BI37: 458 | BJ37: 377 | BK37: 369 | BL37: 358 | BM37: 350 | BN37: 321 | BX37: - | BY37: - | BZ37: 7 | CB37: 2692 | EM37: 33 | EO37: =IF(BE37>=1,AF37,"") -> 33 | EP37: (30)
A38: 34 (36) | B38: Bengt Andersson | C38: Växjö Hsk | D38: 2616 | F38: 12 | G38: 109 | I38: 146 | K38: 153 | L38: 231 | M38: 281 | N38: 256 | Q38: 190 | S38: 310 | U38: 188 | V38: 193 | X38: 203 | Z38: 227 | AA38: 238 | AB38: 17 | AC38: - | AD38: - | AE38: 36 | AF38: 34 | AG38: 34 | AH38: 34 | AK38: 2 | AL38: 2 | AM38: 2 | AN38: 3 | AO38: 3 | AP38: 3 | AQ38: 2 | AR38: 0 | AS38: 2 | AT38: 2 | AU38: 2 | AV38: 2 | AW38: 2 | AX38: 3 | AY38: 1 | AZ38: 2 | BA38: 2 | BB38: 2 | BC38: 3 | BE38: 2 | BH38: 310 | BI38: 281 | BJ38: 256 | BK38: 238 | BL38: 231 | BM38: 227 | BN38: 203 | BO38: 193 | BP38: 190 | BQ38: 188 | BR38: 153 | BS38: 146 | BX38: - | BY38: - | BZ38: 2 | CB38: 2616 | EM38: 34 | EO38: 34 | EP38: (36)
A39: 35 (34) | B39: Bengt Fabbeke | C39: Dynapac | D39: 2579 | F39: 12 | G39: 107.4583333 | I39: 208 | J39: 264 | K39: 259 | L39: 200 | N39: 190 | Q39: 209 | R39: 277 | T39: 195 | V39: 246 | Y39: 173 | Z39: 207 | AA39: 151 | AB39: 17 | AC39: - | AD39: - | AE39: 34 | AF39: 35 | AG39: 35 | AH39: 35 | AK39: 2 | AL39: 3 | AM39: 3 | AN39: 3 | AO39: 2 | AP39: 2 | AQ39: 2 | AR39: 0 | AS39: 2 | AT39: 3 | AU39: 2 | AV39: 2 | AW39: 2 | AX39: 2 | AY39: 1 | AZ39: 1 | BA39: 2 | BB39: 3 | BC39: 3 | BE39: 2 | BH39: 277 | BI39: 264 | BJ39: 259 | BK39: 246 | BL39: 209 | BM39: 208 | BN39: 207 | BO39: 200 | BP39: 195 | BQ39: 190 | BR39: 173 | BS39: 151 | BX39: - | BY39: - | BZ39: 2 | CB39: 2579 | EM39: 35 | EO39: 35 | EP39: (34)
A40: 36 (35) | B40: Anita Fabbeke | C40: Dynapac | D40: 2565 | F40: 11 | G40: 116.5909091 | I40: 244 | J40: 279 | K40: 287 | L40: 249 | N40: 180 | Q40: 249 | R40: 194 | T40: 250 | V40: 194 | Y40: 220 | AA40: 219 | AB40: 17 | AC40: - | AD40: - | AE40: 35 | AF40: 36 | AG40: 36 | AH40: 36 | AK40: 2 | AL40: 3 | AM40: 3 | AN40: 3 | AO40: 2 | AP40: 2 | AQ40: 2 | AR40: 0 | AS40: 2 | AT40: 3 | AU40: 2 | AV40: 2 | AW40: 2 | AX40: 2 | AY40: 1 | AZ40: 1 | BA40: 2 | BB40: 2 | BC40: 2 | BE40: 2 | BH40: 287 | BI40: 279 | BJ40: 250 | BK40: 249 | BL40: 249 | BM40: 244 | BN40: 220 | BO40: 219 | BP40: 194 | BQ40: 194 | BR40: 180 | BX40: - | BY40: - | BZ40: 3 | CB40: 2565 | EM40: 36 | EO40: 36 | EP40: (35)
A41: 37 (32) | B41: Alf Svensson | C41: Korpen Åseda | D41: 2552 | F41: 13 | G41: 98.15384615 | I41: 242 | J41: 180 | K41: 195 | L41: 156 | M41: 193 | N41: 198 | Q41: 249 | T41: 207 | U41: 177 | V41: 205 | X41: 199 | Z41: 210 | AA41: 141 | AB41: 17 | AC41: - | AD41: - | AE41: 32 | AF41: 37 | AG41: 37 | AH41: 37 | AK41: 2 | AL41: 3 | AM41: 3 | AN41: 3 | AO41: 3 | AP41: 3 | AQ41: 2 | AR41: 0 | AS41: 2 | AT41: 2 | AU41: 1 | AV41: 2 | AW41: 3 | AX41: 3 | AY41: 1 | AZ41: 2 | BA41: 2 | BB41: 2 | BC41: 3 | BE41: 2 | BH41: 249 | BI41: 242 | BJ41: 210 | BK41: 207 | BL41: 205 | BM41: 199 | BN41: 198 | BO41: 195 | BP41: 193 | BQ41: 180 | BR41: 177 | BS41: 156 | BT41: 141 | BX41: - | BY41: - | BZ41: 1 | CB41: 2552 | EM41: 37 | EO41: 37 | EP41: (32)
A42: 38 (40) | B42: Kerstin Svensson | C42: Växjö Hsk | D42: 2524 | F42: 14 | G42: 94.82142857 | I42: 186 | J42: 196 | K42: 193 | L42: 223 | N42: 196 | O42: 165 | Q42: 167 | S42: 180 | T42: 165 | U42: 131 | V42: 166 | X42: 259 | Z42: 178 | AA42: 250 | AB42: 17 | AC42: 131 | AD42: - | AE42: 40 | AF42: 38 | AG42: 38 | AH42: 38 | AK42: 2 | AL42: 3 | AM42: 3 | AN42: 3 | AO42: 2 | AP42: 2 | AQ42: 3 | AR42: 1 | AS42: 2 | AT42: 2 | AU42: 2 | AV42: 3 | AW42: 3 | AX42: 3 | AY42: 1 | AZ42: 2 | BA42: 2 | BB42: 2 | BC42: 3 | BE42: 2 | BH42: 259 | BI42: 250 | BJ42: 223 | BK42: 196 | BL42: 196 | BM42: 193 | BN42: 186 | BO42: 180 | BP42: 178 | BQ42: 167 | BR42: 166 | BS42: 165 | BT42: 165 | BU42: 131 | BX42: 131 | BY42: - | BZ42: 0 | CB42: 2655 | EM42: 38 | EO42: 38 | EP42: (40)
A43: 38 (41) | B43: Mats Mårtensson | C43: Jämjö Hsk | D43: 2524 | F43: 13 | G43: 97.07692308 | I43: 144 | J43: 98 | K43: 155 | L43: 193 | N43: 207 | Q43: 163 | R43: 253 | S43: 266 | T43: 144 | U43: 200 | V43: 191 | Y43: 252 | AA43: 258 | AB43: 17 | AC43: - | AD43: - | AE43: 41 | AF43: 38 | AG43: 39 | AH43: 39 | AK43: 2 | AL43: 3 | AM43: 3 | AN43: 3 | AO43: 2 | AP43: 2 | AQ43: 2 | AR43: 0 | AS43: 2 | AT43: 3 | AU43: 3 | AV43: 3 | AW43: 3 | AX43: 3 | AY43: 1 | AZ43: 1 | BA43: 2 | BB43: 2 | BC43: 2 | BE43: 2 | BH43: 266 | BI43: 258 | BJ43: 253 | BK43: 252 | BL43: 207 | BM43: 200 | BN43: 193 | BO43: 191 | BP43: 163 | BQ43: 155 | BR43: 144 | BS43: 144 | BT43: 98 | BX43: - | BY43: - | BZ43: 1 | CB43: 2524 | EM43: 39 | EO43: 38 | EP43: (41)
A44: 40 (30) | B44: Leif Sundahl | C44: Carlskrona | D44: 2507 | F44: 12 | G44: 104.4583333 | I44: 168 | J44: 252 | K44: 125 | L44: 259 | N44: 246 | Q44: 215 | R44: 303 | S44: 186 | T44: 144 | U44: 102 | V44: 306 | Z44: 201 | AB44: 17 | AC44: - | AD44: - | AE44: 30 | AF44: 40 | AG44: 40 | AH44: 40 | AK44: 2 | AL44: 3 | AM44: 3 | AN44: 3 | AO44: 2 | AP44: 2 | AQ44: 2 | AR44: 0 | AS44: 2 | AT44: 3 | AU44: 3 | AV44: 3 | AW44: 3 | AX44: 3 | AY44: 1 | AZ44: 1 | BA44: 1 | BB44: 2 | BC44: 2 | BE44: 2 | BH44: 306 | BI44: 303 | BJ44: 259 | BK44: 252 | BL44: 246 | BM44: 215 | BN44: 201 | BO44: 186 | BP44: 168 | BQ44: 144 | BR44: 125 | BS44: 102 | BX44: - | BY44: - | BZ44: 2 | CB44: 2507 | EM44: 40 | EO44: 40 | EP44: (30)
A45: 41 (36) | B45: Mikael Bodi | C45: Växjö Hsk | D45: 2442 | F45: 14 | G45: 90.10714286 | I45: 211 | J45: 138 | K45: 222 | L45: 197 | M45: 262 | N45: 167 | Q45: 226 | S45: 231 | T45: 177 | U45: 143 | V45: 157 | X45: 204 | Z45: 107 | AA45: 81 | AB45: 17 | AC45: 81 | AD45: - | AE45: 36 | AF45: 41 | AG45: 41 | AH45: 41 | AK45: 2 | AL45: 3 | AM45: 3 | AN45: 3 | AO45: 3 | AP45: 3 | AQ45: 2 | AR45: 0 | AS45: 2 | AT45: 2 | AU45: 2 | AV45: 3 | AW45: 3 | AX45: 3 | AY45: 1 | AZ45: 2 | BA45: 2 | BB45: 2 | BC45: 3 | BE45: 2 | BH45: 262 | BI45: 231 | BJ45: 226 | BK45: 222 | BL45: 211 | BM45: 204 | BN45: 197 | BO45: 177 | BP45: 167 | BQ45: 157 | BR45: 143 | BS45: 138 | BT45: 107 | BU45: 81 | BX45: 81 | BY45: - | BZ45: 0 | CB45: 2523 | EM45: 41 | EO45: 41 | EP45: (36)
A46: 42 (41) | B46: Sune Olsson | C46: Korpen Nybro | D46: 2414 | F46: 11 | G46: 109.7272727 | I46: 205 | K46: 225 | L46: 264 | N46: 231 | Q46: 123 | S46: 286 | T46: 185 | U46: 187 | V46: 212 | Z46: 203 | AA46: 293 | AB46: 17 | AC46: - | AD46: - | AE46: 41 | AF46: 42 | AG46: 42 | AH46: 42 | AK46: 2 | AL46: 2 | AM46: 2 | AN46: 3 | AO46: 2 | AP46: 2 | AQ46: 2 | AR46: 0 | AS46: 2 | AT46: 2 | AU46: 2 | AV46: 3 | AW46: 3 | AX46: 3 | AY46: 1 | AZ46: 1 | BA46: 1 | BB46: 2 | BC46: 3 | BE46: 2 | BH46: 293 | BI46: 286 | BJ46: 264 | BK46: 231 | BL46: 225 | BM46: 212 | BN46: 205 | BO46: 203 | BP46: 187 | BQ46: 185 | BR46: 123 | BX46: - | BY46: - | BZ46: 3 | CB46: 2414 | EM46: 42 | EO46: 42 | EP46: (41)
A47: 43 (43) | B47: Ingegerd Pettersson | C47: Lanternan | D47: 2397 | F47: 12 | G47: 99.875 | J47: 217 | K47: 211 | L47: 235 | N47: 205 | Q47: 173 | R47: 237 | T47: 182 | U47: 92 | V47: 309 | Y47: 186 | Z47: 131 | AA47: 219 | AB47: 17 | AC47: - | AD47: - | AE47: 43 | AF47: 43 | AG47: 43 | AH47: 43 | AK47: 1 | AL47: 2 | AM47: 3 | AN47: 3 | AO47: 2 | AP47: 2 | AQ47: 2 | AR47: 0 | AS47: 2 | AT47: 3 | AU47: 2 | AV47: 2 | AW47: 3 | AX47: 3 | AY47: 1 | AZ47: 1 | BA47: 2 | BB47: 3 | BC47: 3 | BE47: 2 | BH47: 309 | BI47: 237 | BJ47: 235 | BK47: 219 | BL47: 217 | BM47: 211 | BN47: 205 | BO47: 186 | BP47: 182 | BQ47: 173 | BR47: 131 | BS47: 92 | BX47: - | BY47: - | BZ47: 2 | CB47: 2397 | EM47: 43 | EO47: 43 | EP47: (43)
A48: 44 (45) | B48: Bela Bodi | C48: Växjö | D48: 2344 | F48: 10 | G48: 117.2 | M48: 218 | N48: 253 | Q48: 215 | S48: 248 | T48: 256 | U48: 225 | V48: 206 | X48: 229 | Z48: 272 | AA48: 222 | AB48: 17 | AC48: - | AD48: - | AE48: 45 | AF48: 44 | AG48: 44 | AH48: 44 | AK48: 1 | AL48: 1 | AM48: 1 | AN48: 1 | AO48: 2 | AP48: 3 | AQ48: 2 | AR48: 0 | AS48: 2 | AT48: 2 | AU48: 2 | AV48: 3 | AW48: 3 | AX48: 3 | AY48: 1 | AZ48: 2 | BA48: 2 | BB48: 2 | BC48: 3 | BE48: 2 | BH48: 272 | BI48: 256 | BJ48: 253 | BK48: 248 | BL48: 229 | BM48: 225 | BN48: 222 | BO48: 218 | BP48: 215 | BQ48: 206 | BX48: - | BY48: - | BZ48: 4 | CB48: 2344 | EM48: 44 | EO48: 44 | EP48: (45)
A49: 45 (43) | B49: Klara Larsson | C49: Värends Hsk | D49: 2258 | F49: 12 | G49: 94.08333333 | I49: 190 | J49: 129 | K49: 206 | L49: 139 | M49: 203 | S49: 246 | T49: 162 | U49: 193 | V49: 178 | X49: 194 | Z49: 197 | AA49: 221 | AB49: 17 | AC49: - | AD49: - | AE49: 43 | AF49: 45 | AG49: 45 | AH49: 45 | AK49: 2 | AL49: 3 | AM49: 3 | AN49: 3 | AO49: 3 | AP49: 2 | AQ49: 1 | AR49: 0 | AS49: 1 | AT49: 1 | AU49: 2 | AV49: 3 | AW49: 3 | AX49: 3 | AY49: 1 | AZ49: 2 | BA49: 2 | BB49: 2 | BC49: 3 | BE49: 2 | BH49: 246 | BI49: 221 | BJ49: 206 | BK49: 203 | BL49: 197 | BM49: 194 | BN49: 193 | BO49: 190 | BP49: 178 | BQ49: 162 | BR49: 139 | BS49: 129 | BX49: - | BY49: - | BZ49: 2 | CB49: 2258 | EM49: 45 | EO49: 45 | EP49: (43)
A50: 46 (46) | B50: Johan Johansson | C50: Tingsryd | D50: 2255 | F50: 7 | G50: 161.0714286 | L50: 281 | S50: 338 | T50: 343 | U50: 337 | X50: 284 | Z50: 291 | AA50: 381 | AB50: 17 | AC50: - | AD50: - | AE50: 46 | AF50: 46 | AG50: 46 | AH50: 46 | AK50: 1 | AL50: 1 | AM50: 1 | AN50: 2 | AO50: 2 | AP50: 1 | AQ50: 1 | AR50: 0 | AS50: 1 | AT50: 1 | AU50: 2 | AV50: 3 | AW50: 3 | AX50: 2 | AY50: 0 | AZ50: 2 | BA50: 2 | BB50: 2 | BC50: 3 | BE50: 2 | BH50: 381 | BI50: 343 | BJ50: 338 | BK50: 337 | BL50: 291 | BM50: 284 | BN50: 281 | BX50: - | BY50: - | BZ50: 7 | CB50: 2255 | EM50: 46 | EO50: 46 | EP50: (46)
A51: 47 (47) | B51: Nathalie Sundahl | C51: Carlskrona | D51: 2247 | F51: 13 | G51: 86.42307692 | I51: 88 | J51: 186 | K51: 138 | L51: 246 | N51: 196 | Q51: 121 | S51: 135 | T51: 143 | U51: 159 | V51: 194 | Y51: 100 | Z51: 300 | AA51: 241 | AB51: 17 | AC51: - | AD51: - | AE51: 47 | AF51: 47 | AG51: 47 | AH51: 47 | AK51: 2 | AL51: 3 | AM51: 3 | AN51: 3 | AO51: 2 | AP51: 2 | AQ51: 2 | AR51: 0 | AS51: 2 | AT51: 2 | AU51: 2 | AV51: 3 | AW51: 3 | AX51: 3 | AY51: 1 | AZ51: 1 | BA51: 2 | BB51: 3 | BC51: 3 | BE51: 2 | BH51: 300 | BI51: 246 | BJ51: 241 | BK51: 196 | BL51: 194 | BM51: 186 | BN51: 159 | BO51: 143 | BP51: 138 | BQ51: 135 | BR51: 121 | BS51: 100 | BT51: 88 | BX51: - | BY51: - | BZ51: 1 | CB51: 2247 | EM51: 47 | EO51: 47 | EP51: (47)
A52: 48 (47) | B52: Nils-Åke Hansson | C52: Korpen Nybro | D52: 2239 | F52: 12 | G52: 93.29166667 | J52: 164 | K52: 177 | L52: 168 | M52: 218 | N52: 134 | Q52: 166 | S52: 227 | T52: 156 | U52: 183 | V52: 226 | X52: 187 | AA52: 233 | AB52: 17 | AC52: - | AD52: - | AE52: 47 | AF52: 48 | AG52: 48 | AH52: 48 | AK52: 1 | AL52: 2 | AM52: 3 | AN52: 3 | AO52: 3 | AP52: 3 | AQ52: 2 | AR52: 0 | AS52: 2 | AT52: 2 | AU52: 2 | AV52: 3 | AW52: 3 | AX52: 3 | AY52: 1 | AZ52: 2 | BA52: 2 | BB52: 1 | BC52: 2 | BE52: 2 | BH52: 233 | BI52: 227 | BJ52: 226 | BK52: 218 | BL52: 187 | BM52: 183 | BN52: 177 | BO52: 168 | BP52: 166 | BQ52: 164 | BR52: 156 | BS52: 134 | BX52: - | BY52: - | BZ52: 2 | CB52: 2239 | EM52: 48 | EO52: 48 | EP52: (47)
A53: 49 (47) | B53: Lars-Åke Karlsson | C53: Jämjö Hsk | D53: 2208 | F53: 13 | G53: 84.92307692 | J53: 161 | K53: 236 | L53: 176 | N53: 162 | Q53: 130 | R53: 197 | S53: 253 | T53: 150 | U53: 132 | V53: 171 | Y53: 185 | Z53: 131 | AA53: 124 | AB53: 17 | AC53: - | AD53: - | AE53: 47 | AF53: 49 | AG53: 49 | AH53: 49 | AK53: 1 | AL53: 2 | AM53: 3 | AN53: 3 | AO53: 2 | AP53: 2 | AQ53: 2 | AR53: 0 | AS53: 2 | AT53: 3 | AU53: 3 | AV53: 3 | AW53: 3 | AX53: 3 | AY53: 1 | AZ53: 1 | BA53: 2 | BB53: 3 | BC53: 3 | BE53: 2 | BH53: 253 | BI53: 236 | BJ53: 197 | BK53: 185 | BL53: 176 | BM53: 171 | BN53: 162 | BO53: 161 | BP53: 150 | BQ53: 132 | BR53: 131 | BS53: 130 | BT53: 124 | BX53: - | BY53: - | BZ53: 1 | CB53: 2208 | EM53: 49 | EO53: 49 | EP53: (47)
A54: 50 (51) | B54: Jan Petersson | C54: Lanternan | D54: 2158 | F54: 11 | G54: 98.09090909 | J54: 200 | K54: 187 | L54: 179 | N54: 217 | Q54: 158 | R54: 177 | T54: 229 | U54: 223 | V54: 207 | Z54: 192 | AA54: 189 | AB54: 17 | AC54: - | AD54: - | AE54: 51 | AF54: 50 | AG54: 50 | AH54: 50 | AK54: 1 | AL54: 2 | AM54: 3 | AN54: 3 | AO54: 2 | AP54: 2 | AQ54: 2 | AR54: 0 | AS54: 2 | AT54: 3 | AU54: 2 | AV54: 2 | AW54: 3 | AX54: 3 | AY54: 1 | AZ54: 1 | BA54: 1 | BB54: 2 | BC54: 3 | BE54: 2 | BH54: 229 | BI54: 223 | BJ54: 217 | BK54: 207 | BL54: 200 | BM54: 192 | BN54: 189 | BO54: 187 | BP54: 179 | BQ54: 177 | BR54: 158 | BX54: - | BY54: - | BZ54: 3 | CB54: 2158 | EM54: 50 | EO54: 50 | EP54: (51)
A55: 51 (55) | B55: Marianne Karlsson | C55: Jämjö Hsk | D55: 2006 | F55: 10 | G55: 100.3 | J55: 148 | K55: 229 | L55: 168 | Q55: 161 | R55: 294 | S55: 196 | U55: 180 | V55: 179 | Y55: 173 | AA55: 278 | AB55: 17 | AC55: - | AD55: - | AE55: 55 | AF55: 51 | AG55: 51 | AH55: 51 | AK55: 1 | AL55: 2 | AM55: 3 | AN55: 3 | AO55: 2 | AP55: 1 | AQ55: 1 | AR55: 0 | AS55: 2 | AT55: 3 | AU55: 3 | AV55: 2 | AW55: 2 | AX55: 3 | AY55: 1 | AZ55: 1 | BA55: 2 | BB55: 2 | BC55: 2 | BE55: 2 | BH55: 294 | BI55: 278 | BJ55: 229 | BK55: 196 | BL55: 180 | BM55: 179 | BN55: 173 | BO55: 168 | BP55: 161 | BQ55: 148 | BX55: - | BY55: - | BZ55: 4 | CB55: 2006 | EM55: 51 | EO55: 51 | EP55: (55)
A56: 52 (50) | B56: Lisbeth Nygaard-Karlsson | C56: Tingsryd | D56: 1992 | F56: 7 | G56: 142.2857143 | L56: 279 | N56: 303 | T56: 279 | V56: 371 | X56: 246 | Z56: 256 | AA56: 258 | AB56: 17 | AC56: - | AD56: - | AE56: 50 | AF56: 52 | AG56: 52 | AH56: 52 | AK56: 1 | AL56: 1 | AM56: 1 | AN56: 2 | AO56: 2 | AP56: 2 | AQ56: 2 | AR56: 0 | AS56: 1 | AT56: 1 | AU56: 1 | AV56: 2 | AW56: 2 | AX56: 2 | AY56: 1 | AZ56: 2 | BA56: 2 | BB56: 2 | BC56: 3 | BE56: 2 | BH56: 371 | BI56: 303 | BJ56: 279 | BK56: 279 | BL56: 258 | BM56: 256 | BN56: 246 | BX56: - | BY56: - | BZ56: 7 | CB56: 1992 | EM56: 52 | EO56: 52 | EP56: (50)
A57: 53 (53) | B57: Christian Balsiger | C57: Värends Hsk | D57: 1968 | F57: 9 | G57: 109.3333333 | I57: 232 | J57: 136 | K57: 234 | L57: 228 | T57: 199 | V57: 206 | X57: 203 | Z57: 297 | AA57: 233 | AB57: 17 | AC57: - | AD57: - | AE57: 53 | AF57: 53 | AG57: 53 | AH57: 53 | AK57: 2 | AL57: 3 | AM57: 3 | AN57: 3 | AO57: 2 | AP57: 1 | AQ57: 1 | AR57: 0 | AS57: 1 | AT57: 1 | AU57: 1 | AV57: 2 | AW57: 2 | AX57: 2 | AY57: 1 | AZ57: 2 | BA57: 2 | BB57: 2 | BC57: 3 | BE57: 2 | BH57: 297 | BI57: 234 | BJ57: 233 | BK57: 232 | BL57: 228 | BM57: 206 | BN57: 203 | BO57: 199 | BP57: 136 | BX57: - | BY57: - | BZ57: 5 | CB57: 1968 | EM57: 53 | EO57: 53 | EP57: (53)
A58: 54 (51) | B58: Peter Edlund | C58: Dynapac | D58: 1880 | F58: 9 | G58: 104.4444444 | J58: 187 | K58: 252 | N58: 189 | O58: 177 | Q58: 172 | R58: 279 | U58: 262 | V58: 167 | Y58: 195 | AB58: 17 | AC58: - | AD58: - | AE58: 51 | AF58: 54 | AG58: 54 | AH58: 54 | AK58: 1 | AL58: 2 | AM58: 3 | AN58: 2 | AO58: 1 | AP58: 2 | AQ58: 3 | AR58: 1 | AS58: 2 | AT58: 3 | AU58: 2 | AV58: 1 | AW58: 2 | AX58: 3 | AY58: 1 | AZ58: 1 | BA58: 2 | BB58: 2 | BC58: 1 | BE58: 2 | BH58: 279 | BI58: 262 | BJ58: 252 | BK58: 195 | BL58: 189 | BM58: 187 | BN58: 177 | BO58: 172 | BP58: 167 | BX58: - | BY58: - | BZ58: 5 | CB58: 1880 | EM58: 54 | EO58: 54 | EP58: (51)
A59: 55 (54) | B59: Roland Sjöstrand | C59: Hsk Tingzås | D59: 1843 | F59: 14 | G59: 69.28571429 | I59: 122 | J59: 116 | K59: 139 | L59: 113 | N59: 206 | O59: 130 | Q59: 109 | S59: 166 | T59: 128 | U59: 171 | V59: 220 | X59: 112 | Z59: 97 | AA59: 111 | AB59: 17 | AC59: 97 | AD59: - | AE59: 54 | AF59: 55 | AG59: 55 | AH59: 55 | AK59: 2 | AL59: 3 | AM59: 3 | AN59: 3 | AO59: 2 | AP59: 2 | AQ59: 3 | AR59: 1 | AS59: 2 | AT59: 2 | AU59: 2 | AV59: 3 | AW59: 3 | AX59: 3 | AY59: 1 | AZ59: 2 | BA59: 2 | BB59: 2 | BC59: 3 | BE59: 2 | BH59: 220 | BI59: 206 | BJ59: 171 | BK59: 166 | BL59: 139 | BM59: 130 | BN59: 128 | BO59: 122 | BP59: 116 | BQ59: 113 | BR59: 112 | BS59: 111 | BT59: 109 | BU59: 97 | BX59: 97 | BY59: - | BZ59: 0 | CB59: 1940 | EM59: 55 | EO59: 55 | EP59: (54)
A60: 56 (55) | B60: Sebastian Israelsson | C60: Sibbamåla | D60: 1747 | F60: 9 | G60: 97.05555556 | I60: 170 | J60: 237 | K60: 204 | L60: 230 | R60: 142 | T60: 170 | U60: 165 | V60: 236 | Z60: 193 | AB60: 17 | AC60: - | AD60: - | AE60: 55 | AF60: 56 | AG60: 56 | AH60: 56 | AK60: 2 | AL60: 3 | AM60: 3 | AN60: 3 | AO60: 2 | AP60: 1 | AQ60: 1 | AR60: 0 | AS60: 1 | AT60: 2 | AU60: 2 | AV60: 2 | AW60: 3 | AX60: 3 | AY60: 1 | AZ60: 1 | BA60: 1 | BB60: 2 | BC60: 2 | BE60: 2 | BH60: 237 | BI60: 236 | BJ60: 230 | BK60: 204 | BL60: 193 | BM60: 170 | BN60: 170 | BO60: 165 | BP60: 142 | BX60: - | BY60: - | BZ60: 5 | CB60: 1747 | EM60: 56 | EO60: 56 | EP60: (55)
A61: 57 (55) | B61: Lennart Karlsson | C61: Tingsryd | D61: 1722 | F61: 7 | G61: 123 | L61: 276 | N61: 183 | T61: 263 | V61: 322 | X61: 238 | Z61: 206 | AA61: 234 | AB61: 17 | AC61: - | AD61: - | AE61: 55 | AF61: 57 | AG61: 57 | AH61: 57 | AK61: 1 | AL61: 1 | AM61: 1 | AN61: 2 | AO61: 2 | AP61: 2 | AQ61: 2 | AR61: 0 | AS61: 1 | AT61: 1 | AU61: 1 | AV61: 2 | AW61: 2 | AX61: 2 | AY61: 1 | AZ61: 2 | BA61: 2 | BB61: 2 | BC61: 3 | BE61: 2 | BH61: 322 | BI61: 276 | BJ61: 263 | BK61: 238 | BL61: 234 | BM61: 206 | BN61: 183 | BX61: - | BY61: - | BZ61: 7 | CB61: 1722 | EM61: 57 | EO61: 57 | EP61: (55)
A62: 58 (58) | B62: Thomas Dahl | C62: Växjö | D62: 1719 | F62: 10 | G62: 85.95 | J62: 172 | M62: 166 | N62: 150 | Q62: 197 | S62: 184 | T62: 123 | U62: 224 | V62: 166 | X62: 179 | Z62: 158 | AB62: 17 | AC62: - | AD62: - | AE62: 58 | AF62: 58 | AG62: 58 | AH62: 58 | AK62: 1 | AL62: 2 | AM62: 2 | AN62: 1 | AO62: 2 | AP62: 3 | AQ62: 2 | AR62: 0 | AS62: 2 | AT62: 2 | AU62: 2 | AV62: 3 | AW62: 3 | AX62: 3 | AY62: 1 | AZ62: 2 | BA62: 2 | BB62: 2 | BC62: 2 | BE62: 2 | BH62: 224 | BI62: 197 | BJ62: 184 | BK62: 179 | BL62: 172 | BM62: 166 | BN62: 166 | BO62: 158 | BP62: 150 | BQ62: 123 | BX62: - | BY62: - | BZ62: 4 | CB62: 1719 | EM62: 58 | EO62: 58 | EP62: (58)
A63: 59 (59) | B63: Solveig Axelsson | C63: Alvesta | D63: 1663 | F63: 10 | G63: 83.15 | I63: 244 | K63: 207 | L63: 238 | M63: 159 | O63: 92 | Q63: 153 | T63: 128 | U63: 172 | Z63: 161 | AA63: 109 | AB63: 17 | AC63: - | AD63: - | AE63: 59 | AF63: 59 | AG63: 59 | AH63: 59 | AK63: 2 | AL63: 2 | AM63: 2 | AN63: 3 | AO63: 3 | AP63: 2 | AQ63: 2 | AR63: 1 | AS63: 2 | AT63: 2 | AU63: 1 | AV63: 2 | AW63: 3 | AX63: 2 | AY63: 0 | AZ63: 1 | BA63: 1 | BB63: 2 | BC63: 3 | BE63: 2 | BH63: 244 | BI63: 238 | BJ63: 207 | BK63: 172 | BL63: 161 | BM63: 159 | BN63: 153 | BO63: 128 | BP63: 109 | BQ63: 92 | BX63: - | BY63: - | BZ63: 4 | CB63: 1663 | EM63: 59 | EO63: 59 | EP63: (59)
A64: 60 (69) | B64: Mathias Karlberg | C64: Jämjö Hsk | D64: 1561 | F64: 6 | G64: 130.0833333 | Q64: 211 | T64: 194 | V64: 273 | Y64: 326 | Z64: 211 | AA64: 346 | AB64: 17 | AC64: - | AD64: - | AE64: 69 | AF64: 60 | AG64: 60 | AH64: 60 | AK64: 1 | AL64: 1 | AM64: 1 | AN64: 1 | AO64: 1 | AP64: 1 | AQ64: 1 | AR64: 0 | AS64: 2 | AT64: 2 | AU64: 1 | AV64: 2 | AW64: 2 | AX64: 2 | AY64: 1 | AZ64: 1 | BA64: 2 | BB64: 3 | BC64: 3 | BE64: 2 | BH64: 346 | BI64: 326 | BJ64: 273 | BK64: 211 | BL64: 211 | BM64: 194 | BX64: - | BY64: - | BZ64: 8 | CB64: 1561 | EM64: 60 | EO64: 60 | EP64: (69)
A65: 61 (59) | B65: Alf Johansson | C65: Värends Hsk | D65: 1510 | F65: 10 | G65: 75.5 | I65: 152 | J65: 95 | K65: 163 | L65: 156 | M65: 164 | S65: 226 | U65: 173 | X65: 116 | Z65: 151 | AA65: 114 | AB65: 17 | AC65: - | AD65: - | AE65: 59 | AF65: 61 | AG65: 61 | AH65: 61 | AK65: 2 | AL65: 3 | AM65: 3 | AN65: 3 | AO65: 3 | AP65: 2 | AQ65: 1 | AR65: 0 | AS65: 1 | AT65: 1 | AU65: 2 | AV65: 2 | AW65: 2 | AX65: 2 | AY65: 0 | AZ65: 2 | BA65: 2 | BB65: 2 | BC65: 3 | BE65: 2 | BH65: 226 | BI65: 173 | BJ65: 164 | BK65: 163 | BL65: 156 | BM65: 152 | BN65: 151 | BO65: 116 | BP65: 114 | BQ65: 95 | BX65: - | BY65: - | BZ65: 4 | CB65: 1510 | EM65: 61 | EO65: 61 | EP65: (59)
A66: 62 (61) | B66: Louise Tollstam | C66: Dynapac | D66: 1460 | F66: 8 | G66: 91.25 | J66: 210 | K66: 168 | L66: 189 | N66: 171 | Q66: 166 | R66: 238 | V66: 156 | Y66: 162 | AB66: 17 | AC66: - | AD66: - | AE66: 61 | AF66: 62 | AG66: 62 | AH66: 62 | AK66: 1 | AL66: 2 | AM66: 3 | AN66: 3 | AO66: 2 | AP66: 2 | AQ66: 2 | AR66: 0 | AS66: 2 | AT66: 3 | AU66: 2 | AV66: 1 | AW66: 1 | AX66: 2 | AY66: 1 | AZ66: 1 | BA66: 2 | BB66: 2 | BC66: 1 | BE66: 2 | BH66: 238 | BI66: 210 | BJ66: 189 | BK66: 171 | BL66: 168 | BM66: 166 | BN66: 162 | BO66: 156 | BX66: - | BY66: - | BZ66: 6 | CB66: 1460 | EM66: 62 | EO66: 62 | EP66: (61)
A67: 63 (63) | B67: Armin Sisic | C67: Värends Hsk | D67: 1459 | F67: 4 | G67: 182.375 | I67: 319 | N67: 355 | X67: 343 | Z67: 442 | AB67: 17 | AC67: - | AD67: - | AE67: 63 | AF67: 63 | AG67: 63 | AH67: 63 | AK67: 2 | AL67: 2 | AM67: 1 | AN67: 1 | AO67: 1 | AP67: 2 | AQ67: 2 | AR67: 0 | AS67: 1 | AT67: 1 | AU67: 1 | AV67: 1 | AW67: 1 | AX67: 1 | AY67: 0 | AZ67: 2 | BA67: 2 | BB67: 2 | BC67: 2 | BE67: 2 | BH67: 442 | BI67: 355 | BJ67: 343 | BK67: 319 | BX67: - | BY67: - | BZ67: 10 | CB67: 1459 | EM67: 63 | EO67: 63 | EP67: (63)
A68: 64 (64) | B68: Ulrika Strandahl | C68: Växjö | D68: 1438 | F68: 10 | G68: 71.9 | I68: 100 | J68: 171 | L68: 84 | M68: 124 | N68: 127 | Q68: 108 | S68: 247 | U68: 227 | V68: 114 | AA68: 136 | AB68: 17 | AC68: - | AD68: - | AE68: 64 | AF68: 64 | AG68: 64 | AH68: 64 | AK68: 2 | AL68: 3 | AM68: 2 | AN68: 2 | AO68: 3 | AP68: 3 | AQ68: 2 | AR68: 0 | AS68: 2 | AT68: 2 | AU68: 2 | AV68: 2 | AW68: 2 | AX68: 3 | AY68: 1 | AZ68: 1 | BA68: 1 | BB68: 1 | BC68: 2 | BE68: 2 | BH68: 247 | BI68: 227 | BJ68: 171 | BK68: 136 | BL68: 127 | BM68: 124 | BN68: 114 | BO68: 108 | BP68: 100 | BQ68: 84 | BX68: - | BY68: - | BZ68: 4 | CB68: 1438 | EM68: 64 | EO68: 64 | EP68: (64)
A69: 65 (64) | B69: Gilbert Pettersson | C69: Lanternan | D69: =SUM(BH69:BT69) -> 1430 | F69: =COUNT(I69:AA69) -> 7 | G69: =SUM((CB69)/(F69*2)) -> 102.1428571 | I69: 156 | L69: 224 | N69: 294 | Q69: 158 | R69: 223 | U69: 173 | Z69: 202 | AB69: =SUM($I$3:$AA$3) -> 17 | AC69: =BX69 -> - | AD69: =BY69 -> - | AE69: 64 | AF69: 65 | AG69: =IF(F69>1,ROW(65:65),"-") -> 65 | AH69: 65 | AK69: 2 | AL69: 2 | AM69: 1 | AN69: 2 | AO69: 2 | AP69: 2 | AQ69: 2 | AR69: 0 | AS69: 2 | AT69: 3 | AU69: 2 | AV69: 1 | AW69: 2 | AX69: 2 | AY69: 0 | AZ69: 1 | BA69: 1 | BB69: 2 | BC69: 2 | BE69: =IF(H69="x",1,2) -> 2 | BH69: 294 | BI69: 224 | BJ69: 223 | BK69: 202 | BL69: 173 | BM69: 158 | BN69: 156 | BX69: - | BY69: - | BZ69: =SUM(AB69-F69)-3 -> 7 | CB69: =SUM(BH69:BW69) -> 1430 | EM69: 65 | EO69: =IF(BE69>=1,AF69,"") -> 65 | EP69: =IF(BE69>1,"("&AE69&")","("&AG69&")") -> (64)
A70: 66 (67) | B70: Martin Antic | C70: Värends Hsk | D70: 1410 | F70: 9 | G70: 78.33333333 | I70: 135 | J70: 170 | K70: 128 | L70: 143 | S70: 160 | T70: 145 | X70: 196 | Z70: 209 | AA70: 124 | AB70: 17 | AC70: - | AD70: - | AE70: 67 | AF70: 66 | AG70: 66 | AH70: 66 | AK70: =COUNT($I$3,I70,H70) -> 2 | AL70: =COUNT($J$3,J70,I70) -> 3 | AM70: =COUNT($K$3,K70,J70) -> 3 | AN70: =COUNT($L$3,L70,K70) -> 3 | AO70: =COUNT($M$3,M70,L70) -> 2 | AP70: =COUNT($N$3,N70,M70) -> 1 | AQ70: =COUNT($O$3,O70,N70) -> 1 | AR70: =COUNT($P$3,P70,O70) -> 0 | AS70: =COUNT($Q$3,Q70,P70) -> 1 | AT70: =COUNT($R$3,R70,Q70) -> 1 | AU70: =COUNT($S$3,S70,R70) -> 2 | AV70: =COUNT($T$3,T70,S70) -> 3 | AW70: =COUNT($U$3,U70,T70) -> 2 | AX70: =COUNT($V$3,V70,U70) -> 1 | AY70: =COUNT($W$3,W70,V70) -> 0 | AZ70: =COUNT($X$3,X70,W70) -> 2 | BA70: =COUNT($Y$3,Y70,X70) -> 2 | BB70: =COUNT($Z$3,Z70,Y70) -> 2 | BC70: =COUNT($AA$3,AA70,Z70) -> 3 | BE70: 2 | BH70: =IF($F70>0,LARGE($I70:$AA70,1),"") -> 209 | BI70: =IF($F70>1,LARGE($I70:$AA70,2),"") -> 196 | BJ70: =IF($F70>2,LARGE($I70:$AA70,3),"") -> 170 | BK70: =IF($F70>3,LARGE($I70:$AA70,4),"") -> 160 | BL70: =IF($F70>4,LARGE($I70:$AA70,5),"") -> 145 | BM70: =IF($F70>5,LARGE($I70:$AA70,6),"") -> 143 | BN70: =IF($F70>6,LARGE($I70:$AA70,7),"") -> 135 | BO70: =IF($F70>7,LARGE($I70:$AA70,8),"") -> 128 | BP70: =IF($F70>8,LARGE($I70:$AA70,9),"") -> 124 | BQ70: =IF($F70>9,LARGE($I70:$AA70,10),"") ->  | BR70: =IF($F70>10,LARGE($I70:$AA70,11),"") ->  | BS70: =IF($F70>11,LARGE($I70:$AA70,12),"") ->  | BT70: =IF($F70>12,LARGE($I70:$AA70,13),"") ->  | BU70: =IF($F70>13,LARGE($I70:$AA70,14),"") ->  | BV70: =IF($F70>14,LARGE($I70:$AA70,15),"") ->  | BW70: =IF($F70>15,LARGE($I70:$AA70,16),"") ->  | BX70: =IF($F70>13,LARGE($I70:$AA70,14),"-") -> - | BY70: =IF($F70>14,LARGE($I70:$AA70,15),"-") -> - | BZ70: 5 | CB70: 1410 | EM70: 66 | EO70: 66 | EP70: (67)
A71: 67 (61) | B71: Anders Karlsson | C71: Värends Hsk | D71: 1401 | F71: 9 | G71: 77.83333333 | I71: 149 | J71: 87 | K71: 85 | L71: 91 | O71: 108 | S71: 267 | T71: 166 | X71: 310 | Z71: 138 | AB71: 17 | AC71: - | AD71: - | AE71: 61 | AF71: =IF(D71<D70,AH71,AF70) -> 67 | AG71: 67 | AH71: 67 | AK71: 2 | AL71: 3 | AM71: 3 | AN71: 3 | AO71: 2 | AP71: 1 | AQ71: 2 | AR71: 1 | AS71: 1 | AT71: 1 | AU71: 2 | AV71: 3 | AW71: 2 | AX71: 1 | AY71: 0 | AZ71: 2 | BA71: 2 | BB71: 2 | BC71: 2 | BE71: 2 | BH71: 310 | BI71: 267 | BJ71: 166 | BK71: 149 | BL71: 138 | BM71: 108 | BN71: 91 | BO71: 87 | BP71: 85 | BX71: - | BY71: - | BZ71: 5 | CB71: 1401 | EM71: 67 | EO71: 67 | EP71: (61)
A72: 68 (66) | B72: Göran Persson | C72: Dynapac | D72: 1305 | F72: 8 | G72: 81.5625 | I72: 163 | J72: 156 | K72: 112 | N72: 197 | Q72: 165 | R72: 154 | S72: 161 | U72: 197 | AB72: 17 | AC72: - | AD72: - | AE72: 66 | AF72: 68 | AG72: 68 | AH72: 68 | AK72: 2 | AL72: 3 | AM72: 3 | AN72: 2 | AO72: 1 | AP72: 2 | AQ72: 2 | AR72: 0 | AS72: 2 | AT72: 3 | AU72: 3 | AV72: 2 | AW72: 2 | AX72: 2 | AY72: 0 | AZ72: 1 | BA72: 1 | BB72: 1 | BC72: 1 | BE72: 2 | BH72: 197 | BI72: 197 | BJ72: 165 | BK72: 163 | BL72: 161 | BM72: 156 | BN72: 154 | BO72: 112 | BX72: - | BY72: - | BZ72: 6 | CB72: 1305 | EM72: 68 | EO72: 68 | EP72: (66)
A73: 69 (69) | B73: Lasse Nilsson | C73: Värends Hsk | D73: 1298 | F73: 6 | G73: 108.1666667 | I73: 228 | T73: 177 | U73: 205 | X73: 187 | Z73: 231 | AA73: 270 | AB73: 17 | AC73: - | AD73: - | AE73: 69 | AF73: 69 | AG73: 69 | AH73: 69 | AK73: 2 | AL73: 2 | AM73: 1 | AN73: 1 | AO73: 1 | AP73: 1 | AQ73: 1 | AR73: 0 | AS73: 1 | AT73: 1 | AU73: 1 | AV73: 2 | AW73: 3 | AX73: 2 | AY73: 0 | AZ73: 2 | BA73: 2 | BB73: 2 | BC73: 3 | BE73: 2 | BH73: 270 | BI73: 231 | BJ73: 228 | BK73: 205 | BL73: 187 | BM73: 177 | BX73: - | BY73: - | BZ73: 8 | CB73: 1298 | EM73: 69 | EO73: 69 | EP73: (69)
A74: 70 (67) | B74: Elin Olsson | C74: Dynapac | D74: 1293 | F74: 7 | G74: 92.35714286 | J74: 183 | K74: 173 | L74: 232 | N74: 164 | Q74: 202 | V74: 141 | Y74: 198 | AB74: 17 | AC74: - | AD74: - | AE74: 67 | AF74: 70 | AG74: 70 | AH74: 70 | AK74: 1 | AL74: 2 | AM74: 3 | AN74: 3 | AO74: 2 | AP74: 2 | AQ74: 2 | AR74: 0 | AS74: 2 | AT74: 2 | AU74: 1 | AV74: 1 | AW74: 1 | AX74: 2 | AY74: 1 | AZ74: 1 | BA74: 2 | BB74: 2 | BC74: 1 | BE74: 2 | BH74: 232 | BI74: 202 | BJ74: 198 | BK74: 183 | BL74: 173 | BM74: 164 | BN74: 141 | BX74: - | BY74: - | BZ74: 7 | CB74: 1293 | EM74: 70 | EO74: 70 | EP74: (67)
A75: 71 (78) | B75: Hannah Karlberg | C75: Jämjö Hsk | D75: 1178 | F75: 8 | G75: 73.625 | N75: 144 | Q75: 172 | R75: 142 | T75: 119 | V75: 137 | Y75: 137 | Z75: 169 | AA75: 158 | AB75: 17 | AC75: - | AD75: - | AE75: 78 | AF75: 71 | AG75: 71 | AH75: 71 | AK75: 1 | AL75: 1 | AM75: 1 | AN75: 1 | AO75: 1 | AP75: 2 | AQ75: 2 | AR75: 0 | AS75: 2 | AT75: 3 | AU75: 2 | AV75: 2 | AW75: 2 | AX75: 2 | AY75: 1 | AZ75: 1 | BA75: 2 | BB75: 3 | BC75: 3 | BE75: 2 | BH75: 172 | BI75: 169 | BJ75: 158 | BK75: 144 | BL75: 142 | BM75: 137 | BN75: 137 | BO75: 119 | BX75: - | BY75: - | BZ75: 6 | CB75: 1178 | EM75: 71 | EO75: 71 | EP75: (78)
A76: 72 (73) | B76: Stefan Olofsson | C76: Korpen Nybro | D76: 1129 | F76: 5 | G76: 112.9 | L76: 187 | M76: 182 | N76: 182 | T76: 294 | U76: 284 | AB76: 17 | AC76: - | AD76: - | AE76: 73 | AF76: 72 | AG76: 72 | AH76: 72 | AK76: 1 | AL76: 1 | AM76: 1 | AN76: 2 | AO76: 3 | AP76: 3 | AQ76: 2 | AR76: 0 | AS76: 1 | AT76: 1 | AU76: 1 | AV76: 2 | AW76: 3 | AX76: 2 | AY76: 0 | AZ76: 1 | BA76: 1 | BB76: 1 | BC76: 1 | BE76: 2 | BH76: 294 | BI76: 284 | BJ76: 187 | BK76: 182 | BL76: 182 | BX76: - | BY76: - | BZ76: 9 | CB76: 1129 | EM76: 72 | EO76: 72 | EP76: (73)
A77: 73 (87) | B77: Mattias Olsson | C77: Dynapac | D77: 1074 | F77: 6 | G77: 89.5 | J77: 237 | K77: 221 | V77: 27 | Y77: 135 | Z77: 232 | AA77: 222 | AB77: 17 | AC77: - | AD77: - | AE77: 87 | AF77: 73 | AG77: 73 | AH77: 73 | AK77: 1 | AL77: 2 | AM77: 3 | AN77: 2 | AO77: 1 | AP77: 1 | AQ77: 1 | AR77: 0 | AS77: 1 | AT77: 1 | AU77: 1 | AV77: 1 | AW77: 1 | AX77: 2 | AY77: 1 | AZ77: 1 | BA77: 2 | BB77: 3 | BC77: 3 | BE77: 2 | BH77: 237 | BI77: 232 | BJ77: 222 | BK77: 221 | BL77: 135 | BM77: 27 | BX77: - | BY77: - | BZ77: 8 | CB77: 1074 | EM77: 73 | EO77: 73 | EP77: (87)
A78: =IF(BE78>1,AF78&" ("&AE78&")",AF78&" ("&AG78&")") -> 74 (69) | B78: Olle Nilsson | C78: Tingsryd | D78: 1067 | F78: 6 | G78: 88.91666667 | I78: 145 | J78: 154 | L78: 161 | S78: 250 | T78: 196 | U78: 161 | AB78: 17 | AC78: - | AD78: - | AE78: 69 | AF78: 74 | AG78: 74 | AH78: 74 | AK78: 2 | AL78: 3 | AM78: 2 | AN78: 2 | AO78: 2 | AP78: 1 | AQ78: 1 | AR78: 0 | AS78: 1 | AT78: 1 | AU78: 2 | AV78: 3 | AW78: 3 | AX78: 2 | AY78: 0 | AZ78: 1 | BA78: 1 | BB78: 1 | BC78: 1 | BE78: 2 | BH78: 250 | BI78: 196 | BJ78: 161 | BK78: 161 | BL78: 154 | BM78: 145 | BX78: - | BY78: - | BZ78: 8 | CB78: 1067 | EM78: 74 | EO78: 74 | EP78: (69)
A79: 75 (76) | B79: Anne-Marie Larsson | C79: Tingsryd | D79: 1039 | F79: 6 | G79: 86.58333333 | I79: 186 | L79: 150 | S79: 250 | T79: 137 | U79: 136 | AA79: 180 | AB79: 17 | AC79: - | AD79: - | AE79: 76 | AF79: 75 | AG79: 75 | AH79: 75 | AK79: 2 | AL79: 2 | AM79: 1 | AN79: 2 | AO79: 2 | AP79: 1 | AQ79: 1 | AR79: 0 | AS79: 1 | AT79: 1 | AU79: 2 | AV79: 3 | AW79: 3 | AX79: 2 | AY79: 0 | AZ79: 1 | BA79: 1 | BB79: 1 | BC79: 2 | BE79: 2 | BH79: 250 | BI79: 186 | BJ79: 180 | BK79: 150 | BL79: 137 | BM79: 136 | BX79: - | BY79: - | BZ79: 8 | CB79: 1039 | EM79: 75 | EO79: 75 | EP79: (76)
A80: 76 (72) | B80: Christer Brincner | C80: Värends Hsk | D80: 1036 | F80: 6 | G80: 86.33333333 | I80: 161 | K80: 194 | L80: 114 | O80: 149 | S80: 274 | U80: 144 | AB80: 17 | AC80: - | AD80: - | AE80: 72 | AF80: 76 | AG80: 76 | AH80: 76 | AK80: 2 | AL80: 2 | AM80: 2 | AN80: 3 | AO80: 2 | AP80: 1 | AQ80: 2 | AR80: 1 | AS80: 1 | AT80: 1 | AU80: 2 | AV80: 2 | AW80: 2 | AX80: 2 | AY80: 0 | AZ80: 1 | BA80: 1 | BB80: 1 | BC80: 1 | BE80: 2 | BH80: 274 | BI80: 194 | BJ80: 161 | BK80: 149 | BL80: 144 | BM80: 114 | BX80: - | BY80: - | BZ80: 8 | CB80: 1036 | EM80: 76 | EO80: 76 | EP80: (72)
A81: 77 (78) | B81: Fredrik Lundin | C81: Lanternan | D81: 1030 | F81: 4 | G81: 128.75 | J81: 193 | Q81: 220 | V81: 272 | Z81: 345 | AB81: 17 | AC81: - | AD81: - | AE81: 78 | AF81: 77 | AG81: 77 | AH81: 77 | AK81: 1 | AL81: 2 | AM81: 2 | AN81: 1 | AO81: 1 | AP81: 1 | AQ81: 1 | AR81: 0 | AS81: 2 | AT81: 2 | AU81: 1 | AV81: 1 | AW81: 1 | AX81: 2 | AY81: 1 | AZ81: 1 | BA81: 1 | BB81: 2 | BC81: 2 | BE81: 2 | BH81: 345 | BI81: 272 | BJ81: 220 | BK81: 193 | BX81: - | BY81: - | BZ81: 10 | CB81: 1030 | EM81: 77 | EO81: 77 | EP81: (78)
A82: 78 (82) | B82: Hans Johansson | C82: Korpen Nybro | D82: 1008 | F82: 12 | G82: 42 | I82: 87 | J82: 91 | K82: 105 | L82: 117 | M82: 83 | S82: 126 | T82: 48 | U82: 67 | V82: 71 | X82: 74 | Z82: 52 | AA82: 87 | AB82: 17 | AC82: - | AD82: - | AE82: 82 | AF82: 78 | AG82: 78 | AH82: 78 | AK82: 2 | AL82: 3 | AM82: 3 | AN82: 3 | AO82: 3 | AP82: 2 | AQ82: 1 | AR82: 0 | AS82: 1 | AT82: 1 | AU82: 2 | AV82: 3 | AW82: 3 | AX82: 3 | AY82: 1 | AZ82: 2 | BA82: 2 | BB82: 2 | BC82: 3 | BE82: 2 | BH82: 126 | BI82: 117 | BJ82: 105 | BK82: 91 | BL82: 87 | BM82: 87 | BN82: 83 | BO82: 74 | BP82: 71 | BQ82: 67 | BR82: 52 | BS82: 48 | BX82: - | BY82: - | BZ82: 2 | CB82: 1008 | EM82: 78 | EO82: 78 | EP82: (82)
A83: 79 (80) | B83: Maria Andersson | C83: Team Småland Hsk | D83: 993 | F83: 7 | G83: 70.92857143 | K83: 156 | L83: 109 | Q83: 219 | T83: 134 | U83: 146 | V83: 130 | AA83: 99 | AB83: 17 | AC83: - | AD83: - | AE83: 80 | AF83: 79 | AG83: 79 | AH83: 79 | AK83: 1 | AL83: 1 | AM83: 2 | AN83: 3 | AO83: 2 | AP83: 1 | AQ83: 1 | AR83: 0 | AS83: 2 | AT83: 2 | AU83: 1 | AV83: 2 | AW83: 3 | AX83: 3 | AY83: 1 | AZ83: 1 | BA83: 1 | BB83: 1 | BC83: 2 | BE83: 2 | BH83: 219 | BI83: 156 | BJ83: 146 | BK83: 134 | BL83: 130 | BM83: 109 | BN83: 99 | BX83: - | BY83: - | BZ83: 7 | CB83: 993 | EM83: 79 | EO83: 79 | EP83: (80)
A84: 80 (81) | B84: Paul Karlsson | C84: Lessebo | D84: 972 | F84: 3 | G84: 162 | K84: 273 | L84: 296 | U84: 403 | AB84: 17 | AC84: - | AD84: - | AE84: 81 | AF84: 80 | AG84: 80 | AH84: 80 | AK84: 1 | AL84: 1 | AM84: 2 | AN84: 3 | AO84: 2 | AP84: 1 | AQ84: 1 | AR84: 0 | AS84: 1 | AT84: 1 | AU84: 1 | AV84: 1 | AW84: 2 | AX84: 2 | AY84: 0 | AZ84: 1 | BA84: 1 | BB84: 1 | BC84: 1 | BE84: 2 | BH84: 403 | BI84: 296 | BJ84: 273 | BX84: - | BY84: - | BZ84: 11 | CB84: 972 | EM84: 80 | EO84: 80 | EP84: (81)
A85: 81 (73) | B85: Hans Lundqvist | C85: Alvesta | D85: 970 | F85: 5 | G85: 97 | I85: 154 | M85: 177 | Q85: 227 | T85: 197 | U85: 215 | AB85: 17 | AC85: - | AD85: - | AE85: 73 | AF85: 81 | AG85: 81 | AH85: 81 | AK85: 2 | AL85: 2 | AM85: 1 | AN85: 1 | AO85: 2 | AP85: 2 | AQ85: 1 | AR85: 0 | AS85: 2 | AT85: 2 | AU85: 1 | AV85: 2 | AW85: 3 | AX85: 2 | AY85: 0 | AZ85: 1 | BA85: 1 | BB85: 1 | BC85: 1 | BE85: 2 | BH85: 227 | BI85: 215 | BJ85: 197 | BK85: 177 | BL85: 154 | BX85: - | BY85: - | BZ85: 9 | CB85: 970 | EM85: 81 | EO85: 81 | EP85: (73)
A86: 82 (82) | B86: Michael Karlsson | C86: Hsk Tingzås | D86: 934 | F86: 6 | G86: 77.83333333 | I86: 144 | T86: 129 | U86: 128 | V86: 202 | X86: 152 | Z86: 179 | AB86: 17 | AC86: - | AD86: - | AE86: 82 | AF86: 82 | AG86: 82 | AH86: 82 | AK86: 2 | AL86: 2 | AM86: 1 | AN86: 1 | AO86: 1 | AP86: 1 | AQ86: 1 | AR86: 0 | AS86: 1 | AT86: 1 | AU86: 1 | AV86: 2 | AW86: 3 | AX86: 3 | AY86: 1 | AZ86: 2 | BA86: 2 | BB86: 2 | BC86: 2 | BE86: 2 | BH86: 202 | BI86: 179 | BJ86: 152 | BK86: 144 | BL86: 129 | BM86: 128 | BX86: - | BY86: - | BZ86: 8 | CB86: 934 | EM86: 82 | EO86: 82 | EP86: (82)
A87: 83 (73) | B87: Inga-Lill Stühr | C87: Lessebo | D87: 927 | F87: 4 | G87: 115.875 | M87: 162 | S87: 216 | T87: 297 | U87: 252 | AB87: 17 | AC87: - | AD87: - | AE87: 73 | AF87: 83 | AG87: 83 | AH87: 83 | AK87: 1 | AL87: 1 | AM87: 1 | AN87: 1 | AO87: 2 | AP87: 2 | AQ87: 1 | AR87: 0 | AS87: 1 | AT87: 1 | AU87: 2 | AV87: 3 | AW87: 3 | AX87: 2 | AY87: 0 | AZ87: 1 | BA87: 1 | BB87: 1 | BC87: 1 | BE87: 2 | BH87: 297 | BI87: 252 | BJ87: 216 | BK87: 162 | BX87: - | BY87: - | BZ87: 10 | CB87: 927 | EM87: 83 | EO87: 83 | EP87: (73)
A88: 84 (96) | B88: Stephan Gervide | C88: Korpen Nybro | D88: 902 | F88: 4 | G88: 112.75 | K88: 248 | L88: 209 | T88: 218 | AA88: 227 | AB88: 17 | AC88: - | AD88: - | AE88: 96 | AF88: 84 | AG88: 84 | AH88: 84 | AK88: 1 | AL88: 1 | AM88: 2 | AN88: 3 | AO88: 2 | AP88: 1 | AQ88: 1 | AR88: 0 | AS88: 1 | AT88: 1 | AU88: 1 | AV88: 2 | AW88: 2 | AX88: 1 | AY88: 0 | AZ88: 1 | BA88: 1 | BB88: 1 | BC88: 2 | BE88: 2 | BH88: 248 | BI88: 227 | BJ88: 218 | BK88: 209 | BX88: - | BY88: - | BZ88: 10 | CB88: 902 | EM88: 84 | EO88: 84 | EP88: (96)
A89: 85 (89) | B89: Gunnar Lundbeck | C89: Tingsryd | D89: 888 | F89: 6 | G89: 74 | I89: 115 | J89: 76 | S89: 175 | T89: 159 | U89: 156 | AA89: 207 | AB89: 17 | AC89: - | AD89: - | AE89: 89 | AF89: 85 | AG89: 85 | AH89: 85 | AK89: 2 | AL89: 3 | AM89: 2 | AN89: 1 | AO89: 1 | AP89: 1 | AQ89: 1 | AR89: 0 | AS89: 1 | AT89: 1 | AU89: 2 | AV89: 3 | AW89: 3 | AX89: 2 | AY89: 0 | AZ89: 1 | BA89: 1 | BB89: 1 | BC89: 2 | BE89: 2 | BH89: 207 | BI89: 175 | BJ89: 159 | BK89: 156 | BL89: 115 | BM89: 76 | BX89: - | BY89: - | BZ89: 8 | CB89: 888 | EM89: 85 | EO89: 85 | EP89: (89)
A90: 86 (85) | B90: Bo Fransson | C90: Lessebo | D90: 887 | F90: 3 | G90: 147.8333333 | K90: 330 | L90: 316 | U90: 241 | AB90: 17 | AC90: - | AD90: - | AE90: 85 | AF90: 86 | AG90: 86 | AH90: 86 | AK90: 1 | AL90: 1 | AM90: 2 | AN90: 3 | AO90: 2 | AP90: 1 | AQ90: 1 | AR90: 0 | AS90: 1 | AT90: 1 | AU90: 1 | AV90: 1 | AW90: 2 | AX90: 2 | AY90: 0 | AZ90: 1 | BA90: 1 | BB90: 1 | BC90: 1 | BE90: 2 | BH90: 330 | BI90: 316 | BJ90: 241 | BX90: - | BY90: - | BZ90: 11 | CB90: 887 | EM90: 86 | EO90: 86 | EP90: (85)
A91: 87 (86) | B91: Åke Bergqvist | C91: Tingsryd | D91: 884 | F91: 6 | G91: 73.66666667 | I91: 172 | L91: 152 | S91: 127 | T91: 145 | U91: 152 | AA91: 136 | AB91: 17 | AC91: - | AD91: - | AE91: 86 | AF91: 87 | AG91: 87 | AH91: 87 | AK91: 2 | AL91: 2 | AM91: 1 | AN91: 2 | AO91: 2 | AP91: 1 | AQ91: 1 | AR91: 0 | AS91: 1 | AT91: 1 | AU91: 2 | AV91: 3 | AW91: 3 | AX91: 2 | AY91: 0 | AZ91: 1 | BA91: 1 | BB91: 1 | BC91: 2 | BE91: 2 | BH91: 172 | BI91: 152 | BJ91: 152 | BK91: 145 | BL91: 136 | BM91: 127 | BX91: - | BY91: - | BZ91: 8 | CB91: 884 | EM91: 87 | EO91: 87 | EP91: (86)
A92: 88 (89) | B92: Jonas Klarström | C92: Team Småland Hsk | D92: 876 | F92: 7 | G92: 62.57142857 | K92: 153 | L92: 147 | Q92: 121 | T92: 112 | U92: 127 | V92: 118 | AA92: 98 | AB92: 17 | AC92: - | AD92: - | AE92: 89 | AF92: 88 | AG92: 88 | AH92: 88 | AK92: 1 | AL92: 1 | AM92: 2 | AN92: 3 | AO92: 2 | AP92: 1 | AQ92: 1 | AR92: 0 | AS92: 2 | AT92: 2 | AU92: 1 | AV92: 2 | AW92: 3 | AX92: 3 | AY92: 1 | AZ92: 1 | BA92: 1 | BB92: 1 | BC92: 2 | BE92: 2 | BH92: 153 | BI92: 147 | BJ92: 127 | BK92: 121 | BL92: 118 | BM92: 112 | BN92: 98 | BX92: - | BY92: - | BZ92: 7 | CB92: 876 | EM92: 88 | EO92: 88 | EP92: (89)
A93: =IF(BE93>1,AF93&" ("&AE93&")",AF93&" ("&AG93&")") -> 89 (87) | B93: Alexander Lundqvist | C93: Alvesta | D93: 875 | F93: 3 | G93: 145.8333333 | Q93: 296 | T93: 369 | U93: 210 | AB93: 17 | AC93: - | AD93: - | AE93: 87 | AF93: =IF(D93<D92,AH93,AF92) -> 89 | AG93: 89 | AH93: 89 | AK93: =COUNT($I$3,I93,H93) -> 1 | AL93: =COUNT($J$3,J93,I93) -> 1 | AM93: =COUNT($K$3,K93,J93) -> 1 | AN93: =COUNT($L$3,L93,K93) -> 1 | AO93: =COUNT($M$3,M93,L93) -> 1 | AP93: =COUNT($N$3,N93,M93) -> 1 | AQ93: =COUNT($O$3,O93,N93) -> 1 | AR93: =COUNT($P$3,P93,O93) -> 0 | AS93: =COUNT($Q$3,Q93,P93) -> 2 | AT93: =COUNT($R$3,R93,Q93) -> 2 | AU93: =COUNT($S$3,S93,R93) -> 1 | AV93: =COUNT($T$3,T93,S93) -> 2 | AW93: =COUNT($U$3,U93,T93) -> 3 | AX93: =COUNT($V$3,V93,U93) -> 2 | AY93: =COUNT($W$3,W93,V93) -> 0 | AZ93: =COUNT($X$3,X93,W93) -> 1 | BA93: =COUNT($Y$3,Y93,X93) -> 1 | BB93: =COUNT($Z$3,Z93,Y93) -> 1 | BC93: =COUNT($AA$3,AA93,Z93) -> 1 | BE93: =IF(H93="x",1,2) -> 2 | BH93: =IF($F93>0,LARGE($I93:$AA93,1),"") -> 369 | BI93: =IF($F93>1,LARGE($I93:$AA93,2),"") -> 296 | BJ93: =IF($F93>2,LARGE($I93:$AA93,3),"") -> 210 | BK93: =IF($F93>3,LARGE($I93:$AA93,4),"") ->  | BL93: =IF($F93>4,LARGE($I93:$AA93,5),"") ->  | BM93: =IF($F93>5,LARGE($I93:$AA93,6),"") ->  | BN93: =IF($F93>6,LARGE($I93:$AA93,7),"") ->  | BO93: =IF($F93>7,LARGE($I93:$AA93,8),"") ->  | BP93: =IF($F93>8,LARGE($I93:$AA93,9),"") ->  | BQ93: =IF($F93>9,LARGE($I93:$AA93,10),"") ->  | BR93: =IF($F93>10,LARGE($I93:$AA93,11),"") ->  | BS93: =IF($F93>11,LARGE($I93:$AA93,12),"") ->  | BT93: =IF($F93>12,LARGE($I93:$AA93,13),"") ->  | BU93: =IF($F93>13,LARGE($I93:$AA93,14),"") ->  | BV93: =IF($F93>14,LARGE($I93:$AA93,15),"") ->  | BX93: - | BY93: - | BZ93: 11 | CB93: 875 | EM93: 90 | EO93: 89 | EP93: (87)
A94: 90 (76) | B94: Kerstin Johansson | C94: Lessebo | D94: 871 | F94: 4 | G94: 108.875 | M94: 122 | S94: 286 | T94: 177 | U94: 286 | AB94: 17 | AC94: - | AD94: - | AE94: 76 | AF94: 90 | AG94: 90 | AH94: 90 | AK94: 1 | AL94: 1 | AM94: 1 | AN94: 1 | AO94: 2 | AP94: 2 | AQ94: 1 | AR94: 0 | AS94: 1 | AT94: 1 | AU94: 2 | AV94: 3 | AW94: 3 | AX94: 2 | AY94: 0 | AZ94: 1 | BA94: 1 | BB94: 1 | BC94: 1 | BE94: 2 | BH94: 286 | BI94: 286 | BJ94: 177 | BK94: 122 | BX94: - | BY94: - | BZ94: 10 | CB94: 871 | EM94: 91 | EO94: 90 | EP94: (76)
A95: 91 (94) | B95: Karin Gullbrand | C95: Värends Hsk | D95: 856 | F95: 7 | G95: 61.14285714 | N95: 144 | T95: 112 | U95: 90 | V95: 218 | X95: 108 | Z95: 52 | AA95: 132 | AB95: 17 | AC95: - | AD95: - | AE95: 94 | AF95: 91 | AG95: 91 | AH95: 91 | AK95: 1 | AL95: 1 | AM95: 1 | AN95: 1 | AO95: 1 | AP95: 2 | AQ95: 2 | AR95: 0 | AS95: 1 | AT95: 1 | AU95: 1 | AV95: 2 | AW95: 3 | AX95: 3 | AY95: 1 | AZ95: 2 | BA95: 2 | BB95: 2 | BC95: 3 | BE95: 2 | BH95: 218 | BI95: 144 | BJ95: 132 | BK95: 112 | BL95: 108 | BM95: 90 | BN95: 52 | BX95: - | BY95: - | BZ95: 7 | CB95: 856 | EM95: 92 | EO95: 91 | EP95: (94)
A96: 92 (82) | B96: Rolf Johannesson | C96: Värends Hsk | D96: 792 | F96: 5 | G96: 79.2 | I96: 154 | U96: 134 | V96: 188 | X96: 177 | Z96: 139 | AB96: 17 | AC96: - | AD96: - | AE96: 82 | AF96: 92 | AG96: 92 | AH96: 92 | AK96: 2 | AL96: 2 | AM96: 1 | AN96: 1 | AO96: 1 | AP96: 1 | AQ96: 1 | AR96: 0 | AS96: 1 | AT96: 1 | AU96: 1 | AV96: 1 | AW96: 2 | AX96: 3 | AY96: 1 | AZ96: 2 | BA96: 2 | BB96: 2 | BC96: 2 | BE96: 2 | BH96: 188 | BI96: 177 | BJ96: 154 | BK96: 139 | BL96: 134 | BX96: - | BY96: - | BZ96: 9 | CB96: 792 | EM96: 93 | EO96: 92 | EP96: (82)
A97: 93 (92) | B97: Kjell Åkesson | C97: Lanternan | D97: 791 | F97: 6 | G97: 65.91666667 | J97: 175 | K97: 123 | L97: 119 | Q97: 157 | V97: 129 | Y97: 88 | AB97: 17 | AC97: - | AD97: - | AE97: 92 | AF97: 93 | AG97: 93 | AH97: 93 | AK97: 1 | AL97: 2 | AM97: 3 | AN97: 3 | AO97: 2 | AP97: 1 | AQ97: 1 | AR97: 0 | AS97: 2 | AT97: 2 | AU97: 1 | AV97: 1 | AW97: 1 | AX97: 2 | AY97: 1 | AZ97: 1 | BA97: 2 | BB97: 2 | BC97: 1 | BE97: 2 | BH97: 175 | BI97: 157 | BJ97: 129 | BK97: 123 | BL97: 119 | BM97: 88 | BX97: - | BY97: - | BZ97: 8 | CB97: 791 | EM97: 89 | EO97: 93 | EP97: (92)
A98: 94 (93) | B98: Jim Rådström | C98: Jämjö Hsk | D98: 758 | F98: 5 | G98: 75.8 | N98: 197 | Q98: 180 | R98: 114 | U98: 131 | V98: 136 | AB98: 17 | AC98: - | AD98: - | AE98: 93 | AF98: 94 | AG98: 94 | AH98: 94 | AK98: 1 | AL98: 1 | AM98: 1 | AN98: 1 | AO98: 1 | AP98: 2 | AQ98: 2 | AR98: 0 | AS98: 2 | AT98: 3 | AU98: 2 | AV98: 1 | AW98: 2 | AX98: 3 | AY98: 1 | AZ98: 1 | BA98: 1 | BB98: 1 | BC98: 1 | BE98: 2 | BH98: 197 | BI98: 180 | BJ98: 136 | BK98: 131 | BL98: 114 | BX98: - | BY98: - | BZ98: 9 | CB98: 758 | EM98: 94 | EO98: 94 | EP98: (93)
A99: 95 (94) | B99: Hans Johansson | C99: Tingsryd | D99: 715 | F99: 3 | G99: 119.1666667 | S99: 274 | T99: 164 | AA99: 277 | AB99: 17 | AC99: - | AD99: - | AE99: 94 | AF99: 95 | AG99: 95 | AH99: 95 | AK99: 1 | AL99: 1 | AM99: 1 | AN99: 1 | AO99: 1 | AP99: 1 | AQ99: 1 | AR99: 0 | AS99: 1 | AT99: 1 | AU99: 2 | AV99: 3 | AW99: 2 | AX99: 1 | AY99: 0 | AZ99: 1 | BA99: 1 | BB99: 1 | BC99: 2 | BE99: 2 | BH99: 277 | BI99: 274 | BJ99: 164 | BX99: - | BY99: - | BZ99: 11 | CB99: 715 | EM99: 95 | EO99: 95 | EP99: (94)
A100: 96 (89) | B100: Ulrika Rydell | C100: Värends Hsk | D100: 682 | F100: 4 | G100: 85.25 | I100: 94 | K100: 192 | L100: 262 | U100: 134 | AB100: 17 | AC100: - | AD100: - | AE100: 89 | AF100: 96 | AG100: 96 | AH100: 96 | AK100: 2 | AL100: 2 | AM100: 2 | AN100: 3 | AO100: 2 | AP100: 1 | AQ100: 1 | AR100: 0 | AS100: 1 | AT100: 1 | AU100: 1 | AV100: 1 | AW100: 2 | AX100: 2 | AY100: 0 | AZ100: 1 | BA100: 1 | BB100: 1 | BC100: 1 | BE100: 2 | BH100: 262 | BI100: 192 | BJ100: 134 | BK100: 94 | BX100: - | BY100: - | BZ100: 10 | CB100: 682 | EM100: 96 | EO100: 96 | EP100: (89)
A101: 97 (98) | B101: Linnea Gneupel | C101: Sibbamåla | D101: 655 | F101: 4 | G101: 81.875 | K101: 197 | L101: 132 | Q101: 156 | R101: 170 | AB101: 17 | AC101: - | AD101: - | AE101: 98 | AF101: 97 | AG101: =IF(F101>1,ROW(97:97),"-") -> 97 | AH101: 97 | AK101: 1 | AL101: 1 | AM101: 2 | AN101: 3 | AO101: 2 | AP101: 1 | AQ101: 1 | AR101: 0 | AS101: 2 | AT101: 3 | AU101: 2 | AV101: 1 | AW101: 1 | AX101: 1 | AY101: 0 | AZ101: 1 | BA101: 1 | BB101: 1 | BC101: 1 | BE101: 2 | BH101: 197 | BI101: 170 | BJ101: 156 | BK101: 132 | BX101: - | BY101: - | BZ101: 10 | CB101: 655 | EM101: 97 | EO101: =IF(BE101>=1,AF101,"") -> 97 | EP101: (98)
A102: 98 (99) | B102: Leif Ahlex | C102: Lessebo Hsk | D102: 652 | F102: 2 | G102: 163 | K102: 310 | L102: 342 | AB102: 17 | AC102: - | AD102: - | AE102: 99 | AF102: 98 | AG102: 98 | AH102: 98 | AK102: 1 | AL102: 1 | AM102: 2 | AN102: 3 | AO102: 2 | AP102: 1 | AQ102: 1 | AR102: 0 | AS102: 1 | AT102: 1 | AU102: 1 | AV102: 1 | AW102: 1 | AX102: 1 | AY102: 0 | AZ102: 1 | BA102: 1 | BB102: 1 | BC102: 1 | BE102: 2 | BH102: 342 | BI102: 310 | BX102: - | BY102: - | BZ102: 12 | CB102: 652 | EM102: 98 | EO102: 98 | EP102: (99)
A103: 98 (99) | B103: Jörgen Holmqvist | C103: Lessebo Hsk | D103: 652 | F103: 2 | G103: 163 | K103: 314 | U103: 338 | AB103: 17 | AC103: - | AD103: - | AE103: 99 | AF103: 98 | AG103: 99 | AH103: 99 | AK103: 1 | AL103: 1 | AM103: 2 | AN103: 2 | AO103: 1 | AP103: 1 | AQ103: 1 | AR103: 0 | AS103: 1 | AT103: 1 | AU103: 1 | AV103: 1 | AW103: 2 | AX103: 2 | AY103: 0 | AZ103: 1 | BA103: 1 | BB103: 1 | BC103: 1 | BE103: 2 | BH103: 338 | BI103: 314 | BX103: - | BY103: - | BZ103: 12 | CB103: 652 | EM103: 99 | EO103: 98 | EP103: (99)
A104: 100 (101) | B104: Krister Nygren | C104: Korpen Åseda | D104: 651 | F104: 3 | G104: 108.5 | M104: 197 | S104: 258 | X104: 196 | AB104: 17 | AC104: - | AD104: - | AE104: 101 | AF104: 100 | AG104: 100 | AH104: 100 | AK104: 1 | AL104: 1 | AM104: 1 | AN104: 1 | AO104: 2 | AP104: 2 | AQ104: 1 | AR104: 0 | AS104: 1 | AT104: 1 | AU104: 2 | AV104: 2 | AW104: 1 | AX104: 1 | AY104: 0 | AZ104: 2 | BA104: 2 | BB104: 1 | BC104: 1 | BE104: 2 | BH104: 258 | BI104: 197 | BJ104: 196 | BX104: - | BY104: - | BZ104: 11 | CB104: 651 | EM104: 100 | EO104: 100 | EP104: (101)
A105: 101 (102) | B105: Inge Skoglöv | C105: Jämjö Hsk | D105: 650 | F105: 4 | G105: 81.25 | J105: 131 | R105: 169 | T105: 150 | Z105: 200 | AB105: 17 | AC105: - | AD105: - | AE105: 102 | AF105: 101 | AG105: 101 | AH105: 101 | AK105: 1 | AL105: 2 | AM105: 2 | AN105: 1 | AO105: 1 | AP105: 1 | AQ105: 1 | AR105: 0 | AS105: 1 | AT105: 2 | AU105: 2 | AV105: 2 | AW105: 2 | AX105: 1 | AY105: 0 | AZ105: 1 | BA105: 1 | BB105: 2 | BC105: 2 | BE105: 2 | BH105: 200 | BI105: 169 | BJ105: 150 | BK105: 131 | BX105: - | BY105: - | BZ105: 10 | CB105: 650 | EM105: 101 | EO105: 101 | EP105: (102)
A106: 102 (103) | B106: Mimmi Hansson | C106: Korpen Nybro | D106: 647 | F106: 4 | G106: 80.875 | J106: 184 | K106: 157 | L106: 171 | X106: 135 | AB106: 17 | AC106: - | AD106: - | AE106: 103 | AF106: 102 | AG106: 102 | AH106: 102 | AK106: 1 | AL106: 2 | AM106: 3 | AN106: 3 | AO106: 2 | AP106: 1 | AQ106: 1 | AR106: 0 | AS106: 1 | AT106: 1 | AU106: 1 | AV106: 1 | AW106: 1 | AX106: 1 | AY106: 0 | AZ106: 2 | BA106: 2 | BB106: 1 | BC106: 1 | BE106: 2 | BH106: 184 | BI106: 171 | BJ106: 157 | BK106: 135 | BX106: - | BY106: - | BZ106: 10 | CB106: 647 | EM106: 103 | EO106: 102 | EP106: (103)
A107: 103 (104) | B107: Eva Åkesson | C107: Lanternan | D107: 592 | F107: 4 | G107: 74 | L107: 125 | Q107: 197 | V107: 99 | Y107: 171 | AB107: 17 | AC107: - | AD107: - | AE107: 104 | AF107: 103 | AG107: 103 | AH107: 103 | AK107: 1 | AL107: 1 | AM107: 1 | AN107: 2 | AO107: 2 | AP107: 1 | AQ107: 1 | AR107: 0 | AS107: 2 | AT107: 2 | AU107: 1 | AV107: 1 | AW107: 1 | AX107: 2 | AY107: 1 | AZ107: 1 | BA107: 2 | BB107: 2 | BC107: 1 | BE107: 2 | BH107: 197 | BI107: 171 | BJ107: 125 | BK107: 99 | BX107: - | BY107: - | BZ107: 10 | CB107: 592 | EM107: 104 | EO107: 103 | EP107: (104)
A108: 104 (105) | B108: Bo Trulsson | C108: Korpen Åseda | D108: 588 | F108: 3 | G108: 98 | S108: 267 | T108: 161 | X108: 160 | AB108: 17 | AC108: - | AD108: - | AE108: 105 | AF108: 104 | AG108: 104 | AH108: 104 | AK108: 1 | AL108: 1 | AM108: 1 | AN108: 1 | AO108: 1 | AP108: 1 | AQ108: 1 | AR108: 0 | AS108: 1 | AT108: 1 | AU108: 2 | AV108: 3 | AW108: 2 | AX108: 1 | AY108: 0 | AZ108: 2 | BA108: 2 | BB108: 1 | BC108: 1 | BE108: 2 | BH108: 267 | BI108: 161 | BJ108: 160 | BX108: - | BY108: - | BZ108: 11 | CB108: 588 | EM108: 105 | EO108: 104 | EP108: (105)
A109: 105 (116) | B109: Daniel Mårtensson | C109: Jämjö Hsk | D109: 555 | F109: 5 | G109: 55.5 | N109: 88 | Q109: 45 | V109: 115 | Z109: 161 | AA109: 146 | AB109: 17 | AC109: - | AD109: - | AE109: 116 | AF109: 105 | AG109: 105 | AH109: 105 | AK109: 1 | AL109: 1 | AM109: 1 | AN109: 1 | AO109: 1 | AP109: 2 | AQ109: 2 | AR109: 0 | AS109: 2 | AT109: 2 | AU109: 1 | AV109: 1 | AW109: 1 | AX109: 2 | AY109: 1 | AZ109: 1 | BA109: 1 | BB109: 2 | BC109: 3 | BE109: 2 | BH109: 161 | BI109: 146 | BJ109: 115 | BK109: 88 | BL109: 45 | BX109: - | BY109: - | BZ109: 9 | CB109: 555 | EM109: 106 | EO109: 105 | EP109: (116)
A110: 106 (129) | B110: Kennarth Axelsson | C110: Alvesta | D110: 551 | F110: 2 | G110: 137.75 | Z110: 241 | AA110: 310 | AB110: 17 | AC110: - | AD110: - | AE110: 129 | AF110: 106 | AG110: 106 | AH110: 106 | AK110: 1 | AL110: 1 | AM110: 1 | AN110: 1 | AO110: 1 | AP110: 1 | AQ110: 1 | AR110: 0 | AS110: 1 | AT110: 1 | AU110: 1 | AV110: 1 | AW110: 1 | AX110: 1 | AY110: 0 | AZ110: 1 | BA110: 1 | BB110: 2 | BC110: 3 | BE110: 2 | BH110: 310 | BI110: 241 | BX110: - | BY110: - | BZ110: 12 | CB110: 551 | EM110: 107 | EO110: 106 | EP110: (129)
A111: 107 (106) | B111: Lisbeth Blihd | C111: Lanternan | D111: 509 | F111: 3 | G111: 84.83333333 | Q111: 179 | V111: 164 | Y111: 166 | AB111: 17 | AC111: - | AD111: - | AE111: 106 | AF111: 107 | AG111: 107 | AH111: 107 | AK111: 1 | AL111: 1 | AM111: 1 | AN111: 1 | AO111: 1 | AP111: 1 | AQ111: 1 | AR111: 0 | AS111: 2 | AT111: 2 | AU111: 1 | AV111: 1 | AW111: 1 | AX111: 2 | AY111: 1 | AZ111: 1 | BA111: 2 | BB111: 2 | BC111: 1 | BE111: 2 | BH111: 179 | BI111: 166 | BJ111: 164 | BX111: - | BY111: - | BZ111: 11 | CB111: 509 | EM111: 108 | EO111: 107 | EP111: (106)
A112: 108 (96) | B112: Risto Selming | C112: Korpen Nybro | D112: 499 | F112: 4 | G112: 62.375 | K112: 113 | L112: 163 | T112: 144 | V112: 79 | AB112: 17 | AC112: - | AD112: - | AE112: 96 | AF112: 108 | AG112: 108 | AH112: 108 | AK112: 1 | AL112: 1 | AM112: 2 | AN112: 3 | AO112: 2 | AP112: 1 | AQ112: 1 | AR112: 0 | AS112: 1 | AT112: 1 | AU112: 1 | AV112: 2 | AW112: 2 | AX112: 2 | AY112: 1 | AZ112: 1 | BA112: 1 | BB112: 1 | BC112: 1 | BE112: 2 | BH112: 163 | BI112: 144 | BJ112: 113 | BK112: 79 | BX112: - | BY112: - | BZ112: 10 | CB112: 499 | EM112: 102 | EO112: 108 | EP112: (96)
A113: 109 (108) | B113: Robert Lermalm | C113: Jämjö Hsk | D113: 496 | F113: 2 | G113: 124 | N113: 226 | Y113: 270 | AB113: 17 | AC113: - | AD113: - | AE113: 108 | AF113: 109 | AG113: 109 | AH113: 109 | AK113: 1 | AL113: 1 | AM113: 1 | AN113: 1 | AO113: 1 | AP113: 2 | AQ113: 2 | AR113: 0 | AS113: 1 | AT113: 1 | AU113: 1 | AV113: 1 | AW113: 1 | AX113: 1 | AY113: 0 | AZ113: 1 | BA113: 2 | BB113: 2 | BC113: 1 | BE113: 2 | BH113: 270 | BI113: 226 | BX113: - | BY113: - | BZ113: 12 | CB113: 496 | EM113: 109 | EO113: 109 | EP113: (108)
A114: 110 (110) | B114: Jerry Viksten | C114: Korpen Åseda | D114: 490 | F114: 3 | G114: 81.66666667 | M114: 151 | S114: 239 | X114: 100 | AB114: 17 | AC114: - | AD114: - | AE114: 110 | AF114: 110 | AG114: 110 | AH114: 110 | AK114: 1 | AL114: 1 | AM114: 1 | AN114: 1 | AO114: 2 | AP114: 2 | AQ114: 1 | AR114: 0 | AS114: 1 | AT114: 1 | AU114: 2 | AV114: 2 | AW114: 1 | AX114: 1 | AY114: 0 | AZ114: 2 | BA114: 2 | BB114: 1 | BC114: 1 | BE114: 2 | BH114: 239 | BI114: 151 | BJ114: 100 | BX114: - | BY114: - | BZ114: 11 | CB114: 490 | EM114: 110 | EO114: 110 | EP114: (110)
A115: 111 (111) | B115: Tommy Svensson | C115: Värends Hsk | D115: 475 | F115: 3 | G115: 79.16666667 | U115: 124 | V115: 166 | Z115: 185 | AB115: 17 | AC115: - | AD115: - | AE115: 111 | AF115: 111 | AG115: 111 | AH115: 111 | AK115: 1 | AL115: 1 | AM115: 1 | AN115: 1 | AO115: 1 | AP115: 1 | AQ115: 1 | AR115: 0 | AS115: 1 | AT115: 1 | AU115: 1 | AV115: 1 | AW115: 2 | AX115: 3 | AY115: 1 | AZ115: 1 | BA115: 1 | BB115: 2 | BC115: 2 | BE115: 2 | BH115: 185 | BI115: 166 | BJ115: 124 | BX115: - | BY115: - | BZ115: 11 | CB115: 475 | EM115: 116 | EO115: 111 | EP115: (111)
A116: 112 (113) | B116: Arne Blihd | C116: Lanternan | D116: 462 | F116: 4 | G116: 57.75 | J116: 108 | Q116: 120 | V116: 114 | Y116: 120 | AB116: 17 | AC116: - | AD116: - | AE116: 113 | AF116: 112 | AG116: 112 | AH116: 112 | AK116: 1 | AL116: 2 | AM116: 2 | AN116: 1 | AO116: 1 | AP116: 1 | AQ116: 1 | AR116: 0 | AS116: 2 | AT116: 2 | AU116: 1 | AV116: 1 | AW116: 1 | AX116: 2 | AY116: 1 | AZ116: 1 | BA116: 2 | BB116: 2 | BC116: 1 | BE116: 2 | BH116: 120 | BI116: 120 | BJ116: 114 | BK116: 108 | BX116: - | BY116: - | BZ116: 10 | CB116: 462 | EM116: 111 | EO116: 112 | EP116: (113)
A117: 113 (114) | B117: Arne Nygren | C117: Korpen Åseda | D117: 454 | F117: 3 | G117: 75.66666667 | M117: 128 | S117: 192 | X117: 134 | AB117: 17 | AC117: - | AD117: - | AE117: 114 | AF117: 113 | AG117: 113 | AH117: 113 | AK117: 1 | AL117: 1 | AM117: 1 | AN117: 1 | AO117: 2 | AP117: 2 | AQ117: 1 | AR117: 0 | AS117: 1 | AT117: 1 | AU117: 2 | AV117: 2 | AW117: 1 | AX117: 1 | AY117: 0 | AZ117: 2 | BA117: 2 | BB117: 1 | BC117: 1 | BE117: 2 | BH117: 192 | BI117: 134 | BJ117: 128 | BX117: - | BY117: - | BZ117: 11 | CB117: 454 | EM117: 112 | EO117: 113 | EP117: (114)
A118: 114 (108) | B118: Lars-Erik Green | C118: Team Småland Hsk | D118: 450 | F118: 4 | G118: 56.25 | I118: 84 | Q118: 101 | U118: 181 | AA118: 84 | AB118: 17 | AC118: - | AD118: - | AE118: 108 | AF118: 114 | AG118: 114 | AH118: 114 | AK118: 2 | AL118: 2 | AM118: 1 | AN118: 1 | AO118: 1 | AP118: 1 | AQ118: 1 | AR118: 0 | AS118: 2 | AT118: 2 | AU118: 1 | AV118: 1 | AW118: 2 | AX118: 2 | AY118: 0 | AZ118: 1 | BA118: 1 | BB118: 1 | BC118: 2 | BE118: 2 | BH118: 181 | BI118: 101 | BJ118: 84 | BK118: 84 | BX118: - | BY118: - | BZ118: 10 | CB118: 450 | EM118: 114 | EO118: 114 | EP118: (108)
A119: 115 (115) | B119: Rickard Holgersson | C119: Sketnabäck | D119: 423 | F119: 2 | G119: 105.75 | K119: 166 | L119: 257 | AB119: 17 | AC119: - | AD119: - | AE119: 115 | AF119: 115 | AG119: 115 | AH119: 115 | AK119: 1 | AL119: 1 | AM119: 2 | AN119: 3 | AO119: 2 | AP119: 1 | AQ119: 1 | AR119: 0 | AS119: 1 | AT119: 1 | AU119: 1 | AV119: 1 | AW119: 1 | AX119: 1 | AY119: 0 | AZ119: 1 | BA119: 1 | BB119: 1 | BC119: 1 | BE119: 2 | BH119: 257 | BI119: 166 | BX119: - | BY119: - | BZ119: 12 | CB119: 423 | EM119: 115 | EO119: 115 | EP119: (115)
A120: 116 (116) | B120: Ingegärd Holmqvist | C120: Lanternan | D120: 417 | F120: 3 | G120: 69.5 | L120: 107 | R120: 135 | S120: 175 | AB120: 17 | AC120: - | AD120: - | AE120: 116 | AF120: 116 | AG120: 116 | AH120: 116 | AK120: 1 | AL120: 1 | AM120: 1 | AN120: 2 | AO120: 2 | AP120: 1 | AQ120: 1 | AR120: 0 | AS120: 1 | AT120: 2 | AU120: 3 | AV120: 2 | AW120: 1 | AX120: 1 | AY120: 0 | AZ120: 1 | BA120: 1 | BB120: 1 | BC120: 1 | BE120: 2 | BH120: 175 | BI120: 135 | BJ120: 107 | BX120: - | BY120: - | BZ120: 11 | CB120: 417 | EM120: 117 | EO120: 116 | EP120: (116)
A121: 117 (118) | B121: Kasper Sjöberg | C121: Sketnabäck | D121: 375 | F121: 2 | G121: 93.75 | K121: 191 | L121: 184 | AB121: 17 | AC121: - | AD121: - | AE121: 118 | AF121: 117 | AG121: 117 | AH121: 117 | AK121: 1 | AL121: 1 | AM121: 2 | AN121: 3 | AO121: 2 | AP121: 1 | AQ121: 1 | AR121: 0 | AS121: 1 | AT121: 1 | AU121: 1 | AV121: 1 | AW121: 1 | AX121: 1 | AY121: 0 | AZ121: 1 | BA121: 1 | BB121: 1 | BC121: 1 | BE121: 2 | BH121: 191 | BI121: 184 | BX121: - | BY121: - | BZ121: 12 | CB121: 375 | EM121: 118 | EO121: 117 | EP121: (118)
A122: 118 (120) | B122: Solveig Brincner | C122: Värends Hsk | D122: 358 | F122: 5 | G122: 35.8 | I122: 28 | K122: 82 | L122: 50 | M122: 130 | O122: 68 | AB122: 17 | AC122: - | AD122: - | AE122: 120 | AF122: 118 | AG122: 118 | AH122: 118 | AK122: 2 | AL122: 2 | AM122: 2 | AN122: 3 | AO122: 3 | AP122: 2 | AQ122: 2 | AR122: 1 | AS122: 1 | AT122: 1 | AU122: 1 | AV122: 1 | AW122: 1 | AX122: 1 | AY122: 0 | AZ122: 1 | BA122: 1 | BB122: 1 | BC122: 1 | BE122: 2 | BH122: 130 | BI122: 82 | BJ122: 68 | BK122: 50 | BL122: 28 | BX122: - | BY122: - | BZ122: 9 | CB122: 358 | EM122: 119 | EO122: 118 | EP122: (120)
A123: 119 (111) | B123: Susanne Andersson | C123: Team Småland Hsk | D123: 344 | F123: 3 | G123: 57.33333333 | I123: 82 | Q123: 132 | U123: 130 | AB123: 17 | AC123: - | AD123: - | AE123: 111 | AF123: 119 | AG123: 119 | AH123: 119 | AK123: 2 | AL123: 2 | AM123: 1 | AN123: 1 | AO123: 1 | AP123: 1 | AQ123: 1 | AR123: 0 | AS123: 2 | AT123: 2 | AU123: 1 | AV123: 1 | AW123: 2 | AX123: 2 | AY123: 0 | AZ123: 1 | BA123: 1 | BB123: 1 | BC123: 1 | BE123: 2 | BH123: 132 | BI123: 130 | BJ123: 82 | BX123: - | BY123: - | BZ123: 11 | CB123: 344 | EM123: 120 | EO123: 119 | EP123: (111)
A124: 120 (106) | B124: Ronnie Pettersson | C124: Växjö Hsk | D124: 325 | F124: 2 | G124: 81.25 | I124: 166 | S124: 159 | AB124: 17 | AC124: - | AD124: - | AE124: 106 | AF124: 120 | AG124: 120 | AH124: 120 | AK124: 2 | AL124: 2 | AM124: 1 | AN124: 1 | AO124: 1 | AP124: 1 | AQ124: 1 | AR124: 0 | AS124: 1 | AT124: 1 | AU124: 2 | AV124: 2 | AW124: 1 | AX124: 1 | AY124: 0 | AZ124: 1 | BA124: 1 | BB124: 1 | BC124: 1 | BE124: 2 | BH124: 166 | BI124: 159 | BX124: - | BY124: - | BZ124: 12 | CB124: 325 | EM124: 121 | EO124: 120 | EP124: (106)
A125: =IF(BE125>1,AF125&" ("&AE125&")",AF125&" ("&AG125&")") -> 121 (121) | B125: Robert Sjöberg | C125: Sketnabäck | D125: 316 | F125: 2 | G125: 79 | K125: 189 | L125: 127 | AB125: 17 | AC125: - | AD125: - | AE125: 121 | AF125: =IF(D125<D124,AH125,AF124) -> 121 | AG125: 121 | AH125: 121 | AK125: =COUNT($I$3,I125,H125) -> 1 | AL125: =COUNT($J$3,J125,I125) -> 1 | AM125: =COUNT($K$3,K125,J125) -> 2 | AN125: =COUNT($L$3,L125,K125) -> 3 | AO125: =COUNT($M$3,M125,L125) -> 2 | AP125: =COUNT($N$3,N125,M125) -> 1 | AQ125: =COUNT($O$3,O125,N125) -> 1 | AR125: =COUNT($P$3,P125,O125) -> 0 | AS125: =COUNT($Q$3,Q125,P125) -> 1 | AT125: =COUNT($R$3,R125,Q125) -> 1 | AU125: =COUNT($S$3,S125,R125) -> 1 | AV125: =COUNT($T$3,T125,S125) -> 1 | AW125: =COUNT($U$3,U125,T125) -> 1 | AX125: =COUNT($V$3,V125,U125) -> 1 | AY125: =COUNT($W$3,W125,V125) -> 0 | AZ125: =COUNT($X$3,X125,W125) -> 1 | BA125: =COUNT($Y$3,Y125,X125) -> 1 | BB125: =COUNT($Z$3,Z125,Y125) -> 1 | BC125: =COUNT($AA$3,AA125,Z125) -> 1 | BE125: =IF(H125="x",1,2) -> 2 | BH125: =IF($F125>0,LARGE($I125:$AA125,1),"") -> 189 | BI125: =IF($F125>1,LARGE($I125:$AA125,2),"") -> 127 | BJ125: =IF($F125>2,LARGE($I125:$AA125,3),"") ->  | BK125: =IF($F125>3,LARGE($I125:$AA125,4),"") ->  | BL125: =IF($F125>4,LARGE($I125:$AA125,5),"") ->  | BM125: =IF($F125>5,LARGE($I125:$AA125,6),"") ->  | BN125: =IF($F125>6,LARGE($I125:$AA125,7),"") ->  | BO125: =IF($F125>7,LARGE($I125:$AA125,8),"") ->  | BP125: =IF($F125>8,LARGE($I125:$AA125,9),"") ->  | BQ125: =IF($F125>9,LARGE($I125:$AA125,10),"") ->  | BR125: =IF($F125>10,LARGE($I125:$AA125,11),"") ->  | BS125: =IF($F125>11,LARGE($I125:$AA125,12),"") ->  | BT125: =IF($F125>12,LARGE($I125:$AA125,13),"") ->  | BU125: =IF($F125>13,LARGE($I125:$AA125,14),"") ->  | BV125: =IF($F125>14,LARGE($I125:$AA125,15),"") ->  | BX125: - | BY125: - | BZ125: 12 | CB125: 316 | EM125: 127 | EO125: 121 | EP125: (121)
A126: 122 (122) | B126: Oscar Stener | C126: Alvesta | D126: 303 | F126: 3 | G126: 50.5 | M126: 64 | T126: 89 | U126: 150 | AB126: 17 | AC126: - | AD126: - | AE126: 122 | AF126: 122 | AG126: 122 | AH126: 122 | AK126: 1 | AL126: 1 | AM126: 1 | AN126: 1 | AO126: 2 | AP126: 2 | AQ126: 1 | AR126: 0 | AS126: 1 | AT126: 1 | AU126: 1 | AV126: 2 | AW126: 3 | AX126: 2 | AY126: 0 | AZ126: 1 | BA126: 1 | BB126: 1 | BC126: 1 | BE126: 2 | BH126: 150 | BI126: 89 | BJ126: 64 | BX126: - | BY126: - | BZ126: 11 | CB126: 303 | EM126: 122 | EO126: 122 | EP126: (122)
A127: 123 (123) | B127: Kerstin Magnusson | C127: Växjö Hsk | D127: 295 | F127: 2 | G127: 73.75 | N127: 186 | U127: 109 | AB127: 17 | AC127: - | AD127: - | AE127: 123 | AF127: 123 | AG127: 123 | AH127: 123 | AK127: 1 | AL127: 1 | AM127: 1 | AN127: 1 | AO127: 1 | AP127: 2 | AQ127: 2 | AR127: 0 | AS127: 1 | AT127: 1 | AU127: 1 | AV127: 1 | AW127: 2 | AX127: 2 | AY127: 0 | AZ127: 1 | BA127: 1 | BB127: 1 | BC127: 1 | BE127: 2 | BH127: 186 | BI127: 109 | BX127: - | BY127: - | BZ127: 12 | CB127: 295 | EM127: 123 | EO127: 123 | EP127: (123)
A128: 124 (124) | B128: Johannes Engkvist | C128: Alvesta | D128: 288 | F128: 4 | G128: 36 | K128: 55 | L128: 65 | M128: 124 | O128: 44 | AB128: 17 | AC128: - | AD128: - | AE128: 124 | AF128: 124 | AG128: 124 | AH128: 124 | AK128: 1 | AL128: 1 | AM128: 2 | AN128: 3 | AO128: 3 | AP128: 2 | AQ128: 2 | AR128: 1 | AS128: 1 | AT128: 1 | AU128: 1 | AV128: 1 | AW128: 1 | AX128: 1 | AY128: 0 | AZ128: 1 | BA128: 1 | BB128: 1 | BC128: 1 | BE128: 2 | BH128: 124 | BI128: 65 | BJ128: 55 | BK128: 44 | BX128: - | BY128: - | BZ128: 10 | CB128: 288 | EM128: 124 | EO128: 124 | EP128: (124)
A129: 125 (125) | B129: Jonathan Rådström | C129: Jämjö Hsk | D129: 278 | F129: 2 | G129: 69.5 | U129: 142 | V129: 136 | AB129: 17 | AC129: - | AD129: - | AE129: 125 | AF129: 125 | AG129: 125 | AH129: 125 | AK129: 1 | AL129: 1 | AM129: 1 | AN129: 1 | AO129: 1 | AP129: 1 | AQ129: 1 | AR129: 0 | AS129: 1 | AT129: 1 | AU129: 1 | AV129: 1 | AW129: 2 | AX129: 3 | AY129: 1 | AZ129: 1 | BA129: 1 | BB129: 1 | BC129: 1 | BE129: 2 | BH129: 142 | BI129: 136 | BX129: - | BY129: - | BZ129: 12 | CB129: 278 | EM129: 125 | EO129: 125 | EP129: (125)
A130: 126 (126) | B130: Lennart Karlsson | C130: Lanternan | D130: 275 | F130: 3 | G130: 45.83333333 | N130: 71 | T130: 105 | V130: 99 | AB130: 17 | AC130: - | AD130: - | AE130: 126 | AF130: 126 | AG130: 126 | AH130: 126 | AK130: 1 | AL130: 1 | AM130: 1 | AN130: 1 | AO130: 1 | AP130: 2 | AQ130: 2 | AR130: 0 | AS130: 1 | AT130: 1 | AU130: 1 | AV130: 2 | AW130: 2 | AX130: 2 | AY130: 1 | AZ130: 1 | BA130: 1 | BB130: 1 | BC130: 1 | BE130: 2 | BH130: 105 | BI130: 99 | BJ130: 71 | BX130: - | BY130: - | BZ130: 11 | CB130: 275 | EM130: 126 | EO130: 126 | EP130: (126)
A131: 127 (127) | B131: Idah Strandberg | C131: Jämjö Hsk | D131: 272 | F131: 3 | G131: 45.33333333 | N131: 106 | Q131: 82 | U131: 84 | AB131: 17 | AC131: - | AD131: - | AE131: 127 | AF131: 127 | AG131: 127 | AH131: 127 | AK131: 1 | AL131: 1 | AM131: 1 | AN131: 1 | AO131: 1 | AP131: 2 | AQ131: 2 | AR131: 0 | AS131: 2 | AT131: 2 | AU131: 1 | AV131: 1 | AW131: 2 | AX131: 2 | AY131: 0 | AZ131: 1 | BA131: 1 | BB131: 1 | BC131: 1 | BE131: 2 | BH131: 106 | BI131: 84 | BJ131: 82 | BX131: - | BY131: - | BZ131: 11 | CB131: 272 | EM131: 113 | EO131: 127 | EP131: (127)
A132: 128 (128) | B132: Malin Lundqvist | C132: Alvesta | D132: 270 | F132: 2 | G132: 67.5 | M132: 79 | Q132: 191 | AB132: 17 | AC132: - | AD132: - | AE132: 128 | AF132: 128 | AG132: 128 | AH132: 128 | AK132: 1 | AL132: 1 | AM132: 1 | AN132: 1 | AO132: 2 | AP132: 2 | AQ132: 1 | AR132: 0 | AS132: 2 | AT132: 2 | AU132: 1 | AV132: 1 | AW132: 1 | AX132: 1 | AY132: 0 | AZ132: 1 | BA132: 1 | BB132: 1 | BC132: 1 | BE132: 2 | BH132: 191 | BI132: 79 | BX132: - | BY132: - | BZ132: 12 | CB132: 270 | EM132: 128 | EO132: 128 | EP132: (128)
A133: 129 (129) | B133: Towe Danielsson | C133: Korpen Nybro | D133: =SUM(BH133:BT133) -> 249 | F133: =COUNT(I133:AA133) -> 1 | G133: =SUM((CB133)/(F133*2)) -> 124.5 | T133: 249 | AB133: =SUM($I$3:$AA$3) -> 17 | AC133: =BX133 -> - | AD133: =BY133 -> - | AE133: 129 | AF133: 129 | AG133: =IF(F133>1,ROW(129:129),"-") -> - | AH133: 129 | AK133: 1 | AL133: 1 | AM133: 1 | AN133: 1 | AO133: 1 | AP133: 1 | AQ133: 1 | AR133: 0 | AS133: 1 | AT133: 1 | AU133: 1 | AV133: 2 | AW133: 2 | AX133: 1 | AY133: 0 | AZ133: 1 | BA133: 1 | BB133: 1 | BC133: 1 | BE133: 2 | BH133: 249 | BX133: - | BY133: - | BZ133: =SUM(AB133-F133)-3 -> 13 | CB133: =SUM(BH133:BW133) -> 249 | EM133: 129 | EO133: =IF(BE133>=1,AF133,"") -> 129 | EP133: =IF(BE133>1,"("&AE133&")","("&AG133&")") -> (129)
A134: 130 (131) | B134: Martin Björklund | C134: Sketnabäck | D134: 240 | F134: 1 | G134: 120 | K134: 240 | AB134: 17 | AC134: - | AD134: - | AE134: 131 | AF134: 130 | AG134: - | AH134: 130 | AK134: 1 | AL134: 1 | AM134: 2 | AN134: 2 | AO134: 1 | AP134: 1 | AQ134: 1 | AR134: 0 | AS134: 1 | AT134: 1 | AU134: 1 | AV134: 1 | AW134: 1 | AX134: 1 | AY134: 0 | AZ134: 1 | BA134: 1 | BB134: 1 | BC134: 1 | BE134: 2 | BH134: 240 | BW134: =IF($F134>15,LARGE($I134:$AA134,16),"") ->  | BX134: =IF($F134>13,LARGE($I134:$AA134,14),"-") -> - | BY134: =IF($F134>14,LARGE($I134:$AA134,15),"-") -> - | BZ134: 13 | CB134: 240 | EM134: 130 | EO134: 130 | EP134: (131)
A135: 131 (132) | B135: Rikard Åberg | C135: Alvesta | D135: 225 | F135: 2 | G135: 56.25 | M135: 102 | Q135: 123 | AB135: 17 | AC135: - | AD135: - | AE135: 132 | AF135: 131 | AG135: 131 | AH135: 131 | AK135: 1 | AL135: 1 | AM135: 1 | AN135: 1 | AO135: 2 | AP135: 2 | AQ135: 1 | AR135: 0 | AS135: 2 | AT135: 2 | AU135: 1 | AV135: 1 | AW135: 1 | AX135: 1 | AY135: 0 | AZ135: 1 | BA135: 1 | BB135: 1 | BC135: 1 | BE135: 2 | BH135: 123 | BI135: 102 | BX135: - | BY135: - | BZ135: 12 | CB135: 225 | EM135: 131 | EO135: 131 | EP135: (132)
A136: 132 (133) | B136: Johan Karlsson | C136: Korpen Åseda | D136: 218 | F136: 1 | G136: 109 | S136: 218 | AB136: 17 | AC136: - | AD136: - | AE136: 133 | AF136: 132 | AG136: - | AH136: 132 | AK136: 1 | AL136: 1 | AM136: 1 | AN136: 1 | AO136: 1 | AP136: 1 | AQ136: 1 | AR136: 0 | AS136: 1 | AT136: 1 | AU136: 2 | AV136: 2 | AW136: 1 | AX136: 1 | AY136: 0 | AZ136: 1 | BA136: 1 | BB136: 1 | BC136: 1 | BE136: 2 | BH136: 218 | BX136: - | BY136: - | BZ136: 13 | CB136: 218 | EM136: 132 | EO136: 132 | EP136: (133)
A137: 133 (134) | B137: Börje Carlsson | C137: Korpen Åseda | D137: 214 | F137: 2 | G137: 53.5 | J137: 104 | M137: 110 | AB137: 17 | AC137: - | AD137: - | AE137: 134 | AF137: 133 | AG137: 133 | AH137: 133 | AK137: 1 | AL137: 2 | AM137: 2 | AN137: 1 | AO137: 2 | AP137: 2 | AQ137: 1 | AR137: 0 | AS137: 1 | AT137: 1 | AU137: 1 | AV137: 1 | AW137: 1 | AX137: 1 | AY137: 0 | AZ137: 1 | BA137: 1 | BB137: 1 | BC137: 1 | BE137: 2 | BH137: 110 | BI137: 104 | BX137: - | BY137: - | BZ137: 12 | CB137: 214 | EM137: 133 | EO137: 133 | EP137: (134)
A138: 134 (136) | B138: Kjell Rydh | C138: Korpen Nybro | D138: 213 | F138: 1 | G138: 106.5 | T138: 213 | AB138: 17 | AC138: - | AD138: - | AE138: 136 | AF138: 134 | AG138: - | AH138: 134 | AK138: 1 | AL138: 1 | AM138: 1 | AN138: 1 | AO138: 1 | AP138: 1 | AQ138: 1 | AR138: 0 | AS138: 1 | AT138: 1 | AU138: 1 | AV138: 2 | AW138: 2 | AX138: 1 | AY138: 0 | AZ138: 1 | BA138: 1 | BB138: 1 | BC138: 1 | BE138: 2 | BH138: 213 | BX138: - | BY138: - | BZ138: 13 | CB138: 213 | EM138: 135 | EO138: 134 | EP138: (136)
A139: 135 (137) | B139: Anders Alriksson | C139: Dynapac | D139: 211 | F139: 1 | G139: 105.5 | Q139: 211 | AB139: 17 | AC139: - | AD139: - | AE139: 137 | AF139: 135 | AG139: - | AH139: 135 | AK139: 1 | AL139: 1 | AM139: 1 | AN139: 1 | AO139: 1 | AP139: 1 | AQ139: 1 | AR139: 0 | AS139: 2 | AT139: 2 | AU139: 1 | AV139: 1 | AW139: 1 | AX139: 1 | AY139: 0 | AZ139: 1 | BA139: 1 | BB139: 1 | BC139: 1 | BE139: 2 | BH139: 211 | BX139: - | BY139: - | BZ139: 13 | CB139: 211 | EM139: 136 | EO139: 135 | EP139: (137)
A140: 136 (138) | B140: Roland Andreasson | C140: Lanternan | D140: 210 | F140: 1 | G140: 105 | Y140: 210 | AB140: 17 | AC140: - | AD140: - | AE140: 138 | AF140: 136 | AG140: - | AH140: 136 | AK140: 1 | AL140: 1 | AM140: 1 | AN140: 1 | AO140: 1 | AP140: 1 | AQ140: 1 | AR140: 0 | AS140: 1 | AT140: 1 | AU140: 1 | AV140: 1 | AW140: 1 | AX140: 1 | AY140: 0 | AZ140: 1 | BA140: 2 | BB140: 2 | BC140: 1 | BE140: 2 | BH140: 210 | BX140: - | BY140: - | BZ140: 13 | CB140: 210 | EM140: 137 | EO140: 136 | EP140: (138)
A141: 137 (139) | B141: Magnus Stenberg | C141: Hsk Tingzås | D141: 195 | F141: 1 | G141: 97.5 | O141: 195 | AB141: 17 | AC141: - | AD141: - | AE141: 139 | AF141: 137 | AG141: - | AH141: 137 | AK141: 1 | AL141: 1 | AM141: 1 | AN141: 1 | AO141: 1 | AP141: 1 | AQ141: 2 | AR141: 1 | AS141: 1 | AT141: 1 | AU141: 1 | AV141: 1 | AW141: 1 | AX141: 1 | AY141: 0 | AZ141: 1 | BA141: 1 | BB141: 1 | BC141: 1 | BE141: 2 | BH141: 195 | BX141: - | BY141: - | BZ141: 13 | CB141: 195 | EM141: 138 | EO141: 137 | EP141: (139)
A142: 138 (140) | B142: Roy Johansson | C142: Lanternan | D142: 194 | F142: 1 | G142: 97 | J142: 194 | AB142: 17 | AC142: - | AD142: - | AE142: 140 | AF142: 138 | AG142: - | AH142: 138 | AK142: 1 | AL142: 2 | AM142: 2 | AN142: 1 | AO142: 1 | AP142: 1 | AQ142: 1 | AR142: 0 | AS142: 1 | AT142: 1 | AU142: 1 | AV142: 1 | AW142: 1 | AX142: 1 | AY142: 0 | AZ142: 1 | BA142: 1 | BB142: 1 | BC142: 1 | BE142: 2 | BH142: 194 | BX142: - | BY142: - | BZ142: 13 | CB142: 194 | EM142: 167 | EO142: 167 | EP142: (140)
A143: 139 (141) | B143: Kenneth Andersson | C143: Dynapac | D143: 193 | F143: 1 | G143: 96.5 | V143: 193 | AB143: 17 | AC143: - | AD143: - | AE143: 141 | AF143: 139 | AG143: - | AH143: 139 | AK143: 1 | AL143: 1 | AM143: 1 | AN143: 1 | AO143: 1 | AP143: 1 | AQ143: 1 | AR143: 0 | AS143: 1 | AT143: 1 | AU143: 1 | AV143: 1 | AW143: 1 | AX143: 2 | AY143: 1 | AZ143: 1 | BA143: 1 | BB143: 1 | BC143: 1 | BE143: 2 | BH143: 193 | BX143: - | BY143: - | BZ143: 13 | CB143: 193 | EM143: 139 | EO143: =IF(BE143>=1,AF143,"") -> 139 | EP143: (141)
A144: 140 (142) | B144: Susanne Simonsson | C144: Lanternan | D144: 187 | F144: 1 | G144: 93.5 | Y144: 187 | AB144: 17 | AC144: - | AD144: - | AE144: 142 | AF144: 140 | AG144: - | AH144: 140 | AK144: 1 | AL144: 1 | AM144: 1 | AN144: 1 | AO144: 1 | AP144: 1 | AQ144: 1 | AR144: 0 | AS144: 1 | AT144: 1 | AU144: 1 | AV144: 1 | AW144: 1 | AX144: 1 | AY144: 0 | AZ144: 1 | BA144: 2 | BB144: 2 | BC144: 1 | BE144: 2 | BH144: 187 | BX144: - | BY144: - | BZ144: 13 | CB144: 187 | EM144: 140 | EO144: =IF(BE144>1,AF144,"") -> 140 | EP144: (142)
A145: 141 (143) | B145: Allan Persson | C145: Tingsryd | D145: 184 | F145: 2 | G145: 46 | U145: 102 | AA145: 82 | AB145: 17 | AC145: - | AD145: - | AE145: 143 | AF145: 141 | AG145: 141 | AH145: 141 | AK145: 1 | AL145: 1 | AM145: 1 | AN145: 1 | AO145: 1 | AP145: 1 | AQ145: 1 | AR145: 0 | AS145: 1 | AT145: 1 | AU145: 1 | AV145: 1 | AW145: 2 | AX145: 2 | AY145: 0 | AZ145: 1 | BA145: 1 | BB145: 1 | BC145: 2 | BE145: 2 | BH145: 102 | BI145: 82 | BX145: - | BY145: - | BZ145: 12 | CB145: 184 | EM145: 141 | EO145: =IF(BE145>=1,AF145,"") -> 141 | EP145: (143)
A146: 142 (144) | B146: Anna Stenberg | C146: Hsk Tingzås | D146: 182 | F146: 1 | G146: 91 | O146: 182 | AB146: 17 | AC146: - | AD146: - | AE146: 144 | AF146: 142 | AG146: - | AH146: 142 | AK146: 1 | AL146: 1 | AM146: 1 | AN146: 1 | AO146: 1 | AP146: 1 | AQ146: 2 | AR146: 1 | AS146: 1 | AT146: 1 | AU146: 1 | AV146: 1 | AW146: 1 | AX146: 1 | AY146: 0 | AZ146: 1 | BA146: 1 | BB146: 1 | BC146: 1 | BE146: 2 | BH146: 182 | BX146: - | BY146: - | BZ146: 13 | CB146: 182 | EM146: 142 | EO146: =IF(BE146>=1,AF146,"") -> 142 | EP146: (144)
A147: 142 (144) | B147: Bertil Westergren | C147: Växjö Hsk | D147: 182 | F147: 1 | G147: 91 | S147: 182 | AB147: 17 | AC147: - | AD147: - | AE147: 144 | AF147: 142 | AG147: - | AH147: 143 | AK147: 1 | AL147: 1 | AM147: 1 | AN147: 1 | AO147: 1 | AP147: 1 | AQ147: 1 | AR147: 0 | AS147: 1 | AT147: 1 | AU147: 2 | AV147: 2 | AW147: 1 | AX147: 1 | AY147: 0 | AZ147: 1 | BA147: 1 | BB147: 1 | BC147: 1 | BE147: 2 | BH147: 182 | BX147: - | BY147: - | BZ147: 13 | CB147: 182 | EM147: 143 | EO147: =IF(BE147>=1,AF147,"") -> 142 | EP147: (144)
A148: 144 (146) | B148: Ida Johansson | C148: Jämjö Hsk | D148: 177 | F148: 2 | G148: 44.25 | Q148: 116 | R148: 61 | AB148: 17 | AC148: - | AD148: - | AE148: 146 | AF148: 144 | AG148: 144 | AH148: 144 | AK148: 1 | AL148: 1 | AM148: 1 | AN148: 1 | AO148: 1 | AP148: 1 | AQ148: 1 | AR148: 0 | AS148: 2 | AT148: 3 | AU148: 2 | AV148: 1 | AW148: 1 | AX148: 1 | AY148: 0 | AZ148: 1 | BA148: 1 | BB148: 1 | BC148: 1 | BE148: 2 | BH148: 116 | BI148: 61 | BX148: - | BY148: - | BZ148: 12 | CB148: 177 | EM148: 144 | EO148: =IF(BE148>=1,AF148,"") -> 144 | EP148: (146)
A149: 145 (147) | B149: Andreas Holmberg | C149: Jämjö Hsk | D149: 169 | F149: 1 | G149: 84.5 | K149: 169 | AB149: 17 | AC149: - | AD149: - | AE149: 147 | AF149: 145 | AG149: - | AH149: 145 | AK149: 1 | AL149: 1 | AM149: 2 | AN149: 2 | AO149: 1 | AP149: 1 | AQ149: 1 | AR149: 0 | AS149: 1 | AT149: 1 | AU149: 1 | AV149: 1 | AW149: 1 | AX149: 1 | AY149: 0 | AZ149: 1 | BA149: 1 | BB149: 1 | BC149: 1 | BE149: 2 | BH149: 169 | BX149: - | BY149: - | BZ149: 13 | CB149: 169 | EM149: 145 | EO149: =IF(BE149>=1,AF149,"") -> 145 | EP149: (147)
A150: 146 (148) | B150: Mikael Grönskog | C150: Sibbamåla | D150: 167 | F150: 1 | G150: 83.5 | Z150: 167 | AB150: 17 | AC150: - | AD150: - | AE150: 148 | AF150: 146 | AG150: - | AH150: 146 | AK150: 1 | AL150: 1 | AM150: 1 | AN150: 1 | AO150: 1 | AP150: 1 | AQ150: 1 | AR150: 0 | AS150: 1 | AT150: 1 | AU150: 1 | AV150: 1 | AW150: 1 | AX150: 1 | AY150: 0 | AZ150: 1 | BA150: 1 | BB150: 2 | BC150: 2 | BE150: 2 | BH150: 167 | BX150: - | BY150: - | BZ150: 13 | CB150: 167 | EM150: 175 | EO150: =IF(BE150>1,AF150,"") -> 146 | EP150: (148)
A151: 147 (118) | B151: Christina Holmberg | C151: Tingsryd | D151: 165 | F151: 1 | G151: 82.5 | O151: 165 | AB151: 17 | AC151: - | AD151: - | AE151: 118 | AF151: 147 | AG151: - | AH151: 147 | AK151: 1 | AL151: 1 | AM151: 1 | AN151: 1 | AO151: 1 | AP151: 1 | AQ151: 2 | AR151: 1 | AS151: 1 | AT151: 1 | AU151: 1 | AV151: 1 | AW151: 1 | AX151: 1 | AY151: 0 | AZ151: 1 | BA151: 1 | BB151: 1 | BC151: 1 | BE151: 2 | BH151: 165 | BX151: - | BY151: - | BZ151: 13 | CB151: 165 | EM151: 146 | EO151: =IF(BE151>=1,AF151,"") -> 147 | EP151: (118)
A152: 148 (149) | B152: Ola Holgersson | C152: Holmsjö Youngster | D152: 158 | F152: 1 | G152: 79 | O152: 158 | AB152: 17 | AC152: - | AD152: - | AE152: 149 | AF152: 148 | AG152: - | AH152: 148 | AK152: 1 | AL152: 1 | AM152: 1 | AN152: 1 | AO152: 1 | AP152: 1 | AQ152: 2 | AR152: 1 | AS152: 1 | AT152: 1 | AU152: 1 | AV152: 1 | AW152: 1 | AX152: 1 | AY152: 0 | AZ152: 1 | BA152: 1 | BB152: 1 | BC152: 1 | BE152: 2 | BH152: 158 | BX152: - | BY152: - | BZ152: 13 | CB152: 158 | EM152: 147 | EO152: 148 | EP152: (149)
A153: 149 (150) | B153: Kerstin Petersen | C153: Växjö | D153: 154 | F153: 1 | G153: 77 | M153: 154 | AB153: 17 | AC153: - | AD153: - | AE153: 150 | AF153: 149 | AG153: - | AH153: 149 | AK153: 1 | AL153: 1 | AM153: 1 | AN153: 1 | AO153: 2 | AP153: 2 | AQ153: 1 | AR153: 0 | AS153: 1 | AT153: 1 | AU153: 1 | AV153: 1 | AW153: 1 | AX153: 1 | AY153: 0 | AZ153: 1 | BA153: 1 | BB153: 1 | BC153: 1 | BE153: 2 | BH153: 154 | BX153: - | BY153: - | BZ153: 13 | CB153: 154 | EM153: 148 | EO153: 149 | EP153: (150)
A154: 150 (151) | B154: Ulrich Hofer | C154: Lanternan | D154: 150 | F154: 1 | G154: 75 | J154: 150 | AB154: 17 | AC154: - | AD154: - | AE154: 151 | AF154: 150 | AG154: - | AH154: 150 | AK154: 1 | AL154: 2 | AM154: 2 | AN154: 1 | AO154: 1 | AP154: 1 | AQ154: 1 | AR154: 0 | AS154: 1 | AT154: 1 | AU154: 1 | AV154: 1 | AW154: 1 | AX154: 1 | AY154: 0 | AZ154: 1 | BA154: 1 | BB154: 1 | BC154: 1 | BE154: 2 | BH154: 150 | BX154: - | BY154: - | BZ154: 13 | CB154: 150 | EM154: 149 | EO154: 150 | EP154: (151)
A155: 151 (152) | B155: Irené Pettersson | C155: Lanternan | D155: 147 | F155: 1 | G155: 73.5 | J155: 147 | AB155: 17 | AC155: - | AD155: - | AE155: 152 | AF155: 151 | AG155: - | AH155: 151 | AK155: 1 | AL155: 2 | AM155: 2 | AN155: 1 | AO155: 1 | AP155: 1 | AQ155: 1 | AR155: 0 | AS155: 1 | AT155: 1 | AU155: 1 | AV155: 1 | AW155: 1 | AX155: 1 | AY155: 0 | AZ155: 1 | BA155: 1 | BB155: 1 | BC155: 1 | BE155: 2 | BH155: 147 | BX155: - | BY155: - | BZ155: 13 | CB155: 147 | EM155: 150 | EO155: 151 | EP155: (152)
A156: 152 (153) | B156: Henry Johansson | C156: Korpen Åseda | D156: 141 | F156: 1 | G156: 70.5 | S156: 141 | AB156: 17 | AC156: - | AD156: - | AE156: 153 | AF156: 152 | AG156: - | AH156: 152 | AK156: 1 | AL156: 1 | AM156: 1 | AN156: 1 | AO156: 1 | AP156: 1 | AQ156: 1 | AR156: 0 | AS156: 1 | AT156: 1 | AU156: 2 | AV156: 2 | AW156: 1 | AX156: 1 | AY156: 0 | AZ156: 1 | BA156: 1 | BB156: 1 | BC156: 1 | BE156: 2 | BH156: 141 | BX156: - | BY156: - | BZ156: 13 | CB156: 141 | EM156: 151 | EO156: 152 | EP156: (153)
A157: =IF(BE157>1,AF157&" ("&AE157&")",AF157&" ("&AG157&")") -> 153 (154) | B157: Kent Vikström | C157: Växjö | D157: 140 | F157: 1 | G157: 70 | M157: 140 | AB157: 17 | AC157: - | AD157: - | AE157: 154 | AF157: =IF(D157<D156,AH157,AF156) -> 153 | AG157: - | AH157: 153 | AK157: =COUNT($I$3,I157,H157) -> 1 | AL157: =COUNT($J$3,J157,I157) -> 1 | AM157: =COUNT($K$3,K157,J157) -> 1 | AN157: =COUNT($L$3,L157,K157) -> 1 | AO157: =COUNT($M$3,M157,L157) -> 2 | AP157: =COUNT($N$3,N157,M157) -> 2 | AQ157: =COUNT($O$3,O157,N157) -> 1 | AR157: =COUNT($P$3,P157,O157) -> 0 | AS157: =COUNT($Q$3,Q157,P157) -> 1 | AT157: =COUNT($R$3,R157,Q157) -> 1 | AU157: =COUNT($S$3,S157,R157) -> 1 | AV157: =COUNT($T$3,T157,S157) -> 1 | AW157: =COUNT($U$3,U157,T157) -> 1 | AX157: =COUNT($V$3,V157,U157) -> 1 | AY157: =COUNT($W$3,W157,V157) -> 0 | AZ157: =COUNT($X$3,X157,W157) -> 1 | BA157: =COUNT($Y$3,Y157,X157) -> 1 | BB157: =COUNT($Z$3,Z157,Y157) -> 1 | BC157: =COUNT($AA$3,AA157,Z157) -> 1 | BE157: =IF(H157="x",1,2) -> 2 | BH157: =IF($F157>0,LARGE($I157:$AA157,1),"") -> 140 | BI157: =IF($F157>1,LARGE($I157:$AA157,2),"") ->  | BJ157: =IF($F157>2,LARGE($I157:$AA157,3),"") ->  | BK157: =IF($F157>3,LARGE($I157:$AA157,4),"") ->  | BL157: =IF($F157>4,LARGE($I157:$AA157,5),"") ->  | BM157: =IF($F157>5,LARGE($I157:$AA157,6),"") ->  | BN157: =IF($F157>6,LARGE($I157:$AA157,7),"") ->  | BO157: =IF($F157>7,LARGE($I157:$AA157,8),"") ->  | BP157: =IF($F157>8,LARGE($I157:$AA157,9),"") ->  | BQ157: =IF($F157>9,LARGE($I157:$AA157,10),"") ->  | BR157: =IF($F157>10,LARGE($I157:$AA157,11),"") ->  | BS157: =IF($F157>11,LARGE($I157:$AA157,12),"") ->  | BT157: =IF($F157>12,LARGE($I157:$AA157,13),"") ->  | BU157: =IF($F157>13,LARGE($I157:$AA157,14),"") ->  | BV157: =IF($F157>14,LARGE($I157:$AA157,15),"") ->  | BX157: - | BY157: - | BZ157: 13 | CB157: 140 | EM157: 184 | EO157: =IF(BE157>1,AF157,"") -> 153 | EP157: (154)
A158: 154 (155) | B158: Andreas Collin | C158: Hsk Tingzås | D158: 135 | F158: 1 | G158: 67.5 | I158: 135 | AB158: 17 | AC158: - | AD158: - | AE158: 155 | AF158: 154 | AG158: - | AH158: 154 | AK158: 2 | AL158: 2 | AM158: 1 | AN158: 1 | AO158: 1 | AP158: 1 | AQ158: 1 | AR158: 0 | AS158: 1 | AT158: 1 | AU158: 1 | AV158: 1 | AW158: 1 | AX158: 1 | AY158: 0 | AZ158: 1 | BA158: 1 | BB158: 1 | BC158: 1 | BE158: 2 | BH158: 135 | BX158: - | BY158: - | BZ158: 13 | CB158: 135 | EM158: 152 | EO158: =IF(BE158>=1,AF158,"") -> 154 | EP158: (155)
A159: 154 (155) | B159: Ivar Lindstedt | C159: Cementa IF | D159: 135 | F159: 1 | G159: 67.5 | O159: 135 | AB159: 17 | AC159: - | AD159: - | AE159: 155 | AF159: 154 | AG159: - | AH159: 155 | AK159: 1 | AL159: 1 | AM159: 1 | AN159: 1 | AO159: 1 | AP159: 1 | AQ159: 2 | AR159: 1 | AS159: 1 | AT159: 1 | AU159: 1 | AV159: 1 | AW159: 1 | AX159: 1 | AY159: 0 | AZ159: 1 | BA159: 1 | BB159: 1 | BC159: 1 | BE159: 2 | BH159: 135 | BX159: - | BY159: - | BZ159: 13 | CB159: 135 | EM159: 153 | EO159: 154 | EP159: (155)
A160: 156 (157) | B160: Neo Rådström | C160: Jämjö Hsk | D160: 128 | F160: 1 | G160: 64 | U160: 128 | AB160: 17 | AC160: - | AD160: - | AE160: 157 | AF160: 156 | AG160: - | AH160: 156 | AK160: 1 | AL160: 1 | AM160: 1 | AN160: 1 | AO160: 1 | AP160: 1 | AQ160: 1 | AR160: 0 | AS160: 1 | AT160: 1 | AU160: 1 | AV160: 1 | AW160: 2 | AX160: 2 | AY160: 0 | AZ160: 1 | BA160: 1 | BB160: 1 | BC160: 1 | BE160: 2 | BH160: 128 | BX160: - | BY160: - | BZ160: 13 | CB160: 128 | EM160: 154 | EO160: 156 | EP160: (157)
A161: 157 (158) | B161: Per Blihd | C161: Niklassons Glas | D161: 120 | F161: 1 | G161: 60 | J161: 120 | AB161: 17 | AC161: - | AD161: - | AE161: 158 | AF161: 157 | AG161: - | AH161: 157 | AK161: 1 | AL161: 2 | AM161: 2 | AN161: 1 | AO161: 1 | AP161: 1 | AQ161: 1 | AR161: 0 | AS161: 1 | AT161: 1 | AU161: 1 | AV161: 1 | AW161: 1 | AX161: 1 | AY161: 0 | AZ161: 1 | BA161: 1 | BB161: 1 | BC161: 1 | BE161: 2 | BH161: 120 | BX161: - | BY161: - | BZ161: 13 | CB161: 120 | EM161: 156 | EO161: 157 | EP161: (158)
A162: 158 (159) | B162: Elin Edlund | C162: Dynapac | D162: 116 | F162: 1 | G162: 58 | Q162: 116 | AB162: 17 | AC162: - | AD162: - | AE162: 159 | AF162: 158 | AG162: - | AH162: 158 | AK162: 1 | AL162: 1 | AM162: 1 | AN162: 1 | AO162: 1 | AP162: 1 | AQ162: 1 | AR162: 0 | AS162: 2 | AT162: 2 | AU162: 1 | AV162: 1 | AW162: 1 | AX162: 1 | AY162: 0 | AZ162: 1 | BA162: 1 | BB162: 1 | BC162: 1 | BE162: 2 | BH162: 116 | BX162: - | BY162: - | BZ162: 13 | CB162: 116 | EM162: 157 | EO162: 158 | EP162: (159)
A163: 159 (160) | B163: Mikaela Haraldsson | C163: Niklassons Glas | D163: 115 | F163: 1 | G163: 57.5 | J163: 115 | AB163: 17 | AC163: - | AD163: - | AE163: 160 | AF163: 159 | AG163: - | AH163: 159 | AK163: 1 | AL163: 2 | AM163: 2 | AN163: 1 | AO163: 1 | AP163: 1 | AQ163: 1 | AR163: 0 | AS163: 1 | AT163: 1 | AU163: 1 | AV163: 1 | AW163: 1 | AX163: 1 | AY163: 0 | AZ163: 1 | BA163: 1 | BB163: 1 | BC163: 1 | BE163: 2 | BH163: 115 | BX163: - | BY163: - | BZ163: 13 | CB163: 115 | EM163: 158 | EO163: 159 | EP163: (160)
A164: 160 (161) | B164: Morgan Atle | C164: Dynapac | D164: 113 | F164: 1 | G164: 56.5 | J164: 113 | AB164: 17 | AC164: - | AD164: - | AE164: 161 | AF164: 160 | AG164: - | AH164: 160 | AK164: 1 | AL164: 2 | AM164: 2 | AN164: 1 | AO164: 1 | AP164: 1 | AQ164: 1 | AR164: 0 | AS164: 1 | AT164: 1 | AU164: 1 | AV164: 1 | AW164: 1 | AX164: 1 | AY164: 0 | AZ164: 1 | BA164: 1 | BB164: 1 | BC164: 1 | BE164: 2 | BH164: 113 | BX164: - | BY164: - | BZ164: 13 | CB164: 113 | EM164: 159 | EO164: 160 | EP164: (161)
A165: 161 (162) | B165: Bill Bergman | C165: Boge Sels | D165: 112 | F165: 1 | G165: 56 | O165: 112 | AB165: 17 | AC165: - | AD165: - | AE165: 162 | AF165: 161 | AG165: =IF(F165>1,ROW(161:161),"-") -> - | AH165: 161 | AK165: 1 | AL165: 1 | AM165: 1 | AN165: 1 | AO165: 1 | AP165: 1 | AQ165: 2 | AR165: 1 | AS165: 1 | AT165: 1 | AU165: 1 | AV165: 1 | AW165: 1 | AX165: 1 | AY165: 0 | AZ165: 1 | BA165: 1 | BB165: 1 | BC165: 1 | BE165: 2 | BH165: 112 | BX165: - | BY165: - | BZ165: 13 | CB165: 112 | EM165: 206 | EO165: =IF(BE165>1,AF165,"") -> 161 | EP165: (162)
A166: 162 (163) | B166: Emil Pettersson | C166: Lanternan | D166: 110 | F166: 1 | G166: 55 | I166: 110 | AB166: 17 | AC166: - | AD166: - | AE166: 163 | AF166: 162 | AG166: - | AH166: 162 | AK166: 2 | AL166: 2 | AM166: 1 | AN166: 1 | AO166: 1 | AP166: 1 | AQ166: 1 | AR166: 0 | AS166: 1 | AT166: 1 | AU166: 1 | AV166: 1 | AW166: 1 | AX166: 1 | AY166: 0 | AZ166: 1 | BA166: 1 | BB166: 1 | BC166: 1 | BE166: 2 | BH166: 110 | BX166: - | BY166: - | BZ166: 13 | CB166: 110 | EM166: 160 | EO166: =IF(BE166>=1,AF166,"") -> 162 | EP166: (163)
A167: 163 (164) | B167: Sanne Bergman | C167: Boge Sels | D167: 103 | F167: 1 | G167: 51.5 | O167: 103 | AB167: 17 | AC167: - | AD167: - | AE167: 164 | AF167: 163 | AG167: - | AH167: 163 | AK167: 1 | AL167: 1 | AM167: 1 | AN167: 1 | AO167: 1 | AP167: 1 | AQ167: 2 | AR167: 1 | AS167: 1 | AT167: 1 | AU167: 1 | AV167: 1 | AW167: 1 | AX167: 1 | AY167: 0 | AZ167: 1 | BA167: 1 | BB167: 1 | BC167: 1 | BE167: 2 | BH167: 103 | BX167: - | BY167: - | BZ167: 13 | CB167: 103 | EM167: 161 | EO167: 161 | EP167: (164)
A168: 164 (165) | B168: Per-Åke Södergren | C168: Cementa IF | D168: 100 | F168: 1 | G168: 50 | O168: 100 | AB168: 17 | AC168: - | AD168: - | AE168: 165 | AF168: 164 | AG168: - | AH168: 164 | AK168: 1 | AL168: 1 | AM168: 1 | AN168: 1 | AO168: 1 | AP168: 1 | AQ168: 2 | AR168: 1 | AS168: 1 | AT168: 1 | AU168: 1 | AV168: 1 | AW168: 1 | AX168: 1 | AY168: 0 | AZ168: 1 | BA168: 1 | BB168: 1 | BC168: 1 | BE168: 2 | BH168: 100 | BX168: - | BY168: - | BZ168: 13 | CB168: 100 | EM168: 162 | EO168: =IF(BE168>1,AF168,"") -> 164 | EP168: (165)
A169: 165 (166) | B169: Klas-Åke Lindström | C169: Hsk Tingzås | D169: 94 | F169: 1 | G169: 47 | O169: 94 | AB169: 17 | AC169: - | AD169: - | AE169: 166 | AF169: 165 | AG169: - | AH169: 165 | AK169: 1 | AL169: 1 | AM169: 1 | AN169: 1 | AO169: 1 | AP169: 1 | AQ169: 2 | AR169: 1 | AS169: 1 | AT169: 1 | AU169: 1 | AV169: 1 | AW169: 1 | AX169: 1 | AY169: 0 | AZ169: 1 | BA169: 1 | BB169: 1 | BC169: 1 | BE169: 2 | BH169: 94 | BX169: - | BY169: - | BZ169: 13 | CB169: 94 | EM169: 163 | EO169: =IF(BE169>1,AF169,"") -> 165 | EP169: (166)
A170: 165 (166) | B170: John Norrby | C170: Team Vitviken | D170: 94 | F170: 1 | G170: 47 | O170: 94 | AB170: 17 | AC170: - | AD170: - | AE170: 166 | AF170: 165 | AG170: - | AH170: 166 | AK170: 1 | AL170: 1 | AM170: 1 | AN170: 1 | AO170: 1 | AP170: 1 | AQ170: 2 | AR170: 1 | AS170: 1 | AT170: 1 | AU170: 1 | AV170: 1 | AW170: 1 | AX170: 1 | AY170: 0 | AZ170: 1 | BA170: 1 | BB170: 1 | BC170: 1 | BE170: 2 | BH170: 94 | BX170: - | BY170: - | BZ170: 13 | CB170: 94 | EM170: 164 | EO170: =IF(BE170>1,AF170,"") -> 165 | EP170: (166)
A171: 167 (168) | B171: Gunnel Karlsson | C171: Hsk Tingzås | D171: 92 | F171: 1 | G171: 46 | I171: 92 | AB171: 17 | AC171: - | AD171: - | AE171: 168 | AF171: 167 | AG171: - | AH171: 167 | AK171: 2 | AL171: 2 | AM171: 1 | AN171: 1 | AO171: 1 | AP171: 1 | AQ171: 1 | AR171: 0 | AS171: 1 | AT171: 1 | AU171: 1 | AV171: 1 | AW171: 1 | AX171: 1 | AY171: 0 | AZ171: 1 | BA171: 1 | BB171: 1 | BC171: 1 | BE171: 2 | BH171: 92 | BX171: - | BY171: - | BZ171: 13 | CB171: 92 | EM171: 165 | EO171: =IF(BE171>1,AF171,"") -> 167 | EP171: (168)
A172: 167 (168) | B172: Anne-Lie Laholm | C172: Laholm | D172: 92 | F172: 1 | G172: 46 | O172: 92 | AB172: 17 | AC172: - | AD172: - | AE172: 168 | AF172: 167 | AG172: - | AH172: 168 | AK172: 1 | AL172: 1 | AM172: 1 | AN172: 1 | AO172: 1 | AP172: 1 | AQ172: 2 | AR172: 1 | AS172: 1 | AT172: 1 | AU172: 1 | AV172: 1 | AW172: 1 | AX172: 1 | AY172: 0 | AZ172: 1 | BA172: 1 | BB172: 1 | BC172: 1 | BE172: 2 | BH172: 92 | BX172: - | BY172: - | BZ172: 13 | CB172: 92 | EM172: 195 | EO172: =IF(BE172>1,AF172,"") -> 167 | EP172: (168)
A173: 169 (170) | B173: Helen Andersson | C173: Carlskrona | D173: 90 | F173: 1 | G173: 45 | R173: 90 | AB173: 17 | AC173: - | AD173: - | AE173: 170 | AF173: 169 | AG173: - | AH173: 169 | AK173: 1 | AL173: 1 | AM173: 1 | AN173: 1 | AO173: 1 | AP173: 1 | AQ173: 1 | AR173: 0 | AS173: 1 | AT173: 2 | AU173: 2 | AV173: 1 | AW173: 1 | AX173: 1 | AY173: 0 | AZ173: 1 | BA173: 1 | BB173: 1 | BC173: 1 | BE173: 2 | BH173: 90 | BX173: - | BY173: - | BZ173: 13 | CB173: 90 | EM173: 134 | EO173: =IF(BE173>=1,AF173,"") -> 169 | EP173: (170)
A174: 170 (171) | B174: Judith Karlsson | C174: Växjö Hsk | D174: 88 | F174: 1 | G174: 44 | M174: 88 | AB174: 17 | AC174: - | AD174: - | AE174: 171 | AF174: 170 | AG174: - | AH174: 170 | AK174: 1 | AL174: 1 | AM174: 1 | AN174: 1 | AO174: 2 | AP174: 2 | AQ174: 1 | AR174: 0 | AS174: 1 | AT174: 1 | AU174: 1 | AV174: 1 | AW174: 1 | AX174: 1 | AY174: 0 | AZ174: 1 | BA174: 1 | BB174: 1 | BC174: 1 | BE174: 2 | BH174: 88 | BX174: - | BY174: - | BZ174: 13 | CB174: 88 | EM174: 166 | EO174: =IF(BE174>1,AF174,"") -> 170 | EP174: (171)
A175: 171 (172) | B175: Göran Brincner | C175: Värends Hsk | D175: 78 | F175: 1 | G175: 39 | O175: 78 | AB175: 17 | AC175: - | AD175: - | AE175: 172 | AF175: 171 | AG175: - | AH175: 171 | AK175: 1 | AL175: 1 | AM175: 1 | AN175: 1 | AO175: 1 | AP175: 1 | AQ175: 2 | AR175: 1 | AS175: 1 | AT175: 1 | AU175: 1 | AV175: 1 | AW175: 1 | AX175: 1 | AY175: 0 | AZ175: 1 | BA175: 1 | BB175: 1 | BC175: 1 | BE175: 2 | BH175: 78 | BX175: - | BY175: - | BZ175: 13 | CB175: 78 | EM175: 168 | EO175: 168 | EP175: (172)
A176: 172 (173) | B176: Rebecka Hulten | C176: Holmsjö Youngster | D176: 74 | F176: 1 | G176: 37 | O176: 74 | AB176: 17 | AC176: - | AD176: - | AE176: 173 | AF176: 172 | AG176: - | AH176: 172 | AK176: 1 | AL176: 1 | AM176: 1 | AN176: 1 | AO176: 1 | AP176: 1 | AQ176: 2 | AR176: 1 | AS176: 1 | AT176: 1 | AU176: 1 | AV176: 1 | AW176: 1 | AX176: 1 | AY176: 0 | AZ176: 1 | BA176: 1 | BB176: 1 | BC176: 1 | BE176: 2 | BH176: 74 | BX176: - | BY176: - | BZ176: 13 | CB176: 74 | EM176: 215 | EO176: =IF(BE176>1,AF176,"") -> 172 | EP176: (173)
A177: 173 (174) | B177: Lovisa Marlowe | C177: Team Vitviken | D177: 72 | F177: 1 | G177: 36 | O177: 72 | AB177: 17 | AC177: - | AD177: - | AE177: 174 | AF177: 173 | AG177: - | AH177: 173 | AK177: 1 | AL177: 1 | AM177: 1 | AN177: 1 | AO177: 1 | AP177: 1 | AQ177: 2 | AR177: 1 | AS177: 1 | AT177: 1 | AU177: 1 | AV177: 1 | AW177: 1 | AX177: 1 | AY177: 0 | AZ177: 1 | BA177: 1 | BB177: 1 | BC177: 1 | BE177: 2 | BH177: 72 | BI177: =IF($F177>1,LARGE($I177:$AA177,2),"") ->  | BJ177: =IF($F177>2,LARGE($I177:$AA177,3),"") ->  | BK177: =IF($F177>3,LARGE($I177:$AA177,4),"") ->  | BL177: =IF($F177>4,LARGE($I177:$AA177,5),"") ->  | BM177: =IF($F177>5,LARGE($I177:$AA177,6),"") ->  | BN177: =IF($F177>6,LARGE($I177:$AA177,7),"") ->  | BO177: =IF($F177>7,LARGE($I177:$AA177,8),"") ->  | BP177: =IF($F177>8,LARGE($I177:$AA177,9),"") ->  | BQ177: =IF($F177>9,LARGE($I177:$AA177,10),"") ->  | BR177: =IF($F177>10,LARGE($I177:$AA177,11),"") ->  | BS177: =IF($F177>11,LARGE($I177:$AA177,12),"") ->  | BT177: =IF($F177>12,LARGE($I177:$AA177,13),"") ->  | BU177: =IF($F177>13,LARGE($I177:$AA177,14),"") ->  | BV177: =IF($F177>14,LARGE($I177:$AA177,15),"") ->  | BX177: - | BY177: - | BZ177: 13 | CB177: 72 | EM177: 188 | EO177: 188 | EP177: (174)
A178: 174 (175) | B178: Jörgen Laholm | C178: Laholm | D178: 71 | F178: 1 | G178: 35.5 | O178: 71 | AB178: 17 | AC178: - | AD178: - | AE178: 175 | AF178: 174 | AG178: - | AH178: 174 | AK178: 1 | AL178: 1 | AM178: 1 | AN178: 1 | AO178: 1 | AP178: 1 | AQ178: 2 | AR178: 1 | AS178: 1 | AT178: 1 | AU178: 1 | AV178: 1 | AW178: 1 | AX178: 1 | AY178: 0 | AZ178: 1 | BA178: 1 | BB178: 1 | BC178: 1 | BE178: 2 | BH178: 71 | BX178: - | BY178: - | BZ178: 13 | CB178: 71 | EM178: 170 | EO178: =IF(BE178>1,AF178,"") -> 174 | EP178: (175)
A179: 175 (176) | B179: Bert-Åke Sandelius | C179: Boge Sels | D179: 51 | F179: 1 | G179: 25.5 | O179: 51 | AB179: 17 | AC179: - | AD179: - | AE179: 176 | AF179: 175 | AG179: - | AH179: 175 | AK179: 1 | AL179: 1 | AM179: 1 | AN179: 1 | AO179: 1 | AP179: 1 | AQ179: 2 | AR179: 1 | AS179: 1 | AT179: 1 | AU179: 1 | AV179: 1 | AW179: 1 | AX179: 1 | AY179: 0 | AZ179: 1 | BA179: 1 | BB179: 1 | BC179: 1 | BE179: 2 | BH179: 51 | BX179: - | BY179: - | BZ179: 13 | CB179: 51 | EM179: 171 | EO179: 175 | EP179: (176)
A180: 176 (177) | B180: Johanna Olausson | C180: Holmsjö Youngster | D180: 47 | F180: 1 | G180: 23.5 | O180: 47 | AB180: 17 | AC180: - | AD180: - | AE180: 177 | AF180: 176 | AG180: - | AH180: 176 | AK180: 1 | AL180: 1 | AM180: 1 | AN180: 1 | AO180: 1 | AP180: 1 | AQ180: 2 | AR180: 1 | AS180: 1 | AT180: 1 | AU180: 1 | AV180: 1 | AW180: 1 | AX180: 1 | AY180: 0 | AZ180: 1 | BA180: 1 | BB180: 1 | BC180: 1 | BE180: 2 | BH180: 47 | BX180: - | BY180: - | BZ180: 13 | CB180: 47 | EM180: 172 | EO180: 176 | EP180: (177)
A181: 176 (177) | B181: Jan Näslund | C181: Team Vitviken | D181: 47 | F181: 1 | G181: 23.5 | O181: 47 | AB181: 17 | AC181: - | AD181: - | AE181: 177 | AF181: 176 | AG181: - | AH181: 177 | AK181: 1 | AL181: 1 | AM181: 1 | AN181: 1 | AO181: 1 | AP181: 1 | AQ181: 2 | AR181: 1 | AS181: 1 | AT181: 1 | AU181: 1 | AV181: 1 | AW181: 1 | AX181: 1 | AY181: 0 | AZ181: 1 | BA181: 1 | BB181: 1 | BC181: 1 | BE181: 2 | BH181: 47 | BX181: - | BY181: - | BZ181: 13 | CB181: 47 | EM181: 173 | EO181: 176 | EP181: (177)
A182: 178 (179) | B182: Sofie Laholm | C182: Laholm | D182: 45 | F182: 1 | G182: 22.5 | O182: 45 | AB182: 17 | AC182: - | AD182: - | AE182: 179 | AF182: 178 | AG182: - | AH182: 178 | AK182: 1 | AL182: 1 | AM182: 1 | AN182: 1 | AO182: 1 | AP182: 1 | AQ182: 2 | AR182: 1 | AS182: 1 | AT182: 1 | AU182: 1 | AV182: 1 | AW182: 1 | AX182: 1 | AY182: 0 | AZ182: 1 | BA182: 1 | BB182: 1 | BC182: 1 | BE182: 2 | BH182: 45 | BX182: - | BY182: - | BZ182: 13 | CB182: 45 | EM182: 174 | EO182: 178 | EP182: (179)
A183: 179 (180) | B183: Ewa Sandelius | C183: Boge Sels | D183: 28 | F183: 1 | G183: 14 | O183: 28 | AB183: 17 | AC183: - | AD183: - | AE183: 180 | AF183: 179 | AG183: - | AH183: 179 | AK183: 1 | AL183: 1 | AM183: 1 | AN183: 1 | AO183: 1 | AP183: 1 | AQ183: 2 | AR183: 1 | AS183: 1 | AT183: 1 | AU183: 1 | AV183: 1 | AW183: 1 | AX183: 1 | AY183: 0 | AZ183: 1 | BA183: 1 | BB183: 1 | BC183: 1 | BE183: 2 | BH183: 28 | BX183: - | BY183: - | BZ183: 13 | CB183: 28 | EM183: 182 | EO183: 179 | EP183: (180)
A184: 180 (181) | B184: Gunnar Norrby | C184: Team Vitviken | D184: 23 | F184: 1 | G184: 11.5 | O184: 23 | AB184: 17 | AC184: - | AD184: - | AE184: 181 | AF184: 180 | AG184: - | AH184: 180 | AK184: 1 | AL184: 1 | AM184: 1 | AN184: 1 | AO184: 1 | AP184: 1 | AQ184: 2 | AR184: 1 | AS184: 1 | AT184: 1 | AU184: 1 | AV184: 1 | AW184: 1 | AX184: 1 | AY184: 0 | AZ184: 1 | BA184: 1 | BB184: 1 | BC184: 1 | BE184: 2 | BH184: 23 | BX184: - | BY184: - | BZ184: 13 | CB184: 23 | EM184: 176 | EO184: 180 | EP184: (181)
A185: 181 (134) | D185: 0 | F185: 0 | AB185: 17 | AC185: - | AD185: - | AE185: 134 | AF185: 181 | AG185: - | AH185: 181 | AK185: 1 | AL185: 1 | AM185: 1 | AN185: 1 | AO185: 1 | AP185: 1 | AQ185: 1 | AR185: 0 | AS185: 1 | AT185: 1 | AU185: 1 | AV185: 1 | AW185: 1 | AX185: 1 | AY185: 0 | AZ185: 1 | BA185: 1 | BB185: 1 | BC185: 1 | BE185: 2 | BX185: - | BY185: - | BZ185: 14 | CB185: 0 | EM185: 202 | EO185: 181 | EP185: (134)
A186: 181 (182) | D186: 0 | F186: 0 | AB186: 17 | AC186: - | AD186: - | AE186: 182 | AF186: 181 | AG186: - | AH186: 182 | AK186: 1 | AL186: 1 | AM186: 1 | AN186: 1 | AO186: 1 | AP186: 1 | AQ186: 1 | AR186: 0 | AS186: 1 | AT186: 1 | AU186: 1 | AV186: 1 | AW186: 1 | AX186: 1 | AY186: 0 | AZ186: 1 | BA186: 1 | BB186: 1 | BC186: 1 | BE186: 2 | BX186: - | BY186: - | BZ186: 14 | CB186: 0 | EM186: 177 | EO186: 177 | EP186: (182)
A187: 181 (182) | D187: 0 | F187: 0 | AB187: 17 | AC187: - | AD187: - | AE187: 182 | AF187: 181 | AG187: - | AH187: 183 | AK187: 1 | AL187: 1 | AM187: 1 | AN187: 1 | AO187: 1 | AP187: 1 | AQ187: 1 | AR187: 0 | AS187: 1 | AT187: 1 | AU187: 1 | AV187: 1 | AW187: 1 | AX187: 1 | AY187: 0 | AZ187: 1 | BA187: 1 | BB187: 1 | BC187: 1 | BE187: 2 | BX187: - | BY187: - | BZ187: 14 | CB187: 0 | EM187: 178 | EO187: =IF(BE187>1,AF187,"") -> 181 | EP187: (182)
A188: 181 (182) | D188: 0 | F188: 0 | AB188: 17 | AC188: - | AD188: - | AE188: 182 | AF188: 181 | AG188: - | AH188: 184 | AK188: 1 | AL188: 1 | AM188: 1 | AN188: 1 | AO188: 1 | AP188: 1 | AQ188: 1 | AR188: 0 | AS188: 1 | AT188: 1 | AU188: 1 | AV188: 1 | AW188: 1 | AX188: 1 | AY188: 0 | AZ188: 1 | BA188: 1 | BB188: 1 | BC188: 1 | BE188: 2 | BX188: - | BY188: - | BZ188: 14 | CB188: 0 | EM188: 179 | EO188: 179 | EP188: (182)
A189: =IF(BE189>1,AF189&" ("&AE189&")",AF189&" ("&AG189&")") -> 181 (182) | D189: 0 | F189: 0 | AB189: 17 | AC189: - | AD189: - | AE189: 182 | AF189: 181 | AG189: - | AH189: 185 | AK189: 1 | AL189: 1 | AM189: 1 | AN189: 1 | AO189: 1 | AP189: 1 | AQ189: 1 | AR189: 0 | AS189: 1 | AT189: 1 | AU189: 1 | AV189: 1 | AW189: 1 | AX189: 1 | AY189: 0 | AZ189: 1 | BA189: 1 | BB189: 1 | BC189: 1 | BE189: 2 | BX189: - | BY189: - | BZ189: 14 | CB189: 0 | EM189: 180 | EO189: =IF(BE189>1,AF189,"") -> 181 | EP189: (182)
A190: 181 (182) | D190: 0 | F190: 0 | AB190: 17 | AC190: - | AD190: - | AE190: 182 | AF190: 181 | AG190: - | AH190: 186 | AK190: 1 | AL190: 1 | AM190: 1 | AN190: 1 | AO190: 1 | AP190: 1 | AQ190: 1 | AR190: 0 | AS190: 1 | AT190: 1 | AU190: 1 | AV190: 1 | AW190: 1 | AX190: 1 | AY190: 0 | AZ190: 1 | BA190: 1 | BB190: 1 | BC190: 1 | BE190: 2 | BX190: - | BY190: - | BZ190: 14 | CB190: 0 | EM190: 181 | EO190: =IF(BE190>1,AF190,"") -> 181 | EP190: (182)
A191: 181 (182) | D191: 0 | F191: 0 | AB191: 17 | AC191: - | AD191: - | AE191: 182 | AF191: 181 | AG191: - | AH191: 187 | AK191: 1 | AL191: 1 | AM191: 1 | AN191: 1 | AO191: 1 | AP191: 1 | AQ191: 1 | AR191: 0 | AS191: 1 | AT191: 1 | AU191: 1 | AV191: 1 | AW191: 1 | AX191: 1 | AY191: 0 | AZ191: 1 | BA191: 1 | BB191: 1 | BC191: 1 | BE191: 2 | BX191: - | BY191: - | BZ191: 14 | CB191: 0 | EM191: 155 | EO191: =IF(BE191>=1,AF191,"") -> 181 | EP191: (182)
A192: 181 (182) | D192: 0 | F192: 0 | AB192: 17 | AC192: - | AD192: - | AE192: 182 | AF192: 181 | AG192: - | AH192: 188 | AK192: 1 | AL192: 1 | AM192: 1 | AN192: 1 | AO192: 1 | AP192: 1 | AQ192: 1 | AR192: 0 | AS192: 1 | AT192: 1 | AU192: 1 | AV192: 1 | AW192: 1 | AX192: 1 | AY192: 0 | AZ192: 1 | BA192: 1 | BB192: 1 | BC192: 1 | BE192: 2 | BX192: - | BY192: - | BZ192: 14 | CB192: 0 | EM192: 183 | EO192: =IF(BE192>1,AF192,"") -> 181 | EP192: (182)
A193: 181 (182) | D193: 0 | F193: 0 | AB193: 17 | AC193: - | AD193: - | AE193: 182 | AF193: 181 | AG193: - | AH193: 189 | AK193: 1 | AL193: 1 | AM193: 1 | AN193: 1 | AO193: 1 | AP193: 1 | AQ193: 1 | AR193: 0 | AS193: 1 | AT193: 1 | AU193: 1 | AV193: 1 | AW193: 1 | AX193: 1 | AY193: 0 | AZ193: 1 | BA193: 1 | BB193: 1 | BC193: 1 | BE193: 2 | BX193: - | BY193: - | BZ193: 14 | CB193: 0 | EM193: 185 | EO193: 181 | EP193: (182)
A194: 181 (182) | D194: 0 | F194: 0 | AB194: 17 | AC194: - | AD194: - | AE194: 182 | AF194: 181 | AG194: - | AH194: 190 | AK194: 1 | AL194: 1 | AM194: 1 | AN194: 1 | AO194: 1 | AP194: 1 | AQ194: 1 | AR194: 0 | AS194: 1 | AT194: 1 | AU194: 1 | AV194: 1 | AW194: 1 | AX194: 1 | AY194: 0 | AZ194: 1 | BA194: 1 | BB194: 1 | BC194: 1 | BE194: 2 | BX194: - | BY194: - | BZ194: 14 | CB194: 0 | EM194: 186 | EO194: 181 | EP194: (182)
A195: 181 (182) | D195: 0 | F195: 0 | AB195: 17 | AC195: - | AD195: - | AE195: 182 | AF195: 181 | AG195: - | AH195: 191 | AK195: 1 | AL195: 1 | AM195: 1 | AN195: 1 | AO195: 1 | AP195: 1 | AQ195: 1 | AR195: 0 | AS195: 1 | AT195: 1 | AU195: 1 | AV195: 1 | AW195: 1 | AX195: 1 | AY195: 0 | AZ195: 1 | BA195: 1 | BB195: 1 | BC195: 1 | BE195: 2 | BX195: - | BY195: - | BZ195: 14 | CB195: 0 | EM195: 187 | EO195: 181 | EP195: (182)
A196: 181 (182) | D196: 0 | F196: 0 | AB196: 17 | AC196: - | AD196: - | AE196: 182 | AF196: 181 | AG196: - | AH196: 192 | AK196: 1 | AL196: 1 | AM196: 1 | AN196: 1 | AO196: 1 | AP196: 1 | AQ196: 1 | AR196: 0 | AS196: 1 | AT196: 1 | AU196: 1 | AV196: 1 | AW196: 1 | AX196: 1 | AY196: 0 | AZ196: 1 | BA196: 1 | BB196: 1 | BC196: 1 | BE196: 2 | BX196: - | BY196: - | BZ196: 14 | CB196: 0 | EM196: 205 | EO196: 181 | EP196: (182)
A197: 181 (182) | D197: =SUM(BH197:BT197) -> 0 | F197: =COUNT(I197:AA197) -> 0 | G197: =SUM((CB197)/(F197*2)) ->  | AB197: =SUM($I$3:$AA$3) -> 17 | AC197: =BX197 -> - | AD197: =BY197 -> - | AE197: 182 | AF197: 181 | AG197: =IF(F197>1,ROW(193:193),"-") -> - | AH197: 193 | AK197: 1 | AL197: 1 | AM197: 1 | AN197: 1 | AO197: 1 | AP197: 1 | AQ197: 1 | AR197: 0 | AS197: 1 | AT197: 1 | AU197: 1 | AV197: 1 | AW197: 1 | AX197: 1 | AY197: 0 | AZ197: 1 | BA197: 1 | BB197: 1 | BC197: 1 | BE197: 2 | BX197: - | BY197: - | BZ197: =SUM(AB197-F197)-3 -> 14 | CB197: =SUM(BH197:BW197) -> 0 | EM197: 216 | EO197: 181 | EP197: =IF(BE197>1,"("&AE197&")","("&AG197&")") -> (182)
A198: 181 (182) | D198: 0 | F198: 0 | AB198: 17 | AC198: - | AD198: - | AE198: 182 | AF198: 181 | AG198: - | AH198: 194 | AK198: 1 | AL198: 1 | AM198: 1 | AN198: 1 | AO198: 1 | AP198: 1 | AQ198: 1 | AR198: 0 | AS198: 1 | AT198: 1 | AU198: 1 | AV198: 1 | AW198: 1 | AX198: 1 | AY198: 0 | AZ198: 1 | BA198: 1 | BB198: 1 | BC198: 1 | BE198: 2 | BI198: =IF($F198>1,LARGE($I198:$AA198,2),"") ->  | BJ198: =IF($F198>2,LARGE($I198:$AA198,3),"") ->  | BK198: =IF($F198>3,LARGE($I198:$AA198,4),"") ->  | BL198: =IF($F198>4,LARGE($I198:$AA198,5),"") ->  | BM198: =IF($F198>5,LARGE($I198:$AA198,6),"") ->  | BN198: =IF($F198>6,LARGE($I198:$AA198,7),"") ->  | BO198: =IF($F198>7,LARGE($I198:$AA198,8),"") ->  | BP198: =IF($F198>8,LARGE($I198:$AA198,9),"") ->  | BQ198: =IF($F198>9,LARGE($I198:$AA198,10),"") ->  | BR198: =IF($F198>10,LARGE($I198:$AA198,11),"") ->  | BS198: =IF($F198>11,LARGE($I198:$AA198,12),"") ->  | BT198: =IF($F198>12,LARGE($I198:$AA198,13),"") ->  | BU198: =IF($F198>13,LARGE($I198:$AA198,14),"") ->  | BV198: =IF($F198>14,LARGE($I198:$AA198,15),"") ->  | BW198: =IF($F198>15,LARGE($I198:$AA198,16),"") ->  | BX198: =IF($F198>13,LARGE($I198:$AA198,14),"-") -> - | BY198: =IF($F198>14,LARGE($I198:$AA198,15),"-") -> - | BZ198: 14 | CB198: 0 | EM198: 189 | EO198: 181 | EP198: (182)
A199: 181 (182) | D199: 0 | F199: 0 | AB199: 17 | AC199: - | AD199: - | AE199: 182 | AF199: 181 | AG199: - | AH199: 195 | AK199: 1 | AL199: 1 | AM199: 1 | AN199: 1 | AO199: 1 | AP199: 1 | AQ199: 1 | AR199: 0 | AS199: 1 | AT199: 1 | AU199: 1 | AV199: 1 | AW199: 1 | AX199: 1 | AY199: 0 | AZ199: 1 | BA199: 1 | BB199: 1 | BC199: 1 | BE199: 2 | BX199: - | BY199: - | BZ199: 14 | CB199: 0 | EM199: 190 | EO199: 181 | EP199: (182)
A200: 181 (182) | D200: 0 | F200: 0 | AB200: 17 | AC200: - | AD200: - | AE200: 182 | AF200: 181 | AG200: - | AH200: 196 | AK200: 1 | AL200: 1 | AM200: 1 | AN200: 1 | AO200: 1 | AP200: 1 | AQ200: 1 | AR200: 0 | AS200: 1 | AT200: 1 | AU200: 1 | AV200: 1 | AW200: 1 | AX200: 1 | AY200: 0 | AZ200: 1 | BA200: 1 | BB200: 1 | BC200: 1 | BE200: 2 | BX200: - | BY200: - | BZ200: 14 | CB200: 0 | EM200: 191 | EO200: 181 | EP200: (182)
A201: 181 (182) | D201: 0 | F201: 0 | AB201: 17 | AC201: - | AD201: - | AE201: 182 | AF201: 181 | AG201: - | AH201: 197 | AK201: 1 | AL201: 1 | AM201: 1 | AN201: 1 | AO201: 1 | AP201: 1 | AQ201: 1 | AR201: 0 | AS201: 1 | AT201: 1 | AU201: 1 | AV201: 1 | AW201: 1 | AX201: 1 | AY201: 0 | AZ201: 1 | BA201: 1 | BB201: 1 | BC201: 1 | BE201: 2 | BX201: - | BY201: - | BZ201: 14 | CB201: 0 | EM201: 192 | EO201: 181 | EP201: (182)
... 19 more rows

Sheet Regler
A1: Regler för Sverige-,Junior- o Miniorranking
A3: Rankingpoäng utgör den totala poängen från rankingtävlingar under säsongen
A4: som varje enskild kastare har fått ihop.
A5: Max från 13 tävlingar kan medräknas, och då räknas de 13 med högst resultat.
A7: Den som har högst poäng när säsongen är över vinner.
A9: Skulle det vara kastare som hamnar på samma poäng när säsongen är över, och är bland de
A10: tre bästa så gäller detta för att skilja dem åt.
A12: 1. Högst snitt per serie
A13: 2. Högst poäng på en tävling, sedan näst högst osv.
A14: 3. Högsta poängen på senaste tävlingen, sedan den dessför innan osv.(DM-tävlingar ej inräknade)
A15: 4. Skulle det fortfarande inte gå att skilja dem åt, så blir de på samma plats.
A18: Seriespelsranking
A20: Alla individuella seriespelsresultaten under säsongen räknas in.
A21: Den som har högst snitt när säsongen är över vinner.
A23: För att kunna vara bland de tre pristagarna, måste man spelat minst 7 serier.
A25: Skulle det vara kastare som hamnar på samma snitt när säsongen är över, och är bland de
A26: tre bästa så gäller detta för att skilja dem åt.
A28: 1. Det högsta serieresultatet, sedan näst högsta osv.
A29: 2. Skulle det fortfarande inte gå att skilja dem åt, så blir de på samma plats.

Sheet Miniorranking
B1: Svenska Hästskokastarförbundets Sverigeranking
C2: MINIOR
C3: SLUTSTÄLLNING 2017/2018 | I3: =IF(SUM(I5:I407)>100,1,"") -> 1 | L3: 1 | O3: 1 | Q3: 1 | R3: 1 | V3: 1
A4: Plac. | B4: Kastare | C4: Klubb | D4: Ranking-poäng | F4: Antal täv-lingar | G4: Snitt per serie | I4: Växjö Open | J4: Björkenäs Open | K4: Utomhus-SM Dag 1 | L4: Utomhus-SM Dag 2 | M4: Utomhus Smålandsmästaren | N4: Carlskrona Cup | O4: Gotland Open | P4: Septemberskon | Q4: Dynapac Open | R4: Blekinge-DM Ute | S4: Åseda Open | T4: Höstskon Nybro | U4: Novemberkampen | V4: Inomhus-SM | W4: Gotlands-DM inne | X4: Inomhus Smålandsmästaren | Y4: Blekinge DM Inne | Z4: Värendspokalen | AA4: Tingsryds Open
A5: =EJ5&EK5 -> 1(1) | B5: Julius Gneupel | C5: Sibbamåla | D5: =SUM(I5:AA5) -> 522 | F5: =COUNT(I5:AA5) -> 4 | G5: =SUM((D5)/(F5*2)) -> 65.25 | L5: 151 | O5: 133 | Q5: 158 | R5: 80 | AD5: 1 | AE5: =IF(D5>1,ROW(1:1),"-") -> 1 | AF5: =IF(F5>1,ROW(1:1),"-") -> 1 | AJ5: =COUNT($I$3,I5,H5) -> 1 | AK5: =COUNT($J$3,J5,I5) -> 0 | AL5: =COUNT($K$3,K5,J5) -> 0 | AM5: =COUNT($L$3,L5,K5) -> 2 | AN5: =COUNT($M$3,M5,L5) -> 1 | AO5: =COUNT($N$3,N5,M5) -> 0 | AP5: =COUNT($O$3,O5,N5) -> 2 | AQ5: =COUNT($P$3,P5,O5) -> 1 | AR5: =COUNT($Q$3,Q5,P5) -> 2 | AS5: =COUNT($R$3,R5,Q5) -> 3 | AT5: =COUNT($S$3,S5,R5) -> 1 | AU5: =COUNT($T$3,T5,S5) -> 0 | AV5: =COUNT($U$3,U5,T5) -> 0 | AW5: =COUNT($V$3,V5,U5) -> 1 | AX5: =COUNT($W$3,W5,V5) -> 0 | AY5: =COUNT($X$3,X5,W5) -> 0 | AZ5: =COUNT($Y$3,Y5,X5) -> 0 | BA5: =COUNT($Z$3,Z5,Y5) -> 0 | BB5: =COUNT($AA$3,AA5,Z5) -> 0 | BD5: =COUNTIF(AI5:BC5,">1") -> 4 | BE5: =IF(H5="x",1,2) -> 2 | EH5: 1 | EJ5: =IF(BD5>=1,AE5,"") -> 1 | EK5: =IF(BE5>1,"("&AD5&")","("&AF5&")") -> (1)
A6: 2(2) | B6: Filip Thomsson | C6: Sibbamåla | D6: 191 | F6: 2 | G6: 47.75 | L6: 24 | Q6: 167 | AD6: 2 | AE6: =IF(AND(D6=D5,D6=D4),ROW(#REF!),IF(D6=D5,ROW(1:1),IF(D6>1,ROW(2:2),"-"))) -> 2 | AF6: 2 | AJ6: 1 | AK6: 0 | AL6: 0 | AM6: 2 | AN6: 1 | AO6: 0 | AP6: 1 | AQ6: 0 | AR6: 2 | AS6: 2 | AT6: 0 | AU6: 0 | AV6: 0 | AW6: 1 | AX6: 0 | AY6: 0 | AZ6: 0 | BA6: 0 | BB6: 0 | BD6: 3 | BE6: 2 | EH6: 3 | EJ6: 2 | EK6: (2)
A7: 3(3) | B7: Albin Larsson | C7: Sibbamåla | D7: 148 | F7: 1 | G7: 74 | Q7: 148 | AD7: 3 | AE7: =IF(AND(D7=D6,D7=D5,D7=D4),ROW(#REF!),IF(AND(D7=D6,D7=D5),ROW(1:1),IF(D7=D6,ROW(2:2),IF(D7>1,ROW(3:3),"-")))) -> 3 | AF7: - | AJ7: 1 | AK7: 0 | AL7: 0 | AM7: 1 | AN7: 0 | AO7: 0 | AP7: 1 | AQ7: 0 | AR7: 2 | AS7: 2 | AT7: 0 | AU7: 0 | AV7: 0 | AW7: 1 | AX7: 0 | AY7: 0 | AZ7: 0 | BA7: 0 | BB7: 0 | BD7: 2 | BE7: 2 | EH7: 4 | EJ7: 3 | EK7: (3)
A8: 4(4) | B8: Kevin Rydell | C8: Värends Hsk | D8: 120 | F8: 1 | G8: 60 | I8: 120 | AD8: 4 | AE8: =IF(AND(D8=D7,D8=D6,D8=D5,D8=D4),ROW(#REF!),IF(AND(D8=D7,D8=D6,D8=D5),ROW(1:1),IF(AND(D8=D7,D8=D6),ROW(2:2),IF(D8=D7,ROW(3:3),IF(D8>1,ROW(4:4),"-"))))) -> 4 | AF8: - | AJ8: 2 | AK8: 1 | AL8: 0 | AM8: 1 | AN8: 0 | AO8: 0 | AP8: 1 | AQ8: 0 | AR8: 1 | AS8: 1 | AT8: 0 | AU8: 0 | AV8: 0 | AW8: 1 | AX8: 0 | AY8: 0 | AZ8: 0 | BA8: 0 | BB8: 0 | BD8: 1 | BE8: 2 | EH8: 5 | EJ8: 4 | EK8: (4)
A9: 5(5) | B9: Neo Rådström | C9: Jämjö Hsk | D9: 119 | F9: 1 | G9: 59.5 | V9: 119 | AD9: 5 | AE9: =IF(AND(D9=D8,D9=D7,D9=D6,D9=D5),ROW(1:1),IF(AND(D9=D8,D9=D7,D9=D6),ROW(2:2),IF(AND(D9=D8,D9=D7),ROW(3:3),IF(D9=D8,ROW(4:4),IF(D9>1,ROW(5:5),"-"))))) -> 5 | AF9: - | AJ9: 1 | AK9: 0 | AL9: 0 | AM9: 1 | AN9: 0 | AO9: 0 | AP9: 1 | AQ9: 0 | AR9: 1 | AS9: 1 | AT9: 0 | AU9: 0 | AV9: 0 | AW9: 2 | AX9: 1 | AY9: 0 | AZ9: 0 | BA9: 0 | BB9: 0 | BD9: 1 | BE9: 2 | EH9: 6 | EJ9: 5 | EK9: (5)
A10: 6(6) | B10: Elias Thomsson | C10: Sibbamåla | D10: 91 | F10: 1 | G10: 45.5 | L10: 91 | AD10: 6 | AE10: =IF(AND(D10=D9,D10=D8,D10=D7,D10=D6),ROW(2:2),IF(AND(D10=D9,D10=D8,D10=D7),ROW(3:3),IF(AND(D10=D9,D10=D8),ROW(4:4),IF(D10=D9,ROW(5:5),IF(D10>1,ROW(6:6),"-"))))) -> 6 | AF10: - | AJ10: 1 | AK10: 0 | AL10: 0 | AM10: 2 | AN10: 1 | AO10: 0 | AP10: 1 | AQ10: 0 | AR10: 1 | AS10: 1 | AT10: 0 | AU10: 0 | AV10: 0 | AW10: 1 | AX10: 0 | AY10: 0 | AZ10: 0 | BA10: 0 | BB10: 0 | BD10: 1 | BE10: 2 | EH10: 7 | EJ10: 6 | EK10: (6)
A11: 7(7) | B11: Tilde Strandberg | C11: Jämjö Hsk | D11: 77 | F11: 1 | G11: 38.5 | V11: 77 | AD11: 7 | AE11: =IF(AND(D11=D10,D11=D9,D11=D8,D11=D7),ROW(3:3),IF(AND(D11=D10,D11=D9,D11=D8),ROW(4:4),IF(AND(D11=D10,D11=D9),ROW(5:5),IF(D11=D10,ROW(6:6),IF(D11>1,ROW(7:7),"-"))))) -> 7 | AF11: - | AJ11: 1 | AK11: 0 | AL11: 0 | AM11: 1 | AN11: 0 | AO11: 0 | AP11: 1 | AQ11: 0 | AR11: 1 | AS11: 1 | AT11: 0 | AU11: 0 | AV11: 0 | AW11: 2 | AX11: 1 | AY11: 0 | AZ11: 0 | BA11: 0 | BB11: 0 | BD11: 1 | BE11: 2 | EH11: 8 | EJ11: 7 | EK11: (7)
A12: 8(8) | B12: Linus Israelsson | C12: Sibbamåla | D12: 72 | F12: 1 | G12: 36 | L12: 72 | AD12: 8 | AE12: =IF(AND(D12=D11,D12=D10,D12=D9,D12=D8),ROW(4:4),IF(AND(D12=D11,D12=D10,D12=D9),ROW(5:5),IF(AND(D12=D11,D12=D10),ROW(6:6),IF(D12=D11,ROW(7:7),IF(D12>1,ROW(8:8),"-"))))) -> 8 | AF12: - | AJ12: 1 | AK12: 0 | AL12: 0 | AM12: 2 | AN12: 1 | AO12: 0 | AP12: 1 | AQ12: 0 | AR12: 1 | AS12: 1 | AT12: 0 | AU12: 0 | AV12: 0 | AW12: 1 | AX12: 0 | AY12: 0 | AZ12: 0 | BA12: 0 | BB12: 0 | BD12: 1 | BE12: 2 | EH12: 9 | EJ12: 8 | EK12: (8)
A13: 9(9) | B13: Abbe Johansson | C13: Dynapac | D13: 64 | F13: 1 | G13: 32 | R13: 64 | AD13: 9 | AE13: =IF(D13=D12,ROW(8:8),IF(D13>1,ROW(9:9),"-")) -> 9 | AF13: - | AJ13: 1 | AK13: 0 | AL13: 0 | AM13: 1 | AN13: 0 | AO13: 0 | AP13: 1 | AQ13: 0 | AR13: 1 | AS13: 2 | AT13: 1 | AU13: 0 | AV13: 0 | AW13: 1 | AX13: 0 | AY13: 0 | AZ13: 0 | BA13: 0 | BB13: 0 | BD13: 1 | BE13: 2 | EH13: 2 | EJ13: 9 | EK13: (9)
A14: =EJ14&EK14 -> (-) | D14: 0 | F14: 0 | AD14: - | AE14: =IF(AND(D14=D13,D14=D12,D14=D11,D14=D10),ROW(6:6),IF(AND(D14=D13,D14=D12,D14=D11),ROW(7:7),IF(AND(D14=D13,D14=D12),ROW(8:8),IF(D14=D13,ROW(9:9),IF(D14>1,ROW(10:10),"-"))))) -> - | AF14: =IF(F14>1,ROW(10:10),"-") -> - | AJ14: =COUNT($I$3,I14,H14) -> 1 | AK14: =COUNT($J$3,J14,I14) -> 0 | AL14: =COUNT($K$3,K14,J14) -> 0 | AM14: =COUNT($L$3,L14,K14) -> 1 | AN14: =COUNT($M$3,M14,L14) -> 0 | AO14: =COUNT($N$3,N14,M14) -> 0 | AP14: =COUNT($O$3,O14,N14) -> 1 | AQ14: =COUNT($P$3,P14,O14) -> 0 | AR14: =COUNT($Q$3,Q14,P14) -> 1 | AS14: =COUNT($R$3,R14,Q14) -> 1 | AT14: =COUNT($S$3,S14,R14) -> 0 | AU14: =COUNT($T$3,T14,S14) -> 0 | AV14: =COUNT($U$3,U14,T14) -> 0 | AW14: =COUNT($V$3,V14,U14) -> 1 | AX14: =COUNT($W$3,W14,V14) -> 0 | AY14: =COUNT($X$3,X14,W14) -> 0 | AZ14: =COUNT($Y$3,Y14,X14) -> 0 | BA14: =COUNT($Z$3,Z14,Y14) -> 0 | BB14: =COUNT($AA$3,AA14,Z14) -> 0 | BD14: =COUNTIF(AI14:BC14,">1") -> 0 | BE14: =IF(H14="x",1,2) -> 2 | EH14: 10 | EJ14: =IF(BD14>=1,AE14,"") ->  | EK14: =IF(BE14>1,"("&AD14&")","("&AF14&")") -> (-)
A15: (10) | D15: 0 | F15: 0 | AD15: 10 | AE15: 10 | AF15: - | AJ15: 1 | AK15: 0 | AL15: 0 | AM15: 1 | AN15: 0 | AO15: 0 | AP15: 1 | AQ15: 0 | AR15: 1 | AS15: 1 | AT15: 0 | AU15: 0 | AV15: 0 | AW15: 1 | AX15: 0 | AY15: 0 | AZ15: 0 | BA15: 0 | BB15: 0 | BD15: 0 | BE15: 2 | EH15: 11 | EK15: (10)
A16: (10) | D16: 0 | F16: 0 | AD16: 10 | AE16: 10 | AF16: - | AJ16: 1 | AK16: 0 | AL16: 0 | AM16: 1 | AN16: 0 | AO16: 0 | AP16: 1 | AQ16: 0 | AR16: 1 | AS16: 1 | AT16: 0 | AU16: 0 | AV16: 0 | AW16: 1 | AX16: 0 | AY16: 0 | AZ16: 0 | BA16: 0 | BB16: 0 | BD16: 0 | BE16: 2 | EH16: 12 | EK16: (10)
A17: (10) | D17: 0 | F17: 0 | AD17: 10 | AE17: 10 | AF17: - | AJ17: 1 | AK17: 0 | AL17: 0 | AM17: 1 | AN17: 0 | AO17: 0 | AP17: 1 | AQ17: 0 | AR17: 1 | AS17: 1 | AT17: 0 | AU17: 0 | AV17: 0 | AW17: 1 | AX17: 0 | AY17: 0 | AZ17: 0 | BA17: 0 | BB17: 0 | BD17: 0 | BE17: 2 | EH17: 13 | EK17: (10)
A18: (10) | D18: 0 | F18: 0 | AD18: 10 | AE18: 10 | AF18: - | AJ18: 1 | AK18: 0 | AL18: 0 | AM18: 1 | AN18: 0 | AO18: 0 | AP18: 1 | AQ18: 0 | AR18: 1 | AS18: 1 | AT18: 0 | AU18: 0 | AV18: 0 | AW18: 1 | AX18: 0 | AY18: 0 | AZ18: 0 | BA18: 0 | BB18: 0 | BD18: 0 | BE18: 2 | EH18: 14 | EJ18: =IF(BD18>=1,AE18,"") ->  | EK18: (10)
A19: (11) | D19: 0 | F19: 0 | AD19: 11 | AE19: 11 | AF19: - | AJ19: 1 | AK19: 0 | AL19: 0 | AM19: 1 | AN19: 0 | AO19: 0 | AP19: 1 | AQ19: 0 | AR19: 1 | AS19: 1 | AT19: 0 | AU19: 0 | AV19: 0 | AW19: 1 | AX19: 0 | AY19: 0 | AZ19: 0 | BA19: 0 | BB19: 0 | BD19: 0 | BE19: 2 | EH19: 15 | EK19: (11)
A20: (12) | D20: 0 | F20: 0 | AD20: 12 | AE20: 12 | AF20: - | AJ20: 1 | AK20: 0 | AL20: 0 | AM20: 1 | AN20: 0 | AO20: 0 | AP20: 1 | AQ20: 0 | AR20: 1 | AS20: 1 | AT20: 0 | AU20: 0 | AV20: 0 | AW20: 1 | AX20: 0 | AY20: 0 | AZ20: 0 | BA20: 0 | BB20: 0 | BD20: 0 | BE20: 2 | EH20: 16 | EJ20: =IF(BD20>=1,AE20,"") ->  | EK20: (12)
A21: (13) | D21: 0 | F21: 0 | AD21: 13 | AE21: 13 | AF21: - | AJ21: 1 | AK21: 0 | AL21: 0 | AM21: 1 | AN21: 0 | AO21: 0 | AP21: 1 | AQ21: 0 | AR21: 1 | AS21: 1 | AT21: 0 | AU21: 0 | AV21: 0 | AW21: 1 | AX21: 0 | AY21: 0 | AZ21: 0 | BA21: 0 | BB21: 0 | BD21: 0 | BE21: 2 | EH21: 17 | EK21: (13)
A22: =EJ22&EK22 -> (14) | D22: 0 | F22: 0 | AD22: 14 | AE22: 14 | AF22: - | AJ22: 1 | AK22: 0 | AL22: 0 | AM22: 1 | AN22: 0 | AO22: 0 | AP22: 1 | AQ22: 0 | AR22: 1 | AS22: 1 | AT22: 0 | AU22: 0 | AV22: 0 | AW22: 1 | AX22: 0 | AY22: 0 | AZ22: 0 | BA22: 0 | BB22: 0 | BD22: 0 | BE22: 2 | EH22: 18 | EK22: (14)
A23: =EJ23&EK23 -> (15) | D23: 0 | F23: 0 | AD23: 15 | AE23: =IF(AND(D23=D22,D23=D21,D23=D20,D23=D19),ROW(15:15),IF(AND(D23=D22,D23=D21,D23=D20),ROW(16:16),IF(AND(D23=D22,D23=D21),ROW(17:17),IF(D23=D22,ROW(18:18),IF(D23>1,ROW(19:19),"-"))))) -> 15 | AF23: =IF(F23>1,ROW(19:19),"-") -> - | AJ23: =COUNT($I$3,I23,H23) -> 1 | AK23: =COUNT($J$3,J23,I23) -> 0 | AL23: =COUNT($K$3,K23,J23) -> 0 | AM23: =COUNT($L$3,L23,K23) -> 1 | AN23: =COUNT($M$3,M23,L23) -> 0 | AO23: =COUNT($N$3,N23,M23) -> 0 | AP23: =COUNT($O$3,O23,N23) -> 1 | AQ23: =COUNT($P$3,P23,O23) -> 0 | AR23: =COUNT($Q$3,Q23,P23) -> 1 | AS23: =COUNT($R$3,R23,Q23) -> 1 | AT23: =COUNT($S$3,S23,R23) -> 0 | AU23: =COUNT($T$3,T23,S23) -> 0 | AV23: =COUNT($U$3,U23,T23) -> 0 | AW23: =COUNT($V$3,V23,U23) -> 1 | AX23: =COUNT($W$3,W23,V23) -> 0 | AY23: =COUNT($X$3,X23,W23) -> 0 | AZ23: =COUNT($Y$3,Y23,X23) -> 0 | BA23: =COUNT($Z$3,Z23,Y23) -> 0 | BB23: =COUNT($AA$3,AA23,Z23) -> 0 | BD23: =COUNTIF(AI23:BC23,">1") -> 0 | BE23: =IF(H23="x",1,2) -> 2 | EH23: 19 | EK23: =IF(BE23>1,"("&AD23&")","("&AF23&")") -> (15)
A24: (16) | D24: 0 | F24: 0 | AD24: 16 | AE24: 16 | AF24: - | AJ24: 1 | AK24: 0 | AL24: 0 | AM24: 1 | AN24: 0 | AO24: 0 | AP24: 1 | AQ24: 0 | AR24: 1 | AS24: 1 | AT24: 0 | AU24: 0 | AV24: 0 | AW24: 1 | AX24: 0 | AY24: 0 | AZ24: 0 | BA24: 0 | BB24: 0 | BD24: 0 | BE24: 2 | EH24: 20 | EK24: (16)
A25: =EJ25&EK25 -> (17) | D25: 0 | F25: 0 | AD25: 17 | AE25: =IF(AND(D25=D24,D25=D23,D25=D22,D25=D21),ROW(17:17),IF(AND(D25=D24,D25=D23,D25=D22),ROW(18:18),IF(AND(D25=D24,D25=D23),ROW(19:19),IF(D25=D24,ROW(20:20),IF(D25>1,ROW(21:21),"-"))))) -> 17 | AF25: =IF(F25>1,ROW(21:21),"-") -> - | AJ25: =COUNT($I$3,I25,H25) -> 1 | AK25: =COUNT($J$3,J25,I25) -> 0 | AL25: =COUNT($K$3,K25,J25) -> 0 | AM25: =COUNT($L$3,L25,K25) -> 1 | AN25: =COUNT($M$3,M25,L25) -> 0 | AO25: =COUNT($N$3,N25,M25) -> 0 | AP25: =COUNT($O$3,O25,N25) -> 1 | AQ25: =COUNT($P$3,P25,O25) -> 0 | AR25: =COUNT($Q$3,Q25,P25) -> 1 | AS25: =COUNT($R$3,R25,Q25) -> 1 | AT25: =COUNT($S$3,S25,R25) -> 0 | AU25: =COUNT($T$3,T25,S25) -> 0 | AV25: =COUNT($U$3,U25,T25) -> 0 | AW25: =COUNT($V$3,V25,U25) -> 1 | AX25: =COUNT($W$3,W25,V25) -> 0 | AY25: =COUNT($X$3,X25,W25) -> 0 | AZ25: =COUNT($Y$3,Y25,X25) -> 0 | BA25: =COUNT($Z$3,Z25,Y25) -> 0 | BB25: =COUNT($AA$3,AA25,Z25) -> 0 | BD25: =COUNTIF(AI25:BC25,">1") -> 0 | BE25: =IF(H25="x",1,2) -> 2 | EH25: 21 | EK25: =IF(BE25>1,"("&AD25&")","("&AF25&")") -> (17)
EH28: 1 | EJ28: =IF(BD28>=1,AE28,"") ->  | EK28: =IF(BD28>1,"("&AD28&")","("&AF28&")") -> ()
EH29: 3 | EK29: ()
EH30: 4 | EK30: ()
EH31: 5 | EK31: ()
EH32: 6 | EK32: ()
EH33: 7 | EK33: ()
EH34: 8 | EK34: ()
EH35: 9 | EK35: ()
EH36: 10 | EK36: ()
EH37: 11 | EK37: ()
EH38: 12 | EK38: ()
EH39: 13 | EK39: ()
EH40: 14 | EJ40: =IF(BD40>=1,AE40,14) -> 14 | EK40: ()
EH41: 15 | EJ41: =IF(BD41>=1,AE41,"") ->  | EK41: ()
EH42: 16 | EJ42: =IF(BD42>=1,AE42,"") ->  | EK42: ()
EH43: 2 | EJ43: =IF(BD43>=1,AE43,"") ->  | EK43: ()
EH44: 17 | EJ44: =IF(BD44>=1,AE44,"") ->  | EK44: =IF(BD44>2,"("&AD44&")","("&AF44&")") -> ()
EH45: 18 | EJ45: 18 | EK45: =IF(BD45>1,"("&AD45&")","("&AF45&")") -> ()
EH46: 19 | EJ46: 19 | EK46: =IF(BD46>1,"("&AD46&")","("&AF46&")") -> ()
EH47: 20 | EJ47: 20 | EK47: =IF(BD47>1,"("&AD47&")","("&AF47&")") -> ()

Sheet Seriespelsranking
B1: Svenska Hästskokastarförbundets Seriespelsranking
B2: 2017_2018
B3: SLUTSTÄLLNING
A4: Plac. | B4: Kastare | C4: Klubb | D4: Ranking-snitt | F4: Antal serie-resultat | G4: Total-poäng serie-resultat | I4: Antal vunna dubblar | J4: Antal förlorade dubblar | K4: Antal vunna singlar | L4: Antal förlorade singlar | M4: Antal vunna matcher i % | N4: Inskrivning resultat | BQ4: Uträkning för | BR4: statistik vunna resp. | BS4: förlorade | BT4: dubblar och singlar.
A5: =DU5&EF5 -> 1(-) | B5: Sandor Bodi | C5: Växjö | D5: =IF(F5>0.5,(G5/F5),0) -> 224.4444444 | F5: =COUNT(N5:BO5) -> 36 | G5: =SUM(N5:BO5) -> 8080 | I5: =COUNTIF(BQ5:DR5,2) -> 0 | J5: =COUNTIF(BQ5:DR5,-2) -> 0 | K5: =COUNTIF(BQ5:DR5,1) -> 0 | L5: =COUNTIF(BQ5:DR5,-1) -> 0 | M5: =IF(F5>0,(I5+K5)/(F5),0) -> 0 | N5: 184 | O5: 242 | P5: 226 | Q5: 246 | R5: 242 | S5: 231 | T5: 218 | U5: 241 | V5: 242 | W5: 203 | X5: 247 | Y5: 227 | Z5: 196 | AA5: 279 | AB5: 253 | AC5: 204 | AD5: 213 | AE5: 256 | AF5: 194 | AG5: 266 | AH5: 190 | AI5: 208 | AJ5: 153 | AK5: 206 | AL5: 223 | AM5: 250 | AN5: 196 | AO5: 214 | AP5: 265 | AQ5: 216 | AR5: 224 | AS5: 244 | AT5: 213 | AU5: 213 | AV5: 259 | AW5: 196 | DT5: 2 | DU5: =IF(AND(D5=D4,D5=D3,D5=D2,D5=D1),ROW(1:1),IF(AND(D5=D4,D5=D3,D5=D2),ROW(1:1),IF(AND(D5=D4,D5=D3),ROW(1:1),IF(D5=D4,ROW(1:1),IF(D5>1,ROW(1:1),"-"))))) -> 1 | DV5: =IF(DX5=1,ROW(1:1),"-") -> 1 | DX5: 1 | EB5: 11 | ED5: =IF(DX5=1,DU5,IF(DX5="",DU5,"")) -> 1 | EE5: =IF(DX5=1,"("&DT5&")","("&DV5&")") -> (2) | EF5: (-)
A6: =DU6&EF6 -> 2(-) | B6: Tobias Gneupel | C6: Sibbamåla | D6: 218.9473684 | F6: 38 | G6: 8320 | I6: 0 | J6: 0 | K6: 0 | L6: 0 | M6: 0 | N6: 315 | O6: 259 | P6: 258 | Q6: 196 | R6: 249 | S6: 242 | T6: 305 | U6: 188 | V6: 151 | W6: 222 | X6: 211 | Y6: 195 | Z6: 230 | AA6: 231 | AB6: 172 | AC6: 220 | AD6: 242 | AE6: 196 | AF6: 207 | AG6: 158 | AH6: 231 | AI6: 281 | AJ6: 207 | AK6: 244 | AL6: 182 | AM6: 215 | AN6: 306 | AO6: 256 | AP6: 188 | AQ6: 250 | AR6: 212 | AS6: 186 | AT6: 158 | AU6: 160 | AV6: 162 | AW6: 188 | AX6: 195 | AY6: 252 | DT6: 1 | DU6: =IF(AND(D6=D5,D6=D4,D6=D3,D6=D2),ROW(1:1),IF(AND(D6=D5,D6=D4,D6=D3),ROW(1:1),IF(AND(D6=D5,D6=D4),ROW(1:1),IF(D6=D5,ROW(1:1),IF(D6>1,ROW(2:2),"-"))))) -> 2 | DV6: 2 | DX6: 1 | EB6: 16 | ED6: 2 | EE6: (1) | EF6: (-)
A7: =DU7&EF7 -> 3(-) | B7: Kent Sundahl | C7: Carlskrona | D7: 203.9761905 | F7: 42 | G7: 8567 | I7: 0 | J7: 0 | K7: 0 | L7: 0 | M7: 0 | N7: 281 | O7: 239 | P7: 179 | Q7: 238 | R7: 227 | S7: 176 | T7: 187 | U7: 265 | V7: 219 | W7: 254 | X7: 229 | Y7: 203 | Z7: 125 | AA7: 198 | AB7: 213 | AC7: 137 | AD7: 184 | AE7: 174 | AF7: 172 | AG7: 211 | AH7: 185 | AI7: 204 | AJ7: 181 | AK7: 207 | AL7: 210 | AM7: 198 | AN7: 198 | AO7: 275 | AP7: 249 | AQ7: 211 | AR7: 171 | AS7: 187 | AT7: 209 | AU7: 151 | AV7: 129 | AW7: 208 | AX7: 192 | AY7: 231 | AZ7: 302 | BA7: 125 | BB7: 251 | BC7: 182 | DT7: 3 | DU7: =IF(AND(D7=D6,D7=D5,D7=D4,D7=D3),ROW(1:1),IF(AND(D7=D6,D7=D5,D7=D4),ROW(1:1),IF(AND(D7=D6,D7=D5),ROW(1:1),IF(D7=D6,ROW(2:2),IF(D7>1,ROW(3:3),"-"))))) -> 3 | DV7: 3 | DX7: 1 | EB7: 20 | ED7: 3 | EE7: (3) | EF7: (-)
A8: 4(-) | B8: Olle Ottosson | C8: Dynapac Södra | D8: 189.8974359 | F8: 39 | G8: 7406 | I8: 0 | J8: 0 | K8: 0 | L8: 0 | M8: 0 | N8: 176 | O8: 185 | P8: 140 | Q8: 231 | R8: 226 | S8: 232 | T8: 252 | U8: 222 | V8: 249 | W8: 238 | X8: 135 | Y8: 207 | Z8: 252 | AA8: 234 | AB8: 221 | AC8: 125 | AD8: 231 | AE8: 176 | AF8: 216 | AG8: 160 | AH8: 198 | AI8: 208 | AJ8: 158 | AK8: 115 | AL8: 98 | AM8: 182 | AN8: 147 | AO8: 206 | AP8: 184 | AQ8: 178 | AR8: 149 | AS8: 192 | AT8: 228 | AU8: 152 | AV8: 163 | AW8: 144 | AX8: 160 | AY8: 222 | AZ8: 214 | DT8: 4 | DU8: =IF(AND(D8=D7,D8=D6,D8=D5),ROW(1:1),IF(AND(D8=D7,D8=D6),ROW(2:2),IF(D8=D7,ROW(3:3),IF(D8>1,ROW(4:4),"-")))) -> 4 | DV8: 4 | DX8: 1 | EB8: 4 | ED8: 4 | EE8: (4) | EF8: (-)
A9: 5(-) | B9: Jörgen Holmqvist | C9: Tingsryd | D9: 179.8333333 | F9: 6 | G9: 1079 | I9: 0 | J9: 0 | K9: 0 | L9: 0 | M9: 0 | N9: 181 | O9: 200 | P9: 175 | Q9: 182 | R9: 180 | S9: 161 | DT9: 5 | DU9: =IF(D9>1,ROW(5:5),"-") -> 5 | DV9: 5 | DX9: 1 | EB9: 1 | ED9: 5 | EE9: (5) | EF9: (-)
A10: 6(-) | B10: Ingvar Eriksson | C10: Carlskrona | D10: 176.0789474 | F10: 38 | G10: 6691 | I10: 0 | J10: 0 | K10: 0 | L10: 0 | M10: 0 | N10: 145 | O10: 173 | P10: 162 | Q10: 126 | R10: 133 | S10: 216 | T10: 212 | U10: 200 | V10: 151 | W10: 139 | X10: 154 | Y10: 172 | Z10: 120 | AA10: 249 | AB10: 203 | AC10: 197 | AD10: 215 | AE10: 188 | AF10: 104 | AG10: 211 | AH10: 162 | AI10: 133 | AJ10: 180 | AK10: 163 | AL10: 185 | AM10: 203 | AN10: 159 | AO10: 187 | AP10: 239 | AQ10: 149 | AR10: 167 | AS10: 159 | AT10: 124 | AU10: 215 | AV10: 255 | AW10: 169 | AX10: 136 | AY10: 236 | DT10: 7 | DU10: =IF(D10=D9,ROW(5:5),IF(D10>1,ROW(6:6),"-")) -> 6 | DV10: 6 | DX10: 1 | EB10: 2 | ED10: 6 | EE10: (7) | EF10: (-)
A11: 7(-) | B11: Armin Sisic | C11: Värends Hsk | D11: 175.2857143 | F11: 21 | G11: 3681 | I11: 0 | J11: 0 | K11: 0 | L11: 0 | M11: 0 | N11: 192 | O11: 132 | P11: 155 | Q11: 182 | R11: 172 | S11: 153 | T11: 166 | U11: 148 | V11: 196 | W11: 285 | X11: 118 | Y11: 132 | Z11: 123 | AA11: 102 | AB11: 143 | AC11: 255 | AD11: 216 | AE11: 223 | AF11: 149 | AG11: 216 | AH11: 223 | DT11: 9 | DU11: =IF(AND(D11=D10,D11=D9,D11=D8,D11=D7),ROW(3:3),IF(AND(D11=D10,D11=D9,D11=D8),ROW(4:4),IF(AND(D11=D10,D11=D9),ROW(5:5),IF(D11=D10,ROW(6:6),IF(D11>1,ROW(7:7),"-"))))) -> 7 | DV11: 7 | DX11: 1 | EB11: 5 | ED11: 7 | EE11: (9) | EF11: (-)
A12: 8(-) | B12: Johan Johansson | C12: Tingsryd | D12: 172.75 | F12: 40 | G12: 6910 | I12: 0 | J12: 0 | K12: 0 | L12: 0 | M12: 0 | N12: 162 | O12: 155 | P12: 226 | Q12: 157 | R12: 151 | S12: 170 | T12: 177 | U12: 185 | V12: 199 | W12: 239 | X12: 108 | Y12: 159 | Z12: 202 | AA12: 228 | AB12: 271 | AC12: 155 | AD12: 152 | AE12: 178 | AF12: 162 | AG12: 200 | AH12: 172 | AI12: 171 | AJ12: 122 | AK12: 128 | AL12: 155 | AM12: 236 | AN12: 162 | AO12: 159 | AP12: 167 | AQ12: 207 | AR12: 138 | AS12: 167 | AT12: 163 | AU12: 190 | AV12: 175 | AW12: 141 | AX12: 129 | AY12: 187 | AZ12: 138 | BA12: 167 | DT12: 6 | DU12: 8 | DV12: 8 | DX12: 1 | EB12: 6 | ED12: 8 | EE12: (6) | EF12: (-)
A13: 9(-) | B13: Fredrik Lundin | C13: Lanternan | D13: 169.5 | F13: 4 | G13: 678 | I13: 0 | J13: 0 | K13: 0 | L13: 0 | M13: 0 | N13: 178 | O13: 153 | P13: 157 | Q13: 190 | DT13: 88 | DU13: 9 | DV13: 9 | DX13: 1 | EB13: 8 | ED13: 9 | EE13: (88) | EF13: (-)
A14: 10(-) | B14: Matz Karlsson | C14: Korpen Åseda | D14: 166.6969697 | F14: 33 | G14: 5501 | I14: 0 | J14: 0 | K14: 0 | L14: 0 | M14: 0 | N14: 147 | O14: 145 | P14: 160 | Q14: 221 | R14: 150 | S14: 128 | T14: 136 | U14: 185 | V14: 182 | W14: 188 | X14: 164 | Y14: 181 | Z14: 174 | AA14: 130 | AB14: 138 | AC14: 187 | AD14: 210 | AE14: 164 | AF14: 318 | AG14: 198 | AH14: 121 | AI14: 131 | AJ14: 146 | AK14: 133 | AL14: 192 | AM14: 144 | AN14: 126 | AO14: 215 | AP14: 196 | AQ14: 135 | AR14: 89 | AS14: 158 | AT14: 209 | DT14: 8 | DU14: 10 | DV14: 10 | DX14: 1 | EB14: 12 | ED14: 10 | EE14: (8) | EF14: (-)
A15: 11(-) | B15: Magnus Israelsson | C15: Sibbamåla | D15: 157.3142857 | F15: 35 | G15: 5506 | I15: 0 | J15: 0 | K15: 0 | L15: 0 | M15: 0 | N15: 199 | O15: 194 | P15: 136 | Q15: 122 | R15: 179 | S15: 208 | T15: 179 | U15: 135 | V15: 196 | W15: 138 | X15: 117 | Y15: 258 | Z15: 120 | AA15: 102 | AB15: 129 | AC15: 138 | AD15: 123 | AE15: 170 | AF15: 118 | AG15: 142 | AH15: 138 | AI15: 190 | AJ15: 179 | AK15: 135 | AL15: 138 | AM15: 159 | AN15: 219 | AO15: 149 | AP15: 146 | AQ15: 146 | AR15: 130 | AS15: 170 | AT15: 173 | AU15: 194 | AV15: 137 | DT15: 10 | DU15: 11 | DV15: 11 | DX15: 1 | EB15: 15 | ED15: 11 | EE15: (10) | EF15: (-)
A16: 12(-) | B16: Gert Karlsson | C16: Korpen Åseda | D16: 156.5789474 | F16: 19 | G16: 2975 | I16: 0 | J16: 0 | K16: 0 | L16: 0 | M16: 0 | N16: 156 | O16: 219 | P16: 115 | Q16: 150 | R16: 168 | S16: 218 | T16: 129 | U16: 160 | V16: 204 | W16: 183 | X16: 175 | Y16: 134 | Z16: 164 | AA16: 126 | AB16: 168 | AC16: 127 | AD16: 96 | AE16: 152 | AF16: 131 | DT16: 11 | DU16: 12 | DV16: 12 | DX16: 1 | EB16: 21 | ED16: 12 | EE16: (11) | EF16: (-)
A17: 13(-) | B17: Christer Eriksson | C17: Korpen Nybro | D17: 155.4 | F17: 5 | G17: 777 | I17: 0 | J17: 0 | K17: 0 | L17: 0 | M17: 0 | N17: 129 | O17: 118 | P17: 182 | Q17: 179 | R17: 169 | DT17: 13 | DU17: 13 | DV17: 13 | DX17: 1 | EB17: 3 | ED17: 13 | EE17: (13) | EF17: (-)
A18: 14(-) | B18: Anders Johansson | C18: Dynapac Södra | D18: 153.3939394 | F18: 33 | G18: 5062 | I18: 0 | J18: 0 | K18: 0 | L18: 0 | M18: 0 | N18: 202 | O18: 208 | P18: 175 | Q18: 135 | R18: 199 | S18: 148 | T18: 164 | U18: 113 | V18: 190 | W18: 139 | X18: 192 | Y18: 80 | Z18: 97 | AA18: 177 | AB18: 150 | AC18: 177 | AD18: 125 | AE18: 178 | AF18: 205 | AG18: 166 | AH18: 142 | AI18: 202 | AJ18: 78 | AK18: 126 | AL18: 118 | AM18: 125 | AN18: 209 | AO18: 134 | AP18: 107 | AQ18: 85 | AR18: 149 | AS18: 197 | AT18: 170 | DT18: 12 | DU18: 14 | DV18: 14 | DX18: 1 | EB18: 7 | ED18: 14 | EE18: (12) | EF18: (-)
A19: 15(-) | B19: Mattias Gneupel | C19: Sibbamåla | D19: 152.8333333 | F19: 36 | G19: 5502 | I19: 0 | J19: 0 | K19: 0 | L19: 0 | M19: 0 | N19: 154 | O19: 212 | P19: 202 | Q19: 153 | R19: 138 | S19: 193 | T19: 192 | U19: 183 | V19: 167 | W19: 101 | X19: 128 | Y19: 215 | Z19: 119 | AA19: 201 | AB19: 141 | AC19: 176 | AD19: 189 | AE19: 116 | AF19: 156 | AG19: 151 | AH19: 178 | AI19: 107 | AJ19: 146 | AK19: 136 | AL19: 133 | AM19: 160 | AN19: 129 | AO19: 118 | AP19: 145 | AQ19: 104 | AR19: 77 | AS19: 186 | AT19: 141 | AU19: 173 | AV19: 145 | AW19: 137 | DT19: 15 | DU19: 15 | DV19: 15 | DX19: 1 | EB19: 17 | ED19: 15 | EE19: (15) | EF19: (-)
A20: 16(-) | B20: Gebriela Kostantinos | C20: Korpen Åseda | D20: 148.5625 | F20: 32 | G20: 4754 | I20: 0 | J20: 0 | K20: 0 | L20: 0 | M20: 0 | N20: 146 | O20: 140 | P20: 170 | Q20: 176 | R20: 150 | S20: 156 | T20: 109 | U20: 150 | V20: 135 | W20: 162 | X20: 222 | Y20: 197 | Z20: 111 | AA20: 182 | AB20: 98 | AC20: 96 | AD20: 131 | AE20: 190 | AF20: 156 | AG20: 156 | AH20: 137 | AI20: 132 | AJ20: 148 | AK20: 86 | AL20: 160 | AM20: 134 | AN20: 131 | AO20: 129 | AP20: 155 | AQ20: 135 | AR20: 184 | AS20: 190 | DT20: 17 | DU20: 16 | DV20: 16 | DX20: 1 | EB20: 18 | ED20: 16 | EE20: (17) | EF20: (-)
A21: 17(-) | B21: Joel Sundahl | C21: Carlskrona | D21: 147.3333333 | F21: 27 | G21: 3978 | I21: 0 | J21: 0 | K21: 0 | L21: 0 | M21: 0 | N21: 81 | O21: 65 | P21: 105 | Q21: 170 | R21: 91 | S21: 198 | T21: 215 | U21: 130 | V21: 161 | W21: 132 | X21: 203 | Y21: 175 | Z21: 124 | AA21: 151 | AB21: 176 | AC21: 122 | AD21: 145 | AE21: 165 | AF21: 181 | AG21: 204 | AH21: 234 | AI21: 69 | AJ21: 127 | AK21: 153 | AL21: 154 | AM21: 105 | AN21: 142 | DT21: 14 | DU21: 17 | DV21: 17 | DX21: 1 | EB21: 24 | ED21: 17 | EE21: (14) | EF21: (-)
A22: 18(-) | B22: Leo Andersson | C22: Carlskrona | D22: 146.4090909 | F22: 22 | G22: 3221 | I22: 0 | J22: 0 | K22: 0 | L22: 0 | M22: 0 | N22: 230 | O22: 133 | P22: 141 | Q22: 153 | R22: 162 | S22: 165 | T22: 114 | U22: 150 | V22: 122 | W22: 124 | X22: 131 | Y22: 197 | Z22: 142 | AA22: 100 | AB22: 156 | AC22: 147 | AD22: 120 | AE22: 185 | AF22: 111 | AG22: 118 | AH22: 181 | AI22: 139 | DT22: 18 | DU22: 18 | DV22: 18 | DX22: 1 | EB22: 9 | ED22: 18 | EE22: (18) | EF22: (-)
A23: 19(-) | B23: Roy Dahlén | C23: Dynapac Södra | D23: 145.6944444 | F23: 36 | G23: 5245 | I23: 0 | J23: 0 | K23: 0 | L23: 0 | M23: 0 | N23: 205 | O23: 189 | P23: 201 | Q23: 154 | R23: 178 | S23: 172 | T23: 237 | U23: 131 | V23: 154 | W23: 148 | X23: 133 | Y23: 68 | Z23: 151 | AA23: 177 | AB23: 92 | AC23: 119 | AD23: 97 | AE23: 136 | AF23: 118 | AG23: 128 | AH23: 148 | AI23: 101 | AJ23: 132 | AK23: 182 | AL23: 121 | AM23: 118 | AN23: 90 | AO23: 161 | AP23: 115 | AQ23: 74 | AR23: 154 | AS23: 129 | AT23: 217 | AU23: 197 | AV23: 151 | AW23: 167 | DT23: 20 | DU23: 19 | DV23: 19 | DX23: 1 | EB23: 10 | ED23: 19 | EE23: (20) | EF23: (-)
A24: 20(-) | B24: Lisbeth Nygaard-Karlsson | C24: Tingsryd | D24: 144.2 | F24: 35 | G24: 5047 | I24: 0 | J24: 0 | K24: 0 | L24: 0 | M24: 0 | N24: 215 | O24: 178 | P24: 162 | Q24: 161 | R24: 133 | S24: 210 | T24: 160 | U24: 177 | V24: 175 | W24: 136 | X24: 148 | Y24: 117 | Z24: 198 | AA24: 133 | AB24: 181 | AC24: 185 | AD24: 109 | AE24: 154 | AF24: 97 | AG24: 82 | AH24: 156 | AI24: 92 | AJ24: 87 | AK24: 98 | AL24: 178 | AM24: 115 | AN24: 162 | AO24: 147 | AP24: 149 | AQ24: 143 | AR24: 82 | AS24: 165 | AT24: 121 | AU24: 112 | AV24: 129 | DT24: 16 | DU24: 20 | DV24: 20 | DX24: 1 | EB24: 22 | ED24: 20 | EE24: (16) | EF24: (-)
A25: 21(-) | B25: Mathias Karlberg | C25: Jämjö Hsk | D25: 142.9 | F25: 20 | G25: 2858 | I25: 0 | J25: 0 | K25: 0 | L25: 0 | M25: 0 | N25: 114 | O25: 101 | P25: 198 | Q25: 105 | R25: 83 | S25: 59 | T25: 194 | U25: 134 | V25: 102 | W25: 166 | X25: 146 | Y25: 155 | Z25: 108 | AA25: 165 | AB25: 182 | AC25: 165 | AD25: 200 | AE25: 204 | AF25: 186 | AG25: 91 | DT25: 28 | DU25: 21 | DV25: 21 | DX25: 1 | EB25: 14 | ED25: 21 | EE25: (28) | EF25: (-)
A26: 22(-) | B26: Dan Hallstan | C26: Växjö | D26: 141.34375 | F26: 32 | G26: 4523 | I26: 0 | J26: 0 | K26: 0 | L26: 0 | M26: 0 | N26: 88 | O26: 165 | P26: 172 | Q26: 149 | R26: 144 | S26: 81 | T26: 152 | U26: 97 | V26: 132 | W26: 102 | X26: 134 | Y26: 160 | Z26: 203 | AA26: 181 | AB26: 112 | AC26: 79 | AD26: 115 | AE26: 85 | AF26: 173 | AG26: 181 | AH26: 128 | AI26: 134 | AJ26: 126 | AK26: 150 | AL26: 211 | AM26: 115 | AN26: 135 | AO26: 182 | AP26: 152 | AQ26: 239 | AR26: 135 | AS26: 111 | DT26: 24 | DU26: 22 | DV26: 22 | DX26: 1 | EB26: 13 | ED26: 22 | EE26: (24) | EF26: (-)
A27: 23(-) | B27: Dan Madayang | C27: Korpen Åseda | D27: 140.475 | F27: 40 | G27: 5619 | I27: 0 | J27: 0 | K27: 0 | L27: 0 | M27: 0 | N27: 151 | O27: 159 | P27: 119 | Q27: 128 | R27: 88 | S27: 164 | T27: 151 | U27: 190 | V27: 89 | W27: 141 | X27: 134 | Y27: 142 | Z27: 113 | AA27: 192 | AB27: 146 | AC27: 142 | AD27: 150 | AE27: 123 | AF27: 144 | AG27: 123 | AH27: 122 | AI27: 167 | AJ27: 147 | AK27: 135 | AL27: 162 | AM27: 177 | AN27: 180 | AO27: 140 | AP27: 81 | AQ27: 117 | AR27: 79 | AS27: 137 | AT27: 175 | AU27: 177 | AV27: 160 | AW27: 111 | AX27: 171 | AY27: 94 | AZ27: 127 | BA27: 171 | DT27: 21 | DU27: 23 | DV27: 23 | DX27: 1 | EB27: 19 | ED27: 23 | EE27: (21) | EF27: (-)
A28: 24(-) | B28: Bo Petersson | C28: Korpen Nybro | D28: 135.7391304 | F28: 23 | G28: 3122 | I28: 0 | J28: 0 | K28: 0 | L28: 0 | M28: 0 | N28: 152 | O28: 160 | P28: 116 | Q28: 127 | R28: 199 | S28: 143 | T28: 105 | U28: 167 | V28: 185 | W28: 134 | X28: 163 | Y28: 107 | Z28: 117 | AA28: 109 | AB28: 131 | AC28: 106 | AD28: 159 | AE28: 105 | AF28: 111 | AG28: 161 | AH28: 141 | AI28: 111 | AJ28: 113 | DT28: 22 | DU28: =IF(AND(D28=D27,D28=D26,D28=D25,D28=D24),ROW(20:20),IF(AND(D28=D27,D28=D26,D28=D25),ROW(21:21),IF(AND(D28=D27,D28=D26),ROW(22:22),IF(D28=D27,ROW(23:23),IF(D28>1,ROW(24:24),"-"))))) -> 24 | DV28: =IF(DX28=1,ROW(24:24),"-") -> 24 | DX28: 1 | EB28: 28 | ED28: =IF(DX28=1,DU28,IF(DX28="",DU28,"")) -> 24 | EE28: =IF(DX28=1,"("&DT28&")","("&DV28&")") -> (22) | EF28: (-)
A29: 25(-) | B29: Lukas Bern | C29: Dynapac Södra | D29: 135.65625 | F29: 32 | G29: 4341 | I29: 0 | J29: 0 | K29: 0 | L29: 0 | M29: 0 | N29: 136 | O29: 154 | P29: 146 | Q29: 155 | R29: 175 | S29: 103 | T29: 114 | U29: 230 | V29: 157 | W29: 125 | X29: 74 | Y29: 141 | Z29: 86 | AA29: 124 | AB29: 156 | AC29: 162 | AD29: 170 | AE29: 128 | AF29: 129 | AG29: 105 | AH29: 154 | AI29: 105 | AJ29: 124 | AK29: 132 | AL29: 138 | AM29: 184 | AN29: 113 | AO29: 158 | AP29: 139 | AQ29: 142 | AR29: 58 | AS29: 124 | DT29: 23 | DU29: =IF(AND(D29=D28,D29=D27,D29=D26,D29=D25),ROW(21:21),IF(AND(D29=D28,D29=D27,D29=D26),ROW(22:22),IF(AND(D29=D28,D29=D27),ROW(23:23),IF(D29=D28,ROW(24:24),IF(D29>1,ROW(25:25),"-"))))) -> 25 | DV29: =IF(DX29=1,ROW(25:25),"-") -> 25 | DX29: 1 | EB29: 23 | ED29: =IF(DX29=1,DU29,IF(DX29="",DU29,"")) -> 25 | EE29: =IF(DX29=1,"("&DT29&")","("&DV29&")") -> (23) | EF29: (-)
A30: 26(-) | B30: Göran Olofsson | C30: Korpen Nybro | D30: 134.75 | F30: 24 | G30: 3234 | I30: 0 | J30: 0 | K30: 0 | L30: 0 | M30: 0 | N30: 125 | O30: 187 | P30: 138 | Q30: 114 | R30: 164 | S30: 125 | T30: 187 | U30: 132 | V30: 153 | W30: 113 | X30: 169 | Y30: 144 | Z30: 137 | AA30: 162 | AB30: 175 | AC30: 122 | AD30: 182 | AE30: 116 | AF30: 102 | AG30: 72 | AH30: 141 | AI30: 78 | AJ30: 81 | AK30: 115 | DT30: 19 | DU30: =IF(AND(D30=D29,D30=D28,D30=D27,D30=D26),ROW(22:22),IF(AND(D30=D29,D30=D28,D30=D27),ROW(23:23),IF(AND(D30=D29,D30=D28),ROW(24:24),IF(D30=D29,ROW(25:25),IF(D30>1,ROW(26:26),"-"))))) -> 26 | DV30: =IF(DX30=1,ROW(26:26),"-") -> 26 | DX30: 1 | EB30: 25 | ED30: =IF(DX30=1,DU30,IF(DX30="",DU30,"")) -> 26 | EE30: =IF(DX30=1,"("&DT30&")","("&DV30&")") -> (19) | EF30: (-)
A31: 27(-) | B31: Anita Fabbeke | C31: Dynapac Södra | D31: 133.7931034 | F31: 29 | G31: 3880 | I31: 0 | J31: 0 | K31: 0 | L31: 0 | M31: 0 | N31: 122 | O31: 74 | P31: 133 | Q31: 144 | R31: 122 | S31: 106 | T31: 200 | U31: 96 | V31: 184 | W31: 148 | X31: 165 | Y31: 136 | Z31: 147 | AA31: 122 | AB31: 116 | AC31: 104 | AD31: 147 | AE31: 128 | AF31: 149 | AG31: 203 | AH31: 103 | AI31: 115 | AJ31: 159 | AK31: 63 | AL31: 162 | AM31: 122 | AN31: 177 | AO31: 111 | AP31: 122 | DT31: 26 | DU31: =IF(AND(D31=D30,D31=D29,D31=D28,D31=D27),ROW(23:23),IF(AND(D31=D30,D31=D29,D31=D28),ROW(24:24),IF(AND(D31=D30,D31=D29),ROW(25:25),IF(D31=D30,ROW(26:26),IF(D31>1,ROW(27:27),"-"))))) -> 27 | DV31: =IF(DX31=1,ROW(27:27),"-") -> 27 | DX31: 1 | EB31: 26 | ED31: =IF(DX31=1,DU31,IF(DX31="",DU31,"")) -> 27 | EE31: =IF(DX31=1,"("&DT31&")","("&DV31&")") -> (26) | EF31: (-)
A32: 28(-) | B32: Bo Fransson | C32: Tingsryd | D32: 132.3333333 | F32: 6 | G32: 794 | I32: 0 | J32: 0 | K32: 0 | L32: 0 | M32: 0 | N32: 150 | O32: 143 | P32: 126 | Q32: 107 | R32: 172 | S32: 96 | DT32: 27 | DU32: =IF(AND(D32=D31,D32=D30,D32=D29,D32=D28),ROW(24:24),IF(AND(D32=D31,D32=D30,D32=D29),ROW(25:25),IF(AND(D32=D31,D32=D30),ROW(26:26),IF(D32=D31,ROW(27:27),IF(D32>1,ROW(28:28),"-"))))) -> 28 | DV32: =IF(DX32=1,ROW(28:28),"-") -> 28 | DX32: 1 | EB32: 27 | ED32: =IF(DX32=1,DU32,IF(DX32="",DU32,"")) -> 28 | EE32: =IF(DX32=1,"("&DT32&")","("&DV32&")") -> (27) | EF32: (-)
A33: 29(-) | B33: Lasse Brincner | C33: Värends Hsk | D33: 132.0333333 | F33: 30 | G33: 3961 | I33: 0 | J33: 0 | K33: 0 | L33: 0 | M33: 0 | N33: 95 | O33: 116 | P33: 125 | Q33: 125 | R33: 132 | S33: 122 | T33: 161 | U33: 171 | V33: 163 | W33: 159 | X33: 129 | Y33: 209 | Z33: 99 | AA33: 128 | AB33: 100 | AC33: 131 | AD33: 177 | AE33: 63 | AF33: 101 | AG33: 129 | AH33: 115 | AI33: 131 | AJ33: 165 | AK33: 108 | AL33: 201 | AM33: 155 | AN33: 142 | AO33: 96 | AP33: 132 | AQ33: 81 | DT33: 25 | DU33: 29 | DV33: 29 | DX33: 1 | EB33: 29 | ED33: 29 | EE33: (25) | EF33: (-)
A34: 30(-) | B34: Sebastian Israelsson | C34: Sibbamåla | D34: 128.2424242 | F34: 33 | G34: 4232 | I34: 0 | J34: 0 | K34: 0 | L34: 0 | M34: 0 | N34: 143 | O34: 143 | P34: 105 | Q34: 121 | R34: 109 | S34: 129 | T34: 142 | U34: 103 | V34: 197 | W34: 66 | X34: 120 | Y34: 143 | Z34: 112 | AA34: 95 | AB34: 99 | AC34: 106 | AD34: 60 | AE34: 119 | AF34: 165 | AG34: 111 | AH34: 177 | AI34: 144 | AJ34: 197 | AK34: 128 | AL34: 166 | AM34: 158 | AN34: 173 | AO34: 97 | AP34: 82 | AQ34: 123 | AR34: 124 | AS34: 125 | AT34: 150 | DT34: 29 | DU34: 30 | DV34: 30 | DX34: 1 | EB34: 30 | ED34: 30 | EE34: (29) | EF34: (-)
A35: 31(-) | B35: Maire Johansson | C35: Växjö | D35: 126.9142857 | F35: 35 | G35: 4442 | I35: 0 | J35: 0 | K35: 0 | L35: 0 | M35: 0 | N35: 172 | O35: 78 | P35: 139 | Q35: 111 | R35: 149 | S35: 94 | T35: 128 | U35: 101 | V35: 120 | W35: 131 | X35: 194 | Y35: 116 | Z35: 117 | AA35: 170 | AB35: 186 | AC35: 124 | AD35: 147 | AE35: 175 | AF35: 93 | AG35: 146 | AH35: 80 | AI35: 95 | AJ35: 143 | AK35: 98 | AL35: 87 | AM35: 93 | AN35: 109 | AO35: 114 | AP35: 132 | AQ35: 209 | AR35: 117 | AS35: 115 | AT35: 111 | AU35: 111 | AV35: 137 | DT35: 30 | DU35: 31 | DV35: 31 | DX35: 1 | EB35: 31 | ED35: 31 | EE35: (30) | EF35: (-)
A36: 32(-) | B36: Ronny Lundberg | C36: Lanternan | D36: 126.3928571 | F36: 28 | G36: 3539 | I36: 0 | J36: 0 | K36: 0 | L36: 0 | M36: 0 | N36: 131 | O36: 130 | P36: 136 | Q36: 138 | R36: 120 | S36: 99 | T36: 64 | U36: 102 | V36: 157 | W36: 170 | X36: 160 | Y36: 138 | Z36: 150 | AA36: 115 | AB36: 106 | AC36: 65 | AD36: 95 | AE36: 184 | AF36: 95 | AG36: 129 | AH36: 70 | AI36: 141 | AJ36: 146 | AK36: 142 | AL36: 144 | AM36: 188 | AN36: 163 | AO36: 61 | DT36: 36 | DU36: 32 | DV36: 32 | DX36: 1 | EB36: 32 | ED36: 32 | EE36: (36) | EF36: (-)
A37: 33(-) | B37: Hans Johansson | C37: Tingsryd | D37: =IF(F37>0.5,(G37/F37),0) -> 125.3243243 | F37: =COUNT(N37:BO37) -> 37 | G37: =SUM(N37:BO37) -> 4637 | I37: =COUNTIF(BQ37:DR37,2) -> 0 | J37: =COUNTIF(BQ37:DR37,-2) -> 0 | K37: =COUNTIF(BQ37:DR37,1) -> 0 | L37: =COUNTIF(BQ37:DR37,-1) -> 0 | M37: =IF(F37>0,(I37+K37)/(F37),0) -> 0 | N37: 125 | O37: 113 | P37: 167 | Q37: 130 | R37: 93 | S37: 74 | T37: 170 | U37: 81 | V37: 113 | W37: 127 | X37: 167 | Y37: 108 | Z37: 123 | AA37: 152 | AB37: 80 | AC37: 165 | AD37: 89 | AE37: 87 | AF37: 204 | AG37: 135 | AH37: 139 | AI37: 133 | AJ37: 85 | AK37: 161 | AL37: 154 | AM37: 143 | AN37: 99 | AO37: 145 | AP37: 95 | AQ37: 128 | AR37: 113 | AS37: 103 | AT37: 109 | AU37: 166 | AV37: 82 | AW37: 126 | AX37: 153 | DT37: 33 | DU37: 33 | DV37: =IF(DX37=1,ROW(33:33),"-") -> 33 | DX37: 1 | EB37: 33 | ED37: =IF(DX37=1,DU37,IF(DX37="",DU37,"")) -> 33 | EE37: =IF(DX37=1,"("&DT37&")","("&DV37&")") -> (33) | EF37: (-)
A38: 34(-) | B38: Ewa Malmqvist | C38: Jämjö Hsk | D38: 125.2424242 | F38: 33 | G38: 4133 | I38: 0 | J38: 0 | K38: 0 | L38: 0 | M38: 0 | N38: 116 | O38: 105 | P38: 105 | Q38: 97 | R38: 117 | S38: 67 | T38: 152 | U38: 70 | V38: 156 | W38: 166 | X38: 94 | Y38: 132 | Z38: 45 | AA38: 89 | AB38: 112 | AC38: 203 | AD38: 97 | AE38: 144 | AF38: 120 | AG38: 98 | AH38: 159 | AI38: 136 | AJ38: 122 | AK38: 210 | AL38: 137 | AM38: 114 | AN38: 123 | AO38: 103 | AP38: 157 | AQ38: 144 | AR38: 150 | AS38: 159 | AT38: 134 | DT38: 39 | DU38: 34 | DV38: 34 | DX38: 1 | EB38: 34 | ED38: 34 | EE38: (39) | EF38: (-)
A39: 35(-) | B39: Peter Olsson | C39: Dynapac Södra | D39: 125.21875 | F39: 32 | G39: 4007 | I39: 0 | J39: 0 | K39: 0 | L39: 0 | M39: 0 | N39: 148 | O39: 65 | P39: 134 | Q39: 136 | R39: 120 | S39: 120 | T39: 143 | U39: 89 | V39: 106 | W39: 95 | X39: 142 | Y39: 152 | Z39: 131 | AA39: 149 | AB39: 131 | AC39: 107 | AD39: 125 | AE39: 124 | AF39: 126 | AG39: 162 | AH39: 84 | AI39: 181 | AJ39: 79 | AK39: 116 | AL39: 134 | AM39: 155 | AN39: 180 | AO39: 94 | AP39: 107 | AQ39: 122 | AR39: 155 | AS39: 95 | DT39: 31 | DU39: 35 | DV39: 35 | DX39: 1 | EB39: 35 | ED39: 35 | EE39: (31) | EF39: (-)
A40: 36(-) | B40: Maj-Britt Jarl | C40: Växjö | D40: 124.3414634 | F40: 41 | G40: 5098 | I40: 0 | J40: 0 | K40: 0 | L40: 0 | M40: 0 | N40: 132 | O40: 183 | P40: 137 | Q40: 167 | R40: 66 | S40: 160 | T40: 113 | U40: 172 | V40: 89 | W40: 127 | X40: 104 | Y40: 148 | Z40: 160 | AA40: 127 | AB40: 116 | AC40: 148 | AD40: 158 | AE40: 105 | AF40: 150 | AG40: 89 | AH40: 113 | AI40: 191 | AJ40: 116 | AK40: 74 | AL40: 144 | AM40: 95 | AN40: 110 | AO40: 104 | AP40: 93 | AQ40: 120 | AR40: 157 | AS40: 122 | AT40: 126 | AU40: 112 | AV40: 71 | AW40: 124 | AX40: 108 | AY40: 106 | AZ40: 106 | BA40: 157 | BB40: 98 | DT40: 34 | DU40: 36 | DV40: 36 | DX40: 1 | EB40: 36 | ED40: 36 | EE40: (34) | EF40: (-)
A41: 37(-) | B41: Bela Bodi | C41: Växjö | D41: 123.3846154 | F41: 39 | G41: 4812 | I41: 0 | J41: 0 | K41: 0 | L41: 0 | M41: 0 | N41: 110 | O41: 157 | P41: 143 | Q41: 104 | R41: 111 | S41: 141 | T41: 171 | U41: 115 | V41: 111 | W41: 96 | X41: 172 | Y41: 174 | Z41: 81 | AA41: 140 | AB41: 171 | AC41: 108 | AD41: 124 | AE41: 117 | AF41: 129 | AG41: 95 | AH41: 145 | AI41: 129 | AJ41: 121 | AK41: 129 | AL41: 132 | AM41: 98 | AN41: 94 | AO41: 107 | AP41: 129 | AQ41: 97 | AR41: 88 | AS41: 121 | AT41: 96 | AU41: 121 | AV41: 117 | AW41: 144 | AX41: 117 | AY41: 88 | AZ41: 169 | DT41: 37 | DU41: 37 | DV41: 37 | DX41: 1 | EB41: 37 | ED41: 37 | EE41: (37) | EF41: (-)
A42: 38(-) | B42: Kjell Rydh | C42: Korpen Nybro | D42: 123.0333333 | F42: 30 | G42: 3691 | I42: 0 | J42: 0 | K42: 0 | L42: 0 | M42: 0 | N42: 117 | O42: 151 | P42: 128 | Q42: 167 | R42: 219 | S42: 111 | T42: 174 | U42: 133 | V42: 148 | W42: 77 | X42: 112 | Y42: 117 | Z42: 149 | AA42: 72 | AB42: 155 | AC42: 67 | AD42: 94 | AE42: 107 | AF42: 100 | AG42: 128 | AH42: 141 | AI42: 201 | AJ42: 94 | AK42: 85 | AL42: 97 | AM42: 109 | AN42: 144 | AO42: 138 | AP42: 76 | AQ42: 80 | DT42: 32 | DU42: 38 | DV42: 38 | DX42: 1 | EB42: 38 | ED42: 38 | EE42: (32) | EF42: (-)
A43: 39(-) | B43: Inge Skoglöw | C43: Jämjö Hsk | D43: 122.4 | F43: 5 | G43: 612 | I43: 0 | J43: 0 | K43: 0 | L43: 0 | M43: 0 | N43: 118 | O43: 175 | P43: 68 | Q43: 103 | R43: 148 | DT43: 38 | DU43: =IF(AND(D43=D42,D43=D41,D43=D40,D43=D39),ROW(35:35),IF(AND(D43=D42,D43=D41,D43=D40),ROW(36:36),IF(AND(D43=D42,D43=D41),ROW(37:37),IF(D43=D42,ROW(38:38),IF(D43>1,ROW(39:39),"-"))))) -> 39 | DV43: 39 | DX43: 1 | EB43: 39 | ED43: 39 | EE43: (38) | EF43: (-)
A44: 40(-) | B44: Stephan Gervide | C44: Korpen Nybro | D44: 121.85 | F44: 20 | G44: 2437 | I44: 0 | J44: 0 | K44: 0 | L44: 0 | M44: 0 | N44: 147 | O44: 90 | P44: 80 | Q44: 123 | R44: 146 | S44: 92 | T44: 160 | U44: 160 | V44: 113 | W44: 130 | X44: 97 | Y44: 93 | Z44: 124 | AA44: 78 | AB44: 138 | AC44: 168 | AD44: 145 | AE44: 132 | AF44: 99 | AG44: 122 | DT44: 43 | DU44: 40 | DV44: 40 | DX44: 1 | EB44: 40 | ED44: 40 | EE44: (43) | EF44: (-)
A45: 41(-) | B45: Leif Sundahl | C45: Carlskrona | D45: 121.7931034 | F45: 29 | G45: 3532 | I45: 0 | J45: 0 | K45: 0 | L45: 0 | M45: 0 | N45: 98 | O45: 69 | P45: 107 | Q45: 148 | R45: 154 | S45: 87 | T45: 57 | U45: 175 | V45: 131 | W45: 99 | X45: 92 | Y45: 77 | Z45: 158 | AA45: 168 | AB45: 110 | AC45: 88 | AD45: 122 | AE45: 117 | AF45: 202 | AG45: 144 | AH45: 201 | AI45: 108 | AJ45: 139 | AK45: 91 | AL45: 170 | AM45: 101 | AN45: 73 | AO45: 132 | AP45: 114 | DT45: 35 | DU45: 41 | DV45: 41 | DX45: 1 | EB45: 41 | ED45: 41 | EE45: (35) | EF45: (-)
A46: 42(-) | B46: Niklas Berglund | C46: Växjö | D46: 121.2 | F46: 5 | G46: 606 | I46: 0 | J46: 0 | K46: 0 | L46: 0 | M46: 0 | N46: 118 | O46: 138 | P46: 163 | Q46: 99 | R46: 88 | DT46: 89 | DU46: 42 | DV46: 42 | DX46: 1 | EB46: 42 | ED46: 42 | EE46: (89) | EF46: (-)
A47: 43(-) | B47: Bengt Fabbeke | C47: Dynapac Södra | D47: 120.8888889 | F47: 27 | G47: 3264 | I47: 0 | J47: 0 | K47: 0 | L47: 0 | M47: 0 | N47: 146 | O47: 84 | P47: 106 | Q47: 97 | R47: 102 | S47: 88 | T47: 116 | U47: 125 | V47: 93 | W47: 175 | X47: 103 | Y47: 108 | Z47: 154 | AA47: 90 | AB47: 101 | AC47: 121 | AD47: 98 | AE47: 140 | AF47: 166 | AG47: 127 | AH47: 167 | AI47: 153 | AJ47: 130 | AK47: 94 | AL47: 132 | AM47: 125 | AN47: 123 | DT47: 40 | DU47: 43 | DV47: 43 | DX47: 1 | EB47: 43 | ED47: 43 | EE47: (40) | EF47: (-)
A48: 44(-) | B48: Tomas Lindahl | C48: Korpen Åseda | D48: 120.5 | F48: 22 | G48: 2651 | I48: 0 | J48: 0 | K48: 0 | L48: 0 | M48: 0 | N48: 135 | O48: 141 | P48: 166 | Q48: 161 | R48: 170 | S48: 121 | T48: 98 | U48: 103 | V48: 114 | W48: 97 | X48: 132 | Y48: 123 | Z48: 141 | AA48: 112 | AB48: 107 | AC48: 63 | AD48: 84 | AE48: 98 | AF48: 64 | AG48: 109 | AH48: 164 | AI48: 148 | DT48: 41 | DU48: 44 | DV48: 44 | DX48: 1 | EB48: 52 | ED48: 44 | EE48: (41) | EF48: (-)
A49: 45(-) | B49: Stefan Tollstam | C49: Dynapac Södra | D49: 119.5 | F49: 12 | G49: 1434 | I49: 0 | J49: 0 | K49: 0 | L49: 0 | M49: 0 | N49: 79 | O49: 143 | P49: 107 | Q49: 80 | R49: 80 | S49: 66 | T49: 104 | U49: 168 | V49: 191 | W49: 121 | X49: 183 | Y49: 112 | DT49: 63 | DU49: 45 | DV49: 45 | DX49: 1 | EB49: 44 | ED49: 45 | EE49: (63) | EF49: (-)
A50: 46(-) | B50: Christer Blomgren | C50: Lanternan | D50: 117.952381 | F50: 21 | G50: 2477 | I50: 0 | J50: 0 | K50: 0 | L50: 0 | M50: 0 | N50: 136 | O50: 133 | P50: 161 | Q50: 85 | R50: 114 | S50: 122 | T50: 147 | U50: 125 | V50: 88 | W50: 72 | X50: 129 | Y50: 144 | Z50: 102 | AA50: 85 | AB50: 126 | AC50: 132 | AD50: 115 | AE50: 113 | AF50: 102 | AG50: 127 | AH50: 119 | DT50: 44 | DU50: 46 | DV50: 46 | DX50: 1 | EB50: 45 | ED50: 46 | EE50: (44) | EF50: (-)
A51: 47(-) | B51: Berndt Petersson | C51: Lanternan | D51: 117.6206897 | F51: 29 | G51: 3411 | I51: 0 | J51: 0 | K51: 0 | L51: 0 | M51: 0 | N51: 138 | O51: 89 | P51: 118 | Q51: 181 | R51: 145 | S51: 121 | T51: 136 | U51: 155 | V51: 125 | W51: 115 | X51: 104 | Y51: 169 | Z51: 98 | AA51: 111 | AB51: 81 | AC51: 142 | AD51: 117 | AE51: 112 | AF51: 80 | AG51: 97 | AH51: 67 | AI51: 110 | AJ51: 152 | AK51: 75 | AL51: 135 | AM51: 88 | AN51: 128 | AO51: 109 | AP51: 113 | DT51: 42 | DU51: 47 | DV51: 47 | DX51: 1 | EB51: 46 | ED51: 47 | EE51: (42) | EF51: (-)
A52: 48(-) | B52: Lennart Karlsson | C52: Tingsryd | D52: 116 | F52: 29 | G52: 3364 | I52: 0 | J52: 0 | K52: 0 | L52: 0 | M52: 0 | N52: 151 | O52: 104 | P52: 211 | Q52: 111 | R52: 185 | S52: 58 | T52: 116 | U52: 153 | V52: 85 | W52: 112 | X52: 99 | Y52: 81 | Z52: 89 | AA52: 108 | AB52: 101 | AC52: 108 | AD52: 112 | AE52: 96 | AF52: 88 | AG52: 80 | AH52: 63 | AI52: 114 | AJ52: 129 | AK52: 146 | AL52: 112 | AM52: 162 | AN52: 120 | AO52: 165 | AP52: 105 | DT52: 48 | DU52: 48 | DV52: 48 | DX52: 1 | EB52: 47 | ED52: 48 | EE52: (48) | EF52: (-)
A53: 49(-) | B53: Bengt Andersson | C53: Växjö | D53: 115.8 | F53: 25 | G53: 2895 | I53: 0 | J53: 0 | K53: 0 | L53: 0 | M53: 0 | N53: 126 | O53: 87 | P53: 95 | Q53: 117 | R53: 67 | S53: 133 | T53: 95 | U53: 77 | V53: 112 | W53: 154 | X53: 148 | Y53: 100 | Z53: 158 | AA53: 151 | AB53: 115 | AC53: 75 | AD53: 115 | AE53: 121 | AF53: 130 | AG53: 96 | AH53: 136 | AI53: 68 | AJ53: 165 | AK53: 125 | AL53: 129 | DT53: 45 | DU53: 49 | DV53: 49 | DX53: 1 | EB53: 48 | ED53: 49 | EE53: (45) | EF53: (-)
A54: 50(-) | B54: Christian Balsiger | C54: Värends Hsk | D54: 114.6486486 | F54: 37 | G54: 4242 | I54: 0 | J54: 0 | K54: 0 | L54: 0 | M54: 0 | N54: 145 | O54: 122 | P54: 124 | Q54: 107 | R54: 166 | S54: 133 | T54: 111 | U54: 83 | V54: 144 | W54: 177 | X54: 113 | Y54: 137 | Z54: 101 | AA54: 127 | AB54: 98 | AC54: 95 | AD54: 116 | AE54: 110 | AF54: 139 | AG54: 98 | AH54: 87 | AI54: 69 | AJ54: 116 | AK54: 149 | AL54: 177 | AM54: 95 | AN54: 135 | AO54: 99 | AP54: 94 | AQ54: 36 | AR54: 95 | AS54: 67 | AT54: 162 | AU54: 103 | AV54: 111 | AW54: 90 | AX54: 111 | DT54: 46 | DU54: 50 | DV54: 50 | DX54: 1 | EB54: 49 | ED54: 50 | EE54: (46) | EF54: (-)
A55: 51(-) | B55: Peter Edlund | C55: Dynapac Södra | D55: 112.9090909 | F55: 22 | G55: 2484 | I55: 0 | J55: 0 | K55: 0 | L55: 0 | M55: 0 | N55: 107 | O55: 70 | P55: 102 | Q55: 78 | R55: 121 | S55: 108 | T55: 155 | U55: 157 | V55: 159 | W55: 116 | X55: 130 | Y55: 171 | Z55: 119 | AA55: 88 | AB55: 92 | AC55: 132 | AD55: 94 | AE55: 72 | AF55: 123 | AG55: 76 | AH55: 131 | AI55: 83 | DT55: 47 | DU55: 51 | DV55: 51 | DX55: 1 | EB55: 50 | ED55: 51 | EE55: (47) | EF55: (-)
A56: 52(-) | B56: Marcus Karlsson | C56: Jämjö Hsk | D56: 110.34375 | F56: 32 | G56: 3531 | I56: 0 | J56: 0 | K56: 0 | L56: 0 | M56: 0 | N56: 109 | O56: 130 | P56: 81 | Q56: 93 | R56: 93 | S56: 141 | T56: 114 | U56: 119 | V56: 129 | W56: 93 | X56: 110 | Y56: 151 | Z56: 112 | AA56: 104 | AB56: 86 | AC56: 66 | AD56: 82 | AE56: 125 | AF56: 103 | AG56: 148 | AH56: 145 | AI56: 53 | AJ56: 102 | AK56: 122 | AL56: 127 | AM56: 130 | AN56: 149 | AO56: 110 | AP56: 82 | AQ56: 115 | AR56: 116 | AS56: 91 | DT56: 49 | DU56: 52 | DV56: 52 | DX56: 1 | EB56: 51 | ED56: 52 | EE56: (49) | EF56: (-)
A57: 53(-) | B57: Lasse Nilsson | C57: Värends Hsk | D57: 110.2916667 | F57: 24 | G57: 2647 | I57: 0 | J57: 0 | K57: 0 | L57: 0 | M57: 0 | N57: 125 | O57: 59 | P57: 126 | Q57: 42 | R57: 159 | S57: 129 | T57: 97 | U57: 151 | V57: 99 | W57: 106 | X57: 112 | Y57: 98 | Z57: 84 | AA57: 70 | AB57: 169 | AC57: 60 | AD57: 148 | AE57: 121 | AF57: 105 | AG57: 83 | AH57: 113 | AI57: 122 | AJ57: 65 | AK57: 204 | DT57: 51 | DU57: 53 | DV57: 53 | DX57: 1 | EB57: 53 | ED57: 53 | EE57: (51) | EF57: (-)
A58: 54(-) | B58: Kerstin Svensson | C58: Växjö | D58: 109.5185185 | F58: 27 | G58: 2957 | I58: 0 | J58: 0 | K58: 0 | L58: 0 | M58: 0 | N58: 94 | O58: 116 | P58: 107 | Q58: 89 | R58: 90 | S58: 95 | T58: 41 | U58: 84 | V58: 111 | W58: 123 | X58: 96 | Y58: 138 | Z58: 148 | AA58: 97 | AB58: 137 | AC58: 59 | AD58: 102 | AE58: 86 | AF58: 121 | AG58: 167 | AH58: 97 | AI58: 132 | AJ58: 165 | AK58: 140 | AL58: 131 | AM58: 104 | AN58: 87 | DT58: 58 | DU58: 54 | DV58: 54 | DX58: 1 | EB58: 109 | ED58: 54 | EE58: (58) | EF58: (-)
A59: 55(-) | B59: Göran Mårtensson | C59: Jämjö Hsk | D59: 109.3478261 | F59: 23 | G59: 2515 | I59: 0 | J59: 0 | K59: 0 | L59: 0 | M59: 0 | N59: 142 | O59: 139 | P59: 129 | Q59: 85 | R59: 118 | S59: 71 | T59: 97 | U59: 77 | V59: 104 | W59: 100 | X59: 115 | Y59: 88 | Z59: 67 | AA59: 165 | AB59: 89 | AC59: 71 | AD59: 155 | AE59: 172 | AF59: 155 | AG59: 100 | AH59: 50 | AI59: 107 | AJ59: 119 | DT59: 57 | DU59: 55 | DV59: 55 | DX59: 1 | EB59: 54 | ED59: 55 | EE59: (57) | EF59: (-)
A60: 56(-) | B60: Jan Petersson | C60: Lanternan | D60: 108.2941176 | F60: 17 | G60: 1841 | I60: 0 | J60: 0 | K60: 0 | L60: 0 | M60: 0 | N60: 78 | O60: 105 | P60: 127 | Q60: 92 | R60: 139 | S60: 118 | T60: 98 | U60: 134 | V60: 117 | W60: 104 | X60: 53 | Y60: 79 | Z60: 89 | AA60: 88 | AB60: 131 | AC60: 141 | AD60: 148 | DT60: 50 | DU60: 56 | DV60: 56 | DX60: 1 | EB60: 55 | ED60: 56 | EE60: (50) | EF60: (-)
A61: 57(-) | B61: Bernt Olsson | C61: Jämjö Hsk | D61: 108.1724138 | F61: 29 | G61: 3137 | I61: 0 | J61: 0 | K61: 0 | L61: 0 | M61: 0 | N61: 128 | O61: 115 | P61: 82 | Q61: 89 | R61: 65 | S61: 91 | T61: 90 | U61: 106 | V61: 123 | W61: 128 | X61: 73 | Y61: 64 | Z61: 147 | AA61: 93 | AB61: 141 | AC61: 96 | AD61: 81 | AE61: 99 | AF61: 91 | AG61: 188 | AH61: 183 | AI61: 114 | AJ61: 117 | AK61: 78 | AL61: 52 | AM61: 85 | AN61: 107 | AO61: 149 | AP61: 162 | DT61: 54 | DU61: 57 | DV61: 57 | DX61: 1 | EB61: 56 | ED61: 57 | EE61: (54) | EF61: (-)
A62: 58(-) | B62: Christer Brincner | C62: Värends Hsk | D62: 108 | F62: 3 | G62: 324 | I62: 0 | J62: 0 | K62: 0 | L62: 0 | M62: 0 | N62: 99 | O62: 113 | P62: 112 | DT62: 52 | DU62: 58 | DV62: 58 | DX62: 1 | EB62: 57 | ED62: 58 | EE62: (52) | EF62: (-)
A63: 59(-) | B63: Marianne Karlsson | C63: Jämjö Hsk | D63: 107.9354839 | F63: 31 | G63: 3346 | I63: 0 | J63: 0 | K63: 0 | L63: 0 | M63: 0 | N63: 130 | O63: 101 | P63: 80 | Q63: 116 | R63: 114 | S63: 152 | T63: 157 | U63: 176 | V63: 92 | W63: 130 | X63: 114 | Y63: 69 | Z63: 141 | AA63: 68 | AB63: 70 | AC63: 135 | AD63: 130 | AE63: 115 | AF63: 84 | AG63: 75 | AH63: 87 | AI63: 129 | AJ63: 124 | AK63: 61 | AL63: 87 | AM63: 60 | AN63: 124 | AO63: 48 | AP63: 112 | AQ63: 93 | AR63: 172 | DT63: 55 | DU63: 59 | DV63: 59 | DX63: 1 | EB63: 58 | ED63: 59 | EE63: (55) | EF63: (-)
A64: 60(-) | B64: Martin Antic | C64: Värends Hsk | D64: 107.9230769 | F64: 13 | G64: 1403 | I64: 0 | J64: 0 | K64: 0 | L64: 0 | M64: 0 | N64: 107 | O64: 84 | P64: 61 | Q64: 131 | R64: 74 | S64: 128 | T64: 153 | U64: 137 | V64: 116 | W64: 145 | X64: 57 | Y64: 116 | Z64: 94 | DT64: 53 | DU64: 60 | DV64: 60 | DX64: 1 | EB64: 59 | ED64: 60 | EE64: (53) | EF64: (-)
A65: 61(-) | B65: Ingegerd Pettersson | C65: Lanternan | D65: 107 | F65: 16 | G65: 1712 | I65: 0 | J65: 0 | K65: 0 | L65: 0 | M65: 0 | N65: 113 | O65: 115 | P65: 176 | Q65: 134 | R65: 140 | S65: 73 | T65: 91 | U65: 89 | V65: 93 | W65: 161 | X65: 115 | Y65: 69 | Z65: 82 | AA65: 97 | AB65: 88 | AC65: 76 | DT65: 56 | DU65: 61 | DV65: 61 | DX65: 1 | EB65: 60 | ED65: 61 | EE65: (56) | EF65: (-)
A66: 62(-) | B66: Åke Bergkvist | C66: Tingsryd | D66: 104.1935484 | F66: 31 | G66: 3230 | I66: 0 | J66: 0 | K66: 0 | L66: 0 | M66: 0 | N66: 114 | O66: 119 | P66: 52 | Q66: 135 | R66: 141 | S66: 123 | T66: 89 | U66: 151 | V66: 137 | W66: 98 | X66: 84 | Y66: 41 | Z66: 86 | AA66: 98 | AB66: 134 | AC66: 166 | AD66: 99 | AE66: 171 | AF66: 104 | AG66: 60 | AH66: 87 | AI66: 143 | AJ66: 90 | AK66: 113 | AL66: 98 | AM66: 49 | AN66: 71 | AO66: 71 | AP66: 111 | AQ66: 105 | AR66: 90 | DT66: 59 | DU66: 62 | DV66: 62 | DX66: 1 | EB66: 61 | ED66: 62 | EE66: (59) | EF66: (-)
A67: 63(-) | B67: Clara Larsson | C67: Värends Hsk | D67: 100.1923077 | F67: 26 | G67: 2605 | I67: 0 | J67: 0 | K67: 0 | L67: 0 | M67: 0 | N67: 89 | O67: 65 | P67: 111 | Q67: 89 | R67: 99 | S67: 109 | T67: 112 | U67: 68 | V67: 89 | W67: 72 | X67: 122 | Y67: 94 | Z67: 127 | AA67: 103 | AB67: 57 | AC67: 132 | AD67: 105 | AE67: 131 | AF67: 121 | AG67: 132 | AH67: 78 | AI67: 156 | AJ67: 100 | AK67: 64 | AL67: 58 | AM67: 122 | DT67: 60 | DU67: 63 | DV67: 63 | DX67: 1 | EB67: 62 | ED67: 63 | EE67: (60) | EF67: (-)
A68: 64(-) | B68: Mats Mårtensson | C68: Jämjö Hsk | D68: 99.36842105 | F68: 19 | G68: 1888 | I68: 0 | J68: 0 | K68: 0 | L68: 0 | M68: 0 | N68: 75 | O68: 68 | P68: 75 | Q68: 133 | R68: 98 | S68: 70 | T68: 122 | U68: 111 | V68: 115 | W68: 57 | X68: 85 | Y68: 71 | Z68: 107 | AA68: 123 | AB68: 110 | AC68: 156 | AD68: 109 | AE68: 121 | AF68: 82 | DT68: 61 | DU68: 64 | DV68: 64 | DX68: 1 | EB68: 64 | ED68: 64 | EE68: (61) | EF68: (-)
A69: 65(-) | B69: Göran Persson | C69: Dynapac Södra | D69: =IF(F69>0.5,(G69/F69),0) -> 99 | F69: =COUNT(N69:BO69) -> 5 | G69: =SUM(N69:BO69) -> 495 | I69: =COUNTIF(BQ69:DR69,2) -> 0 | J69: =COUNTIF(BQ69:DR69,-2) -> 0 | K69: =COUNTIF(BQ69:DR69,1) -> 0 | L69: =COUNTIF(BQ69:DR69,-1) -> 0 | M69: =IF(F69>0,(I69+K69)/(F69),0) -> 0 | N69: 124 | O69: 62 | P69: 110 | Q69: 93 | R69: 106 | DT69: 62 | DU69: 65 | DV69: =IF(DX69=1,ROW(65:65),"-") -> 65 | DX69: 1 | EB69: 65 | ED69: =IF(DX69=1,DU69,IF(DX69="",DU69,"")) -> 65 | EE69: =IF(DX69=1,"("&DT69&")","("&DV69&")") -> (62) | EF69: (-)
A70: 66(-) | B70: Gilbert Pettersson | C70: Lanternan | D70: 95.5 | F70: 4 | G70: 382 | I70: 0 | J70: 0 | K70: 0 | L70: 0 | M70: 0 | N70: 69 | O70: 116 | P70: 66 | Q70: 131 | DT70: 87 | DU70: 66 | DV70: 66 | DX70: 1 | EB70: 66 | ED70: 66 | EE70: (87) | EF70: (-)
A71: =DU71&EF71 -> 67(-) | B71: Ann-Marie Larsson | C71: Tingsryd | D71: 95 | F71: 14 | G71: 1330 | I71: 0 | J71: 0 | K71: 0 | L71: 0 | M71: 0 | N71: 98 | O71: 105 | P71: 105 | Q71: 66 | R71: 31 | S71: 51 | T71: 71 | U71: 72 | V71: 152 | W71: 75 | X71: 120 | Y71: 132 | Z71: 125 | AA71: 127 | DT71: 68 | DU71: 67 | DV71: 67 | DX71: 1 | EB71: 67 | ED71: 67 | EE71: (68) | EF71: (-)
A72: 68(-) | B72: Lars-Åke Karlsson | C72: Jämjö Hsk | D72: 93.53571429 | F72: 28 | G72: 2619 | I72: 0 | J72: 0 | K72: 0 | L72: 0 | M72: 0 | N72: 71 | O72: 108 | P72: 121 | Q72: 114 | R72: 87 | S72: 136 | T72: 134 | U72: 98 | V72: 153 | W72: 83 | X72: 49 | Y72: 49 | Z72: 46 | AA72: 90 | AB72: 84 | AC72: 116 | AD72: 57 | AE72: 86 | AF72: 93 | AG72: 91 | AH72: 108 | AI72: 65 | AJ72: 95 | AK72: 114 | AL72: 104 | AM72: 50 | AN72: 110 | AO72: 107 | DT72: 64 | DU72: 68 | DV72: 68 | DX72: 1 | EB72: 68 | ED72: 68 | EE72: (64) | EF72: (-)
A73: 69(-) | B73: Kevin Rydell | C73: Värends Hsk | D73: 91 | F73: 3 | G73: 273 | I73: 0 | J73: 0 | K73: 0 | L73: 0 | M73: 0 | N73: 108 | O73: 91 | P73: 74 | DT73: 65 | DU73: 69 | DV73: 69 | DX73: 1 | EB73: 69 | ED73: 69 | EE73: (65) | EF73: (-)
A74: 69(-) | B74: Nils-Åke Hansson | C74: Korpen Nybro | D74: 91 | F74: 14 | G74: 1274 | I74: 0 | J74: 0 | K74: 0 | L74: 0 | M74: 0 | N74: 72 | O74: 120 | P74: 105 | Q74: 61 | R74: 87 | S74: 61 | T74: 81 | U74: 85 | V74: 106 | W74: 92 | X74: 108 | Y74: 83 | Z74: 98 | AA74: 115 | DT74: 65 | DU74: 69 | DV74: 70 | DX74: 1 | EB74: 70 | ED74: 69 | EE74: (65) | EF74: (-)
A75: 71(-) | B75: Alf Svensson | C75: Korpen Åseda | D75: 88 | F75: 2 | G75: 176 | I75: 0 | J75: 0 | K75: 0 | L75: 0 | M75: 0 | N75: 99 | O75: 77 | DT75: 67 | DU75: =IF(AND(D75=D74,D75=D73,D75=D72,D75=D71),ROW(67:67),IF(AND(D75=D74,D75=D73,D75=D72),ROW(68:68),IF(AND(D75=D74,D75=D73),ROW(69:69),IF(D75=D74,ROW(70:70),IF(D75>1,ROW(71:71),"-"))))) -> 71 | DV75: 71 | DX75: 1 | EB75: 114 | ED75: 71 | EE75: (67) | EF75: (-)
A76: 72(-) | B76: Julius Gneupel | C76: Dynapac Södra | D76: 85.5 | F76: 4 | G76: 342 | I76: 0 | J76: 0 | K76: 0 | L76: 0 | M76: 0 | N76: 92 | O76: 84 | P76: 87 | Q76: 79 | DT76: 86 | DU76: 72 | DV76: 72 | DX76: 1 | EB76: 71 | ED76: 72 | EE76: (86) | EF76: (-)
A77: 73(-) | B77: Karin Gullbrand | C77: Värends Hsk | D77: 83.6 | F77: 10 | G77: 836 | I77: 0 | J77: 0 | K77: 0 | L77: 0 | M77: 0 | N77: 73 | O77: 52 | P77: 103 | Q77: 64 | R77: 138 | S77: 112 | T77: 92 | U77: 77 | V77: 41 | W77: 84 | DT77: 70 | DU77: 73 | DV77: 73 | DX77: 1 | EB77: 111 | ED77: 73 | EE77: (70) | EF77: (-)
A78: 74(-) | B78: Rolf Johannesson | C78: Värends Hsk | D78: 83.15789474 | F78: 19 | G78: 1580 | I78: 0 | J78: 0 | K78: 0 | L78: 0 | M78: 0 | N78: 94 | O78: 66 | P78: 113 | Q78: 109 | R78: 116 | S78: 67 | T78: 74 | U78: 107 | V78: 38 | W78: 102 | X78: 105 | Y78: 74 | Z78: 62 | AA78: 91 | AB78: 57 | AC78: 100 | AD78: 54 | AE78: 69 | AF78: 82 | DT78: 69 | DU78: 74 | DV78: 74 | DX78: 1 | EB78: 72 | ED78: 74 | EE78: (69) | EF78: (-)
A79: 75(-) | B79: Olle Nilsson | C79: Tingsryd | D79: 82.96 | F79: 25 | G79: 2074 | I79: 0 | J79: 0 | K79: 0 | L79: 0 | M79: 0 | N79: 92 | O79: 96 | P79: 103 | Q79: 57 | R79: 56 | S79: 52 | T79: 102 | U79: 27 | V79: 120 | W79: 75 | X79: 163 | Y79: 81 | Z79: 98 | AA79: 123 | AB79: 109 | AC79: 62 | AD79: 75 | AE79: 68 | AF79: 85 | AG79: 122 | AH79: 67 | AI79: 45 | AJ79: 44 | AK79: 92 | AL79: 60 | DT79: 71 | DU79: 75 | DV79: 75 | DX79: 1 | EB79: 73 | ED79: 75 | EE79: (71) | EF79: (-)
A80: 76(-) | B80: Annika K. Milsten | C80: Tingsryd | D80: 78.70588235 | F80: 17 | G80: 1338 | I80: 0 | J80: 0 | K80: 0 | L80: 0 | M80: 0 | N80: 87 | O80: 49 | P80: 61 | Q80: 108 | R80: 69 | S80: 117 | T80: 92 | U80: 71 | V80: 55 | W80: 44 | X80: 94 | Y80: 73 | Z80: 120 | AA80: 85 | AB80: 66 | AC80: 65 | AD80: 82 | DT80: 73 | DU80: 76 | DV80: 76 | DX80: 1 | EB80: 74 | ED80: 76 | EE80: (73) | EF80: (-)
A81: 77(-) | B81: Alf Johansson | C81: Värends Hsk | D81: 77.68181818 | F81: 22 | G81: 1709 | I81: 0 | J81: 0 | K81: 0 | L81: 0 | M81: 0 | N81: 87 | O81: 86 | P81: 65 | Q81: 61 | R81: 47 | S81: 79 | T81: 121 | U81: 88 | V81: 115 | W81: 95 | X81: 85 | Y81: 78 | Z81: 79 | AA81: 51 | AB81: 47 | AC81: 74 | AD81: 44 | AE81: 141 | AF81: 125 | AG81: 52 | AH81: 48 | AI81: 41 | DT81: 72 | DU81: 77 | DV81: 77 | DX81: 1 | EB81: 75 | ED81: 77 | EE81: (72) | EF81: (-)
A82: 78(-) | B82: Thomas Dahl | C82: Växjö | D82: 77 | F82: 25 | G82: 1925 | I82: 0 | J82: 0 | K82: 0 | L82: 0 | M82: 0 | N82: 82 | O82: 101 | P82: 50 | Q82: 55 | R82: 132 | S82: 47 | T82: 66 | U82: 101 | V82: 75 | W82: 89 | X82: 38 | Y82: 74 | Z82: 132 | AA82: 85 | AB82: 65 | AC82: 83 | AD82: 81 | AE82: 57 | AF82: 53 | AG82: 80 | AH82: 75 | AI82: 82 | AJ82: 105 | AK82: 60 | AL82: 57 | DT82: 75 | DU82: 78 | DV82: 78 | DX82: 1 | EB82: 76 | ED82: 78 | EE82: (75) | EF82: (-)
A83: 79(-) | B83: Anders Karlsson | C83: Värends Hsk | D83: 75.5 | F83: 18 | G83: 1359 | I83: 0 | J83: 0 | K83: 0 | L83: 0 | M83: 0 | N83: 69 | O83: 93 | P83: 88 | Q83: 88 | R83: 30 | S83: 64 | T83: 61 | U83: 126 | V83: 53 | W83: 64 | X83: 151 | Y83: 63 | Z83: 67 | AA83: 97 | AB83: 60 | AC83: 70 | AD83: 55 | AE83: 60 | DT83: 74 | DU83: 79 | DV83: 79 | DX83: 1 | EB83: 77 | ED83: 79 | EE83: (74) | EF83: (-)
A84: 80(-) | B84: Kerstin Magnusson | C84: Växjö | D84: 74.22222222 | F84: 9 | G84: 668 | I84: 0 | J84: 0 | K84: 0 | L84: 0 | M84: 0 | N84: 52 | O84: 69 | P84: 40 | Q84: 75 | R84: 109 | S84: 104 | T84: 40 | U84: 101 | V84: 78 | DT84: 76 | DU84: 80 | DV84: 80 | DX84: 1 | EB84: 78 | ED84: 80 | EE84: (76) | EF84: (-)
A85: 81(-) | B85: Mikael Bodi | C85: Växjö | D85: 70.75 | F85: 8 | G85: 566 | I85: 0 | J85: 0 | K85: 0 | L85: 0 | M85: 0 | N85: 112 | O85: 111 | P85: 114 | Q85: 86 | R85: 50 | S85: 17 | T85: 14 | U85: 62 | DT85: 77 | DU85: 81 | DV85: 81 | DX85: 1 | EB85: 79 | ED85: 81 | EE85: (77) | EF85: (-)
A86: 82(-) | B86: Gunnar Lundbeck | C86: Tingsryd | D86: 67.72222222 | F86: 18 | G86: 1219 | I86: 0 | J86: 0 | K86: 0 | L86: 0 | M86: 0 | N86: 50 | O86: 68 | P86: 97 | Q86: 90 | R86: 115 | S86: 71 | T86: 48 | U86: 68 | V86: 94 | W86: 68 | X86: 26 | Y86: 51 | Z86: 88 | AA86: 58 | AB86: 60 | AC86: 54 | AD86: 59 | AE86: 54 | DT86: 79 | DU86: 82 | DV86: 82 | DX86: 1 | EB86: 80 | ED86: 82 | EE86: (79) | EF86: (-)
A87: 83(-) | B87: Hanna Karlberg | C87: Jämjö Hsk | D87: 67.38888889 | F87: 18 | G87: 1213 | I87: 0 | J87: 0 | K87: 0 | L87: 0 | M87: 0 | N87: 58 | O87: 74 | P87: 37 | Q87: 50 | R87: 42 | S87: 75 | T87: 82 | U87: 62 | V87: 85 | W87: 90 | X87: 74 | Y87: 75 | Z87: 88 | AA87: 101 | AB87: 37 | AC87: 54 | AD87: 71 | AE87: 58 | DT87: 78 | DU87: 83 | DV87: 83 | DX87: 1 | EB87: 81 | ED87: 83 | EE87: (78) | EF87: (-)
A88: 84(-) | B88: Ulrika Rydell | C88: Värends Hsk | D88: 57.66666667 | F88: 3 | G88: 173 | I88: 0 | J88: 0 | K88: 0 | L88: 0 | M88: 0 | N88: 36 | O88: 91 | P88: 46 | DT88: 80 | DU88: 84 | DV88: 84 | DX88: 1 | EB88: 82 | ED88: 84 | EE88: (80) | EF88: (-)
A89: 85(-) | B89: Allan Persson | C89: Tingsryd | D89: 57 | F89: 2 | G89: 114 | I89: 0 | J89: 0 | K89: 0 | L89: 0 | M89: 0 | N89: 69 | O89: 45 | DT89: 81 | DU89: 85 | DV89: 85 | DX89: 1 | EB89: 83 | ED89: 85 | EE89: (81) | EF89: (-)
A90: 86(-) | B90: Ulrika Strandahl | C90: Växjö | D90: 56 | F90: 2 | G90: 112 | I90: 0 | J90: 0 | K90: 0 | L90: 0 | M90: 0 | N90: 51 | O90: 61 | DT90: 82 | DU90: 86 | DV90: 86 | DX90: 1 | EB90: 84 | ED90: 86 | EE90: (82) | EF90: (-)
A91: 87(-) | B91: Solveig Brincner | C91: Värends Hsk | D91: 55.4 | F91: 5 | G91: 277 | I91: 0 | J91: 0 | K91: 0 | L91: 0 | M91: 0 | N91: 78 | O91: 27 | P91: 49 | Q91: 75 | R91: 48 | DT91: 83 | DU91: 87 | DV91: 87 | DX91: 1 | EB91: 85 | ED91: 87 | EE91: (83) | EF91: (-)
A92: 88(-) | B92: Tommy Svensson | C92: Värends Hsk | D92: 46.85714286 | F92: 7 | G92: 328 | I92: 0 | J92: 0 | K92: 0 | L92: 0 | M92: 0 | N92: 53 | O92: 33 | P92: 53 | Q92: 40 | R92: 83 | S92: 20 | T92: 46 | DT92: 84 | DU92: 88 | DV92: 88 | DX92: 1 | EB92: 86 | ED92: 88 | EE92: (84) | EF92: (-)
A93: 89(-) | B93: Arne Blidh | C93: Lanternan | D93: 43 | F93: 5 | G93: 215 | I93: 0 | J93: 0 | K93: 0 | L93: 0 | M93: 0 | N93: 47 | O93: 60 | P93: 41 | Q93: 36 | R93: 31 | DT93: 85 | DU93: 89 | DV93: 89 | DX93: 1 | EB93: 87 | ED93: 89 | EE93: (85) | EF93: (-)
A94: -(-) | D94: 0 | F94: 0 | G94: 0 | I94: 0 | J94: 0 | K94: 0 | L94: 0 | M94: 0 | DT94: - | DU94: - | DV94: 90 | DX94: 1 | EB94: 88 | ED94: - | EE94: (-) | EF94: (-)
A95: 90(-) | D95: 0 | F95: 0 | G95: 0 | I95: 0 | J95: 0 | K95: 0 | L95: 0 | M95: 0 | DT95: 90 | DU95: 90 | DV95: 91 | DX95: 1 | EB95: 89 | ED95: 90 | EE95: (90) | EF95: (-)
A96: 90(-) | D96: 0 | F96: 0 | G96: 0 | I96: 0 | J96: 0 | K96: 0 | L96: 0 | M96: 0 | DT96: 90 | DU96: 90 | DV96: 92 | DX96: 1 | EB96: 112 | ED96: 90 | EE96: (90) | EF96: (-)
A97: 90(-) | D97: 0 | F97: 0 | G97: 0 | I97: 0 | J97: 0 | K97: 0 | L97: 0 | M97: 0 | DT97: 90 | DU97: 90 | DV97: 93 | DX97: 1 | EB97: 90 | ED97: 90 | EE97: (90) | EF97: (-)
A98: 90(-) | D98: 0 | F98: 0 | G98: 0 | I98: 0 | J98: 0 | K98: 0 | L98: 0 | M98: 0 | DT98: 90 | DU98: 90 | DV98: 94 | DX98: 1 | EB98: 91 | ED98: 90 | EE98: (90) | EF98: (-)
A99: 91(-) | D99: 0 | F99: 0 | G99: 0 | I99: 0 | J99: 0 | K99: 0 | L99: 0 | M99: 0 | DT99: 91 | DU99: 91 | DV99: 95 | DX99: 1 | EB99: 92 | ED99: 91 | EE99: (91) | EF99: (-)
A100: 92(-) | D100: 0 | F100: 0 | G100: 0 | I100: 0 | J100: 0 | K100: 0 | L100: 0 | M100: 0 | DT100: 92 | DU100: 92 | DV100: 96 | DX100: 1 | EB100: 63 | ED100: 92 | EE100: (92) | EF100: (-)
A101: 93(-) | D101: =IF(F101>0.5,(G101/F101),0) -> 0 | F101: =COUNT(N101:BO101) -> 0 | G101: =SUM(N101:BO101) -> 0 | I101: =COUNTIF(BQ101:DR101,2) -> 0 | J101: =COUNTIF(BQ101:DR101,-2) -> 0 | K101: =COUNTIF(BQ101:DR101,1) -> 0 | L101: =COUNTIF(BQ101:DR101,-1) -> 0 | M101: =IF(F101>0,(I101+K101)/(F101),0) -> 0 | DT101: 93 | DU101: 93 | DV101: =IF(DX101=1,ROW(97:97),"-") -> 97 | DX101: 1 | EB101: 93 | ED101: =IF(DX101=1,DU101,IF(DX101="",DU101,"")) -> 93 | EE101: =IF(DX101=1,"("&DT101&")","("&DV101&")") -> (93) | EF101: (-)
A102: 94(-) | D102: 0 | F102: 0 | G102: 0 | I102: 0 | J102: 0 | K102: 0 | L102: 0 | M102: 0 | DT102: 94 | DU102: 94 | DV102: 98 | DX102: 1 | EB102: 94 | ED102: 94 | EE102: (94) | EF102: (-)
A103: 95(-) | D103: 0 | F103: 0 | G103: 0 | I103: 0 | J103: 0 | K103: 0 | L103: 0 | M103: 0 | DT103: 95 | DU103: 95 | DV103: 99 | DX103: 1 | EB103: 95 | ED103: 95 | EE103: (95) | EF103: (-)
A104: 96(-) | D104: 0 | F104: 0 | G104: 0 | I104: 0 | J104: 0 | K104: 0 | L104: 0 | M104: 0 | DT104: 96 | DU104: 96 | DV104: 100 | DX104: 1 | EB104: 96 | ED104: 96 | EE104: (96) | EF104: (-)
A105: 97(-) | D105: 0 | F105: 0 | G105: 0 | I105: 0 | J105: 0 | K105: 0 | L105: 0 | M105: 0 | DT105: 97 | DU105: 97 | DV105: 101 | DX105: 1 | EB105: 97 | ED105: 97 | EE105: (97) | EF105: (-)
A106: 98(-) | D106: 0 | F106: 0 | G106: 0 | I106: 0 | J106: 0 | K106: 0 | L106: 0 | M106: 0 | DT106: 98 | DU106: 98 | DV106: 102 | DX106: 1 | EB106: 98 | ED106: 98 | EE106: (98) | EF106: (-)
A107: 99(-) | D107: 0 | F107: 0 | G107: 0 | I107: 0 | J107: 0 | K107: 0 | L107: 0 | M107: 0 | DT107: 99 | DU107: =IF(AND(D107=D106,D107=D105,D107=D104,D107=D103),ROW(99:99),IF(AND(D107=D106,D107=D105,D107=D104),ROW(100:100),IF(AND(D107=D106,D107=D105),ROW(101:101),IF(D107=D106,ROW(102:102),IF(D107>1,ROW(103:103),"-"))))) -> 99 | DV107: 103 | DX107: 1 | EB107: 99 | ED107: 99 | EE107: (99) | EF107: (-)
A108: 100(-) | D108: 0 | F108: 0 | G108: 0 | I108: 0 | J108: 0 | K108: 0 | L108: 0 | M108: 0 | DT108: 100 | DU108: 100 | DV108: 104 | DX108: 1 | EB108: 100 | ED108: 100 | EE108: (100) | EF108: (-)
A109: 101(-) | D109: 0 | F109: 0 | G109: 0 | I109: 0 | J109: 0 | K109: 0 | L109: 0 | M109: 0 | DT109: 101 | DU109: 101 | DV109: 105 | DX109: 1 | EB109: 101 | ED109: 101 | EE109: (101) | EF109: (-)
A110: 102(-) | D110: 0 | F110: 0 | G110: 0 | I110: 0 | J110: 0 | K110: 0 | L110: 0 | M110: 0 | DT110: 102 | DU110: 102 | DV110: 106 | DX110: 1 | EB110: 102 | ED110: 102 | EE110: (102) | EF110: (-)
A111: 103(-) | D111: 0 | F111: 0 | G111: 0 | I111: 0 | J111: 0 | K111: 0 | L111: 0 | M111: 0 | DT111: 103 | DU111: 103 | DV111: 107 | DX111: 1 | EB111: 110 | ED111: 103 | EE111: (103) | EF111: (-)
A112: 104(-) | D112: 0 | F112: 0 | G112: 0 | I112: 0 | J112: 0 | K112: 0 | L112: 0 | M112: 0 | DT112: 104 | DU112: 104 | DV112: 108 | DX112: 1 | EB112: 103 | ED112: 104 | EE112: (104) | EF112: (-)
A113: 105(-) | D113: 0 | F113: 0 | G113: 0 | I113: 0 | J113: 0 | K113: 0 | L113: 0 | M113: 0 | DT113: 105 | DU113: 105 | DV113: 109 | DX113: 1 | EB113: 104 | ED113: 105 | EE113: (105) | EF113: (-)
A114: 106(-) | D114: 0 | F114: 0 | G114: 0 | I114: 0 | J114: 0 | K114: 0 | L114: 0 | M114: 0 | DT114: 106 | DU114: 106 | DV114: 110 | DX114: 1 | EB114: 105 | ED114: 106 | EE114: (106) | EF114: (-)
A115: 107(-) | D115: 0 | F115: 0 | G115: 0 | I115: 0 | J115: 0 | K115: 0 | L115: 0 | M115: 0 | DT115: 107 | DU115: 107 | DV115: 111 | DX115: 1 | EB115: 106 | ED115: 107 | EE115: (107) | EF115: (-)
A116: 108(-) | D116: 0 | F116: 0 | G116: 0 | I116: 0 | J116: 0 | K116: 0 | L116: 0 | M116: 0 | DT116: 108 | DU116: 108 | DV116: 112 | DX116: 1 | EB116: 107 | ED116: 108 | EE116: (108) | EF116: (-)
A117: 109(-) | D117: 0 | F117: 0 | G117: 0 | I117: 0 | J117: 0 | K117: 0 | L117: 0 | M117: 0 | DT117: 109 | DU117: 109 | DV117: 113 | DX117: 1 | EB117: 108 | ED117: 109 | EE117: (109) | EF117: (-)
A118: 110(-) | D118: 0 | F118: 0 | G118: 0 | I118: 0 | J118: 0 | K118: 0 | L118: 0 | M118: 0 | DT118: 110 | DU118: 110 | DV118: 114 | DX118: 1 | EB118: 109 | ED118: 110 | EE118: (110) | EF118: (-)
A119: 111(-) | D119: 0 | F119: 0 | G119: 0 | I119: 0 | J119: 0 | K119: 0 | L119: 0 | M119: 0 | DT119: 111 | DU119: 111 | DV119: 115 | DX119: 1 | EB119: 112 | ED119: 111 | EE119: (111) | EF119: (-)
A120: 112(-) | D120: 0 | F120: 0 | G120: 0 | I120: 0 | J120: 0 | K120: 0 | L120: 0 | M120: 0 | DT120: 112 | DU120: 112 | DV120: 116 | DX120: 1 | EB120: 110 | ED120: 112 | EE120: (112) | EF120: (-)
A121: 113(-) | D121: 0 | F121: 0 | G121: 0 | I121: 0 | J121: 0 | K121: 0 | L121: 0 | M121: 0 | DT121: 113 | DU121: =IF(AND(D121=D120,D121=D119,D121=D118,D121=D117),ROW(113:113),IF(AND(D121=D120,D121=D119,D121=D118),ROW(114:114),IF(AND(D121=D120,D121=D119),ROW(115:115),IF(D121=D120,ROW(116:116),IF(D121>1,ROW(117:117),"-"))))) -> 113 | DV121: =IF(DX121=1,ROW(117:117),"-") -> 117 | DX121: 1 | EB121: 111 | ED121: =IF(DX121=1,DU121,IF(DX121="",DU121,"")) -> 113 | EE121: =IF(DX121=1,"("&DT121&")","("&DV121&")") -> (113) | EF121: (-)
A122: 114(-) | D122: 0 | F122: 0 | G122: 0 | I122: 0 | J122: 0 | K122: 0 | L122: 0 | M122: 0 | DT122: 114 | DU122: =IF(AND(D122=D121,D122=D120,D122=D119,D122=D118),ROW(114:114),IF(AND(D122=D121,D122=D120,D122=D119),ROW(115:115),IF(AND(D122=D121,D122=D120),ROW(116:116),IF(D122=D121,ROW(117:117),IF(D122>1,ROW(118:118),"-"))))) -> 114 | DV122: =IF(DX122=1,ROW(118:118),"-") -> 118 | DX122: 1 | EB122: 113 | ED122: =IF(DX122=1,DU122,IF(DX122="",DU122,"")) -> 114 | EE122: =IF(DX122=1,"("&DT122&")","("&DV122&")") -> (114) | EF122: (-)
A123: 115(-) | D123: 0 | F123: 0 | G123: 0 | I123: 0 | J123: 0 | K123: 0 | L123: 0 | M123: 0 | DT123: 115 | DU123: =IF(AND(D123=D122,D123=D121,D123=D120,D123=D119),ROW(115:115),IF(AND(D123=D122,D123=D121,D123=D120),ROW(116:116),IF(AND(D123=D122,D123=D121),ROW(117:117),IF(D123=D122,ROW(118:118),IF(D123>1,ROW(119:119),"-"))))) -> 115 | DV123: =IF(DX123=1,ROW(119:119),"-") -> 119 | DX123: 1 | EB123: 113 | ED123: =IF(DX123=1,DU123,IF(DX123="",DU123,"")) -> 115 | EE123: =IF(DX123=1,"("&DT123&")","("&DV123&")") -> (115) | EF123: (-)
